Workbook

Sheet Notes
A1: RocketRSI.xlsm; Traders Tip spreadsheet created for the May 2018 Issue
A2: Coded beginning 2018-February-10 by Ronald McAllister (rpmac_xltt@sprynet.com)
A4: This Workbook demonstrates an EXCEL version of the ideas presented
A5: by John Ehlers in an article titled "RocketRSI - A Solid Propellant For Your Rocket Science Trading"
A6: which originally appeared in the May 2018 issue of
A7: "Technical Analysis of Stocks and Commodities" magazine.
A9: CalculationsAndCharts construction Notes:
A12: Development Notes:
C13: This workbook contains and uses VBA macros and may use VBA Class structures.
C14: Input Data
C15: The data in this workbook is sorted date descending (most recent date at the top). All formulas and
C16: VBA routines are built accordingly.
A18: Reported Data Download Error and FIX. Note: The spreadsheet you currently have open already incorporates this fix.
A19: For T-Tips spreadsheets since December 2017, my first spreadsheet to support for the new Yahoo Finance interface,
A20: through March 2018, several readers have reported the following failure message:
A22: “User Defined Type Not Defined”
A24: If the user selects the “Debug” option, the following statement is highlighted in the VBA code
A26: Dim MSXML2Object As MSXML2.XMLHTTP
A28: For anyone encountering this failure who is comfortable with the VBA editor, two simple edits have proven to fix the problem.
A29: First, find
A30: Dim MSXML2Object As MSXML2.XMLHTTP (which is failing for you and others)
A31: And change it to
A32: Dim MSXML2Object As MSXML2.XMLHTTP60
A34: And then later in the code find and make a necessary mirroring change from
A35: Set MSXML2Object = New MSXML2.XMLHTTP
A36: to
A37: Set MSXML2Object = New MSXML2.XMLHTTP60
A39: This spreadsheet incorporates my first cut at retrieving historical data from the "New", and not necessarily "Improved", Yahoo Finance History Download interface.
B41: My sincere apologies to our Macintosh based readers: MSXML is not supported in your environment. So as it stands this version of the spreadsheet will not work for you.
B42: See "Why this approach does not work for Macintosh" below.
B43: I am investigating cURL as a non-Querytable based approach for the Macintosh environment.
A45: The new Yahoo Finance history download interface has changed rather radically. The biggest hurdle being a pseudo-security requirement of adding a
B46: crumb character string to any URL requesting any type of history download. That crumb must match up (by way of some sort of hash algorithm) with
B47: the Yahoo Finance cookie that must also be sent with any request to the new Yahoo History down load interface.
B49: A crumb value is returned, buried in the HTML for any of what I call the "entry level" Yahoo Finance web pages (no crumb security requirement for entry level pages).
B50: A crumb may come with other Yahoo Finance pages. A crumb may even accompany some of the secured pages as well. I have not checked.
B52: Entry level pages are the top level pages of the various Yahoo Finance dialogs and include: Quote Lookup, Stock Summary Quote, and any of the pages
B53: with links in the horizontal row with the "Summary" link on the quote summary page such as Options, Historical Data, and the rest.
B55: To date I have found no way to get at this crumb value using any native EXCEL capabilities.
B57: So this crumb requirement effectively shuts out any solution that attempts to exclusively use built-in facilities of EXCEL, which is to say a purely Querytables solution.
B59: The approach built for this Traders Tip spreadsheet uses a combination of MSXML and EXCEL QueryTable calls to Load the InputPriceData worksheet.
B61: First I call MSXML to get the HTML text for the Yahoo Summary Quote page using the requested symbol. From this HTML text I extract the full company name,
B62: the market it trades, the market status and time stamp, and finally the associated crumb string. There is a bunch of other useful bits buried in this HTML
B63: text that do not necessarily appear on the web page your browser presents. Perhaps some day I will go after and build a worksheet with these other bits.
B65: Next I add the freshly extracted crumb string to the URLs I use in three separate Querytable calls to retrieve Price history, Split history, and Dividend history respectively.
B67: From there VBA code proceeds as in the past to fill in the cell formulas and formatting that make the "prettied up" InputPriceData sheet.
A69: Why this approach works for Windows:
B70: First, MSXML shares the permanent Internet Explorer web cache where cookies are maintained. Both IE and MSXML automatically
B71: update this cache when a "set cookie" header accompanies a web response. And they both automatically search this shared cache for
B72: cookies and add any "appropriate" cookies to the headers of any web requests they send out.
B73: This cookie handling automation means that even if the response to our MSXML call for the Summary web page includes a new version of
B74: the Yahoo Finance cookie, the imbedded Crumb value will always match the cookie newly installed in the cache!
B76: Second, in the Windows environment the EXCEL Querytable mechanism leans heavily on bits from Internet Explorer. This means that cookie
B77: handling is also automated from the shared cache for Querytable calls. We can count on any appropriate cookies being added to any Querytable call.
B78: We only need to do our part by adding the corresponding Crumb value to complete the security for the Querytable to access Yahoo History downloads.
A80: Why this approach does not work for Macintosh:
B81: For what it is worth, the Macintosh version of the MS Office suite of products do in fact maintain a special, shared amongst themselves only, cookie cache.
B82: They automate cookie handling into and from this cache JUST for the Office products and any Querytable activity they might originate.
B84: This cache is not tied to, nor shared with, any browser that might be installed on the MAC. And I have not found anything with HTTP capabilities similar to
B85: MSXML that can work with that Office product cookie cache.
B87: When working in the MAC EXCEL environment, without that MSXML like capability against the office shared cache, l have no mechanism
B88: to obtain a crumb value that would be a valid match to the Yahoo Finance cookie that will be automatically attached to a Querytable call.
B89: This missing facility pretty much eliminates the use of Mac environment Querytables to access the new Yahoo Finance history download interface.
A91: One very low probability potential "Gottcha" for any Querytables approach.
B92: Yahoo Finance cookies typically have an assigned expiration that is a year out (to the second) from the time they are issued.
B93: Further, these cookies are unique. Yours will not match mine.
B95: If for testing purposes, instead of MSXML, you use a fresh instance of Winhttp (Fresh instance = empty cache = no cookie to automatically send)
B96: every time you call an entry level page, the Yahoo server says "What? Entry level page? With no inbound cookie? Get them a cookie!!"
B97: and will send you a new, unique cookie and will imbed the matching crumb value in the response text for each of these "no cookie attached" calls.
B99: The Gottcha: Lets say that the Yahoo Finance cookie presently in the IE cache has an expiration date and time that just happens
B100: to fall between our MSXML call to the summary page to fetch our crumb and our first (or second, or third) Querytable call.
B101: The Querytable call after the cookie expiration may fail with a cookie and crumb validation error.
B103: Querytable error reporting is atrocious. So we will not get any sort of helpful message here. Just a very generalized message like "failed to connect".
B105: The workaround is to simply go to the InputPriceData tab and click the download button.
B106: This second time through the retrieval process should not fail on a mismatch.
B107: After all, you now have a year before the new cookie that just got put into the cache expires!
A109: Calculation and Chart Worksheet Usage Comments:
C110: In General, Items in Bolded BLUE are items you may freely change to play what-if games.
C111: Be sure to have a backup copy of the spreadsheet before you alter anything else.
A113: Features carried forward from the June 2016 version of my T-Tips Template
A114: Added a pair of buttons near cell F12 that will allow the user to step the charting window forward or backward one bar for each click.
A115: I find this to be a good way to test my understanding of the author's ideas as I step through the evolution of the price behavior and the indicators.
B117: First: In the "Help! I would like to plot data" area.
B118: Added button to resolve #NA problems by locating the bar in the input data with a slightly more recent date than what the user actually requested.
B119: I find this particularly useful when I have a general idea of where I want to be date wise. Now I can pick a set of dates "out of the air".
B120: If either (or both) of my date specifications fall between dates that are available in the price history,
B121: this button will resolve them to the dates of the nearest, slightly more recent input bars.
B122: I can then refine my data interval search as necessary from there.
B123: Really great when working with Weekly or Monthly studies!
C124: 2016Jun11 - added logic to the "I would like to chart.." button to detect #N/A values and terminate
C125: gracefully with a message instead of blowing up in the charting logic.
B127: Second: In the "Price Chart Windowing Controls" area. (A11 and A12)
B128: When retrieving data for a new symbol or when changing from daily to weekly or monthly data, there was the possibility that the
B129: residual settings in A11 and A12 would fall outside of the number bars available on the input data tab after the new data retrieval.
B130: In certain combinations, this could create a serious error in the chart sizing logic and crash the spreadsheet.
B131: I have taken this opportunity to update the validity checking logic used in the chart sizing macros
B132: to adjust these values as necessary so that they fall within the boundaries of the newly retrieved input data.
A133: Features carried forward from the October 2015 Traders Tips Template
B134: Improved automation: changes to any of the following will automatically initiate calculations appropriate to reflect a change.
C135: Changing either of cells A11 (pan) or A12 (zoom) will automatically initiate the same chart sizing macros that the manual
C136: "Set Chart" button uses.

Sheet InputPriceData
A1: SPDR S&P 500 ETF (SPY) -NYSEArca (Daily)
F2: Market State == > | G2: At close: | H2: 16:00:00 | I2: EDT | IJ2: 241.79
A3: Request Online Yahoo History for:
A4: Symbol | B4: SPY | D4: Valid | I4: =OFFSET(I4,-2,0,1,1) -> EDT
A5: From | B5: 1950-01-01 | D5: Data | AF5: Trailing 12 Div return (Cur Close)
A6: To | B6: =NOW() -> 2018-03-13T16:53:46.240 | D6: Types | E6: =VLOOKUP(B7,D7:E10,2,FALSE) -> d
A7: Data Type | B7: Daily | D7: Daily | E7: d
B8: dbtX2VDkalH | D8: Weekly | E8: w
A9: Available Data | D9: Monthly | E9: m
A10: Bar Count: | B10: 6326 | AF10: =OFFSET(AC15,1,0,1,1)/OFFSET(N15,1,0,1,1) -> 0.0173532813
A11: From: | B11: =IF(B10<=0,"",OFFSET(B15,B10,IF(HistReqDataType="v",1,0),1,1)) -> 1993-01-29 | W11: Trailing 12 Month Dividend Returns
A12: To: | B12: =IF(B10<=0,"",IF(HistReqDataType="v",OFFSET(B15,2,1,1,1),OFFSET(B15,1,0,1,1))) -> 2018-03-13 | W12: Raw Close price on Dividend date | X12: Div Year and Month | Y12: Looking for year ago Div Year and Month | Z12: Year ago Div Date we found | AA12: row offset to year ago div Date | AB12: Same month flag | AC12: Trailing 12 Div Total | AD12: Trailing 12 Div return
Q13: Split History | S13: 0 | T13: Running | U13: Dividend History
B14: Raw Data Values | H14: Adjusted | I14: Price Adjust | J14: Vol Adjust | K14: Adjusted Values | P14: Last | Q14: Effective | R14: Shares | T14: Vol Adjust | V14: 104
A15: RelRow | B15: Date | C15: Open | D15: High | E15: Low | F15: Close | G15: Volume | H15: Close | I15: Factor | J15: Factor | K15: Open | L15: High | M15: Low | N15: Close | O15: Volume | P15: Trade | Q15: 43173 | R15: New | S15: Old | T15: 1 | U15: Date | V15: $ / Share
A16: 1 | B16: 2018-03-13 | C16: 279.839996 | D16: 280.410004 | E16: 276.029999 | F16: 276.720001 | G16: 80906008 | H16: 276.720001 | I16: =IF(F16=0,1,H16/F16) -> 1 | J16: =INDEX(OFFSET($T$15,0,0,$S$13+1,1),MATCH(B16,OFFSET($Q$15,0,0,$S$13+1,1),-1)) -> 1 | K16: =ROUND($I16*C16,2) -> 279.84 | L16: =ROUND($I16*D16,2) -> 280.41 | M16: 276.03 | N16: 276.72 | O16: =G16*J16 -> 80906008 | U16: 2017-12-15 | V16: 1.351 | W16: =(INDEX(OFFSET($F$15,1,0,$B$10,1),MATCH(U16,OFFSET($B$15,1,0,$B$10,1),-1))) -> 266.51001 | X16: =YEAR(U16)&RIGHT("0"&MONTH(U16),2) -> 201712 | Y16: =YEAR(U16)-1&RIGHT("0"&MONTH(U16),2) -> 201612 | Z16: =OFFSET(U15,AA16,0,1,1) -> 2016-12-16 | AA16: =MATCH(Y16,OFFSET($X$15,A16,0,$V$14+1-A16,1),-1) -> 5 | AB16: =IF(OR(AND(YEAR(U16)=YEAR(Z16),MONTH(U16)=MONTH(Z16)),MONTH(U16)=MONTH(Z16)),1,0) -> 1 | AC16: =(V16+IF(AA16-AB16=0,0,IFERROR(SUM(OFFSET(V16,1,0,AA16-AB16-1,1)),0))) -> 4.802 | AD16: =AC16/(INDEX(OFFSET($F$15,1,0,$B$10,1),MATCH(U16,OFFSET($B$15,1,0,$B$10,1),-1))) -> 0.01801808495
A17: 2 | B17: 2018-03-12 | C17: 279.200012 | D17: 279.910004 | E17: 278.079987 | F17: 278.519989 | G17: 68005200 | H17: 278.519989 | I17: =IF(F17=0,1,H17/F17) -> 1 | J17: =INDEX(OFFSET($T$15,0,0,$S$13+1,1),MATCH(B17,OFFSET($Q$15,0,0,$S$13+1,1),-1)) -> 1 | K17: =ROUND($I17*C17,2) -> 279.2 | L17: =ROUND($I17*D17,2) -> 279.91 | M17: =ROUND($I17*E17,2) -> 278.08 | N17: =ROUND($I17*F17,2) -> 278.52 | O17: =G17*J17 -> 68005200 | U17: 2017-09-15 | V17: 1.235 | W17: =(INDEX(OFFSET($F$15,1,0,$B$10,1),MATCH(U17,OFFSET($B$15,1,0,$B$10,1),-1))) -> 249.190002 | X17: =YEAR(U17)&RIGHT("0"&MONTH(U17),2) -> 201709 | Y17: =YEAR(U17)-1&RIGHT("0"&MONTH(U17),2) -> 201609 | Z17: =OFFSET(U16,AA17,0,1,1) -> 2016-09-16 | AA17: =MATCH(Y17,OFFSET($X$15,A17,0,$V$14+1-A17,1),-1) -> 5 | AB17: =IF(OR(AND(YEAR(U17)=YEAR(Z17),MONTH(U17)=MONTH(Z17)),MONTH(U17)=MONTH(Z17)),1,0) -> 1 | AC17: =(V17+IF(AA17-AB17=0,0,IFERROR(SUM(OFFSET(V17,1,0,AA17-AB17-1,1)),0))) -> 4.78 | AD17: =AC17/(INDEX(OFFSET($F$15,1,0,$B$10,1),MATCH(U17,OFFSET($B$15,1,0,$B$10,1),-1))) -> 0.01918215001
A18: 3 | B18: 2018-03-09 | C18: 275.700012 | D18: 278.869995 | E18: 275.339996 | F18: 278.869995 | G18: 113625300 | H18: 278.869995 | I18: 1 | J18: 1 | K18: 275.7 | L18: 278.87 | M18: 275.34 | N18: 278.87 | O18: 113625300 | U18: 2017-06-16 | V18: 1.183 | W18: 242.639999 | X18: 201706 | Y18: 201606 | Z18: 2016-06-17 | AA18: 5 | AB18: 1 | AC18: 4.62707 | AD18: 0.0190696918
A19: 4 | B19: 2018-03-08 | C19: 273.549988 | D19: 274.23999 | E19: 272.420013 | F19: 274.100006 | G19: 66901200 | H19: 274.100006 | I19: 1 | J19: 1 | K19: 273.55 | L19: 274.24 | M19: 272.42 | N19: 274.1 | O19: 66901200 | U19: 2017-03-17 | V19: 1.033 | W19: 237.029999 | X19: 201703 | Y19: 201603 | Z19: 2016-03-18 | AA19: 5 | AB19: 1 | AC19: 4.52207 | AD19: 0.01907804927
A20: 5 | B20: 2018-03-07 | C20: 270.420013 | D20: 273.179993 | E20: 270.200012 | F20: 272.779999 | G20: 87063500 | H20: 272.779999 | I20: 1 | J20: 1 | K20: 270.42 | L20: 273.18 | M20: 270.2 | N20: 272.78 | O20: 87063500 | U20: 2016-12-16 | V20: 1.329 | W20: 225.039993 | X20: 201612 | Y20: 201512 | Z20: 2015-12-18 | AA20: 5 | AB20: 1 | AC20: 4.53907 | AD20: 0.02017005928
A21: 6 | B21: 2018-03-06 | C21: 273.299988 | D21: 273.390015 | E21: 271.179993 | F21: 272.880005 | G21: 79213200 | H21: 272.880005 | I21: 1 | J21: 1 | K21: 273.3 | L21: 273.39 | M21: 271.18 | N21: 272.88 | O21: 79213200 | U21: 2016-09-16 | V21: 1.08207 | W21: 213.369995 | X21: 201609 | Y21: 201509 | Z21: 2015-09-18 | AA21: 5 | AB21: 1 | AC21: 4.42162 | AD21: 0.02072278251
A22: 7 | B22: 2018-03-05 | C22: 267.730011 | D22: 272.890015 | E22: 267.609985 | F22: 272.190002 | G22: 97307400 | H22: 272.190002 | I22: 1 | J22: 1 | K22: 267.73 | L22: 272.89 | M22: 267.61 | N22: 272.19 | O22: 97307400 | U22: 2016-06-17 | V22: 1.078 | W22: 206.520004 | X22: 201606 | Y22: 201506 | Z22: 2015-06-19 | AA22: 5 | AB22: 1 | AC22: 4.37255 | AD22: 0.02117252525
A23: 8 | B23: 2018-03-02 | C23: 265.799988 | D23: 269.720001 | E23: 264.820007 | F23: 269.079987 | G23: 139083200 | H23: 269.079987 | I23: 1 | J23: 1 | K23: 265.8 | L23: 269.72 | M23: 264.82 | N23: 269.08 | O23: 139083200 | U23: 2016-03-18 | V23: 1.05 | W23: 204.380005 | X23: 201603 | Y23: 201503 | Z23: 2015-03-20 | AA23: 5 | AB23: 1 | AC23: 4.32455 | AD23: 0.0211593595
A24: 9 | B24: 2018-03-01 | C24: 271.410004 | D24: 273.170013 | E24: 266 | F24: 267.700012 | G24: 176855100 | H24: 267.700012 | I24: 1 | J24: 1 | K24: 271.41 | L24: 273.17 | M24: 266 | N24: 267.7 | O24: 176855100 | U24: 2015-12-18 | V24: 1.21155 | W24: 200.020004 | X24: 201512 | Y24: 201412 | Z24: 2014-12-19 | AA24: 5 | AB24: 1 | AC24: 4.20555 | AD24: 0.02102564701
A25: 10 | B25: 2018-02-28 | C25: 275.679993 | D25: 276.190002 | E25: 271.290009 | F25: 271.649994 | G25: 121907800 | H25: 271.649994 | I25: 1 | J25: 1 | K25: 275.68 | L25: 276.19 | M25: 271.29 | N25: 271.65 | O25: 121907800 | U25: 2015-09-18 | V25: 1.033 | W25: 195.360001 | X25: 201509 | Y25: 201409 | Z25: 2014-09-19 | AA25: 5 | AB25: 1 | AC25: 4.12892 | AD25: 0.02113493028
A26: 11 | B26: 2018-02-27 | C26: 278.109985 | D26: 278.920013 | E26: 274.359985 | F26: 274.429993 | G26: 99099200 | H26: 274.429993 | I26: 1 | J26: 1 | K26: 278.11 | L26: 278.92 | M26: 274.36 | N26: 274.43 | O26: 99099200 | U26: 2015-06-19 | V26: 1.03 | W26: 210.809998 | X26: 201506 | Y26: 201406 | Z26: 2014-06-20 | AA26: 5 | AB26: 1 | AC26: 4.03511 | AD26: 0.01914098021
A27: 12 | B27: 2018-02-26 | C27: 275.929993 | D27: 278.01001 | E27: 275.26001 | F27: 277.899994 | G27: 86491400 | H27: 277.899994 | I27: 1 | J27: 1 | K27: 275.93 | L27: 278.01 | M27: 275.26 | N27: 277.9 | O27: 86491400 | U27: 2015-03-20 | V27: 0.931 | W27: 210.410004 | X27: 201503 | Y27: 201403 | Z27: 2014-03-21 | AA27: 5 | AB27: 1 | AC27: 3.9418 | AD27: 0.01873390012
A28: 13 | B28: 2018-02-23 | C28: 271.790009 | D28: 274.709991 | E28: 271.25 | F28: 274.709991 | G28: 92766400 | H28: 274.709991 | I28: 1 | J28: 1 | K28: 271.79 | L28: 274.71 | M28: 271.25 | N28: 274.71 | O28: 92766400 | U28: 2014-12-19 | V28: 1.13492 | W28: 206.520004 | X28: 201412 | Y28: 201312 | Z28: 2013-12-20 | AA28: 5 | AB28: 1 | AC28: 3.83541 | AD28: 0.01857161498
A29: 14 | B29: 2018-02-22 | C29: 271.100006 | D29: 273.049988 | E29: 269.640015 | F29: 270.399994 | G29: 110511300 | H29: 270.399994 | I29: 1 | J29: 1 | K29: 271.1 | L29: 273.05 | M29: 269.64 | N29: 270.4 | O29: 110511300 | U29: 2014-09-19 | V29: 0.93919 | W29: 200.699997 | X29: 201409 | Y29: 201309 | Z29: 2013-09-20 | AA29: 5 | AB29: 1 | AC29: 3.68074 | AD29: 0.01833951198
A30: 15 | B30: 2018-02-21 | C30: 271.899994 | D30: 274.720001 | E30: 269.940002 | F30: 270.049988 | G30: 98883700 | H30: 270.049988 | I30: 1 | J30: 1 | K30: 271.9 | L30: 274.72 | M30: 269.94 | N30: 270.05 | O30: 98883700 | U30: 2014-06-20 | V30: 0.93669 | W30: 195.940002 | X30: 201406 | Y30: 201306 | Z30: 2013-06-21 | AA30: 5 | AB30: 1 | AC30: 3.5795 | AD30: 0.01826834727
A31: 16 | B31: 2018-02-20 | C31: 272.029999 | D31: 273.670013 | E31: 270.5 | F31: 271.399994 | G31: 86369700 | H31: 271.399994 | I31: 1 | J31: 1 | K31: 272.03 | L31: 273.67 | M31: 270.5 | N31: 271.4 | O31: 86369700 | U31: 2014-03-21 | V31: 0.82461 | W31: 186.199997 | X31: 201403 | Y31: 201303 | Z31: 2013-03-15 | AA31: 5 | AB31: 1 | AC31: 3.48181 | AD31: 0.01869930213
A32: 17 | B32: 2018-02-16 | C32: 272.320007 | D32: 275.320007 | E32: 272.269989 | F32: 273.109985 | G32: 160420100 | H32: 273.109985 | I32: 1 | J32: 1 | K32: 272.32 | L32: 275.32 | M32: 272.27 | N32: 273.11 | O32: 160420100 | U32: 2013-12-20 | V32: 0.98025 | W32: 181.559998 | X32: 201312 | Y32: 201212 | Z32: 2012-12-21 | AA32: 5 | AB32: 1 | AC32: 3.3512 | AD32: 0.01845781029
A33: 18 | B33: 2018-02-15 | C33: 271.570007 | D33: 273.040009 | E33: 268.769989 | F33: 273.029999 | G33: 111200300 | H33: 273.029999 | I33: 1 | J33: 1 | K33: 271.57 | L33: 273.04 | M33: 268.77 | N33: 273.03 | O33: 111200300 | U33: 2013-09-20 | V33: 0.83795 | W33: 170.720001 | X33: 201309 | Y33: 201209 | Z33: 2012-09-21 | AA33: 5 | AB33: 1 | AC33: 3.39295 | AD33: 0.01987435555
A34: 19 | B34: 2018-02-14 | C34: 264.309998 | D34: 270 | E34: 264.299988 | F34: 269.589996 | G34: 120735700 | H34: 269.589996 | I34: 1 | J34: 1 | K34: 264.31 | L34: 270 | M34: 264.3 | N34: 269.59 | O34: 120735700 | U34: 2013-06-21 | V34: 0.839 | W34: 159.070007 | X34: 201306 | Y34: 201206 | Z34: 2012-06-15 | AA34: 5 | AB34: 1 | AC34: 3.334 | AD34: 0.02095932516
A35: 20 | B35: 2018-02-13 | C35: 263.970001 | D35: 266.619995 | E35: 263.309998 | F35: 266 | G35: 81223600 | H35: 266 | I35: 1 | J35: 1 | K35: 263.97 | L35: 266.62 | M35: 263.31 | N35: 266 | O35: 81223600 | U35: 2013-03-15 | V35: 0.694 | W35: 155.830002 | X35: 201303 | Y35: 201203 | Z35: 2012-03-16 | AA35: 5 | AB35: 1 | AC35: 3.183 | AD35: 0.02042610511
A36: 21 | B36: 2018-02-12 | C36: 263.829987 | D36: 267.01001 | E36: 261.660004 | F36: 265.339996 | G36: 143736000 | H36: 265.339996 | I36: 1 | J36: 1 | K36: 263.83 | L36: 267.01 | M36: 261.66 | N36: 265.34 | O36: 143736000 | U36: 2012-12-21 | V36: 1.022 | W36: 142.789993 | X36: 201212 | Y36: 201112 | Z36: 2011-12-16 | AA36: 5 | AB36: 1 | AC36: 3.103 | AD36: 0.02173121474
A37: 22 | B37: 2018-02-09 | C37: 260.799988 | D37: 263.609985 | E37: 252.919998 | F37: 261.5 | G37: 283565300 | H37: 261.5 | I37: 1 | J37: 1 | K37: 260.8 | L37: 263.61 | M37: 252.92 | N37: 261.5 | O37: 283565300 | U37: 2012-09-21 | V37: 0.779 | W37: 145.869995 | X37: 201209 | Y37: 201109 | Z37: 2011-09-16 | AA37: 5 | AB37: 1 | AC37: 2.851 | AD37: 0.01954480083
A38: 23 | B38: 2018-02-08 | C38: 268.01001 | D38: 268.170013 | E38: 257.589996 | F38: 257.630005 | G38: 246449500 | H38: 257.630005 | I38: 1 | J38: 1 | K38: 268.01 | L38: 268.17 | M38: 257.59 | N38: 257.63 | O38: 246449500 | U38: 2012-06-15 | V38: 0.688 | W38: 134.139999 | X38: 201206 | Y38: 201106 | Z38: 2011-06-17 | AA38: 5 | AB38: 1 | AC38: 2.697 | AD38: 0.0201058597
A39: 24 | B39: 2018-02-07 | C39: 268.5 | D39: 272.359985 | E39: 267.579987 | F39: 267.670013 | G39: 167376100 | H39: 267.670013 | I39: 1 | J39: 1 | K39: 268.5 | L39: 272.36 | M39: 267.58 | N39: 267.67 | O39: 167376100 | U39: 2012-03-16 | V39: 0.614 | W39: 140.300003 | X39: 201203 | Y39: 201103 | Z39: 2011-03-18 | AA39: 5 | AB39: 1 | AC39: 2.637 | AD39: 0.01879543794
A40: 25 | B40: 2018-02-06 | C40: 259.940002 | D40: 269.700012 | E40: 258.700012 | F40: 269.130005 | G40: 355026800 | H40: 269.130005 | I40: 1 | J40: 1 | K40: 259.94 | L40: 269.7 | M40: 258.7 | N40: 269.13 | O40: 355026800 | U40: 2011-12-16 | V40: 0.77 | W40: 121.589996 | X40: 201112 | Y40: 201012 | Z40: 2010-12-17 | AA40: 5 | AB40: 1 | AC40: 2.576 | AD40: 0.02118595349
A41: 26 | B41: 2018-02-05 | C41: 273.450012 | D41: 275.850006 | E41: 263.309998 | F41: 263.929993 | G41: 294681800 | H41: 263.929993 | I41: 1 | J41: 1 | K41: 273.45 | L41: 275.85 | M41: 263.31 | N41: 263.93 | O41: 294681800 | U41: 2011-09-16 | V41: 0.625 | W41: 121.519997 | X41: 201109 | Y41: 201009 | Z41: 2010-09-17 | AA41: 5 | AB41: 1 | AC41: 2.459 | AD41: 0.0202353527
A42: 27 | B42: 2018-02-02 | C42: 280.079987 | D42: 280.230011 | E42: 275.410004 | F42: 275.450012 | G42: 173174800 | H42: 275.450012 | I42: 1 | J42: 1 | K42: 280.08 | L42: 280.23 | M42: 275.41 | N42: 275.45 | O42: 173174800 | U42: 2011-06-17 | V42: 0.628 | W42: 127.050003 | X42: 201106 | Y42: 201006 | Z42: 2010-06-18 | AA42: 5 | AB42: 1 | AC42: 2.436 | AD42: 0.01917355327
A43: 28 | B43: 2018-02-01 | C43: 281.070007 | D43: 283.059998 | E43: 280.679993 | F43: 281.579987 | G43: 90102500 | H43: 281.579987 | I43: 1 | J43: 1 | K43: 281.07 | L43: 283.06 | M43: 280.68 | N43: 281.58 | O43: 90102500 | U43: 2011-03-18 | V43: 0.553 | W43: 127.760002 | X43: 201103 | Y43: 201003 | Z43: 2010-03-19 | AA43: 5 | AB43: 1 | AC43: 2.339 | AD43: 0.01830776427
A44: 29 | B44: 2018-01-31 | C44: 282.730011 | D44: 283.299988 | E44: 280.679993 | F44: 281.899994 | G44: 108364800 | H44: 281.899994 | I44: 1 | J44: 1 | K44: 282.73 | L44: 283.3 | M44: 280.68 | N44: 281.9 | O44: 108364800 | U44: 2010-12-17 | V44: 0.653 | W44: 124.300003 | X44: 201012 | Y44: 200912 | Z44: 2009-12-18 | AA44: 5 | AB44: 1 | AC44: 2.266 | AD44: 0.01823008806
A45: 30 | B45: 2018-01-30 | C45: 282.600006 | D45: 284.73999 | E45: 281.220001 | F45: 281.76001 | G45: 131796400 | H45: 281.76001 | I45: 1 | J45: 1 | K45: 282.6 | L45: 284.74 | M45: 281.22 | N45: 281.76 | O45: 131796400 | U45: 2010-09-17 | V45: 0.602 | W45: 112.489998 | X45: 201009 | Y45: 200909 | Z45: 2009-09-18 | AA45: 5 | AB45: 1 | AC45: 2.203 | AD45: 0.01958396337
A46: 31 | B46: 2018-01-29 | C46: 285.929993 | D46: 286.429993 | E46: 284.5 | F46: 284.679993 | G46: 90118300 | H46: 284.679993 | I46: 1 | J46: 1 | K46: 285.93 | L46: 286.43 | M46: 284.5 | N46: 284.68 | O46: 90118300 | U46: 2010-06-18 | V46: 0.531 | W46: 111.730003 | X46: 201006 | Y46: 200906 | Z46: 2009-06-19 | AA46: 5 | AB46: 1 | AC46: 2.109 | AD46: 0.01887586094
A47: 32 | B47: 2018-01-26 | C47: 284.25 | D47: 286.579987 | E47: 283.959991 | F47: 286.579987 | G47: 107743100 | H47: 286.579987 | I47: 1 | J47: 1 | K47: 284.25 | L47: 286.58 | M47: 283.96 | N47: 286.58 | O47: 107743100 | U47: 2010-03-19 | V47: 0.48 | W47: 115.970001 | X47: 201003 | Y47: 200903 | Z47: 2009-03-20 | AA47: 5 | AB47: 1 | AC47: 2.096 | AD47: 0.01807363958
A48: 33 | B48: 2018-01-25 | C48: 284.160004 | D48: 284.269989 | E48: 282.399994 | F48: 283.299988 | G48: 84587300 | H48: 283.299988 | I48: 1 | J48: 1 | K48: 284.16 | L48: 284.27 | M48: 282.4 | N48: 283.3 | O48: 84587300 | U48: 2009-12-18 | V48: 0.59 | W48: 110.209999 | X48: 200912 | Y48: 200812 | Z48: 2008-12-19 | AA48: 5 | AB48: 1 | AC48: 2.177 | AD48: 0.01975319862
A49: 34 | B49: 2018-01-24 | C49: 284.019989 | D49: 284.700012 | E49: 281.839996 | F49: 283.179993 | G49: 134816100 | H49: 283.179993 | I49: 1 | J49: 1 | K49: 284.02 | L49: 284.7 | M49: 281.84 | N49: 283.18 | O49: 134816100 | U49: 2009-09-18 | V49: 0.508 | W49: 106.720001 | X49: 200909 | Y49: 200809 | Z49: 2008-09-19 | AA49: 5 | AB49: 1 | AC49: 2.306 | AD49: 0.02160794582
A50: 35 | B50: 2018-01-23 | C50: 282.73999 | D50: 283.619995 | E50: 282.369995 | F50: 283.290009 | G50: 97084700 | H50: 283.290009 | I50: 1 | J50: 1 | K50: 282.74 | L50: 283.62 | M50: 282.37 | N50: 283.29 | O50: 97084700 | U50: 2009-06-19 | V50: 0.518 | W50: 92.040001 | X50: 200906 | Y50: 200806 | Z50: 2008-06-20 | AA50: 5 | AB50: 1 | AC50: 2.489 | AD50: 0.02704258988
A51: 36 | B51: 2018-01-22 | C51: 280.170013 | D51: 282.690002 | E51: 280.109985 | F51: 282.690002 | G51: 91322400 | H51: 282.690002 | I51: 1 | J51: 1 | K51: 280.17 | L51: 282.69 | M51: 280.11 | N51: 282.69 | O51: 91322400 | U51: 2009-03-20 | V51: 0.561 | W51: 76.709999 | X51: 200903 | Y51: 200803 | Z51: 2008-03-20 | AA51: 5 | AB51: 1 | AC51: 2.64 | AD51: 0.03441533091
A52: 37 | B52: 2018-01-19 | C52: 279.799988 | D52: 280.410004 | E52: 279.140015 | F52: 280.410004 | G52: 140920100 | H52: 280.410004 | I52: 1 | J52: 1 | K52: 279.8 | L52: 280.41 | M52: 279.14 | N52: 280.41 | O52: 140920100 | U52: 2008-12-19 | V52: 0.719 | W52: 88.190002 | X52: 200812 | Y52: 200712 | Z52: 2007-12-21 | AA52: 5 | AB52: 1 | AC52: 2.721 | AD52: 0.0308538376
A53: 38 | B53: 2018-01-18 | C53: 279.480011 | D53: 279.959991 | E53: 278.579987 | F53: 279.140015 | G53: 100728000 | H53: 279.140015 | I53: 1 | J53: 1 | K53: 279.48 | L53: 279.96 | M53: 278.58 | N53: 279.14 | O53: 100728000 | U53: 2008-09-19 | V53: 0.691 | W53: 124.120003 | X53: 200809 | Y53: 200709 | Z53: 2007-09-21 | AA53: 5 | AB53: 1 | AC53: 2.777 | AD53: 0.02237350897
A54: 39 | B54: 2018-01-17 | C54: 278.029999 | D54: 280.049988 | E54: 276.970001 | F54: 279.609985 | G54: 113258800 | H54: 279.609985 | I54: 1 | J54: 1 | K54: 278.03 | L54: 280.05 | M54: 276.97 | N54: 279.61 | O54: 113258800 | U54: 2008-06-20 | V54: 0.669 | W54: 131.580002 | X54: 200806 | Y54: 200706 | Z54: 2007-06-15 | AA54: 5 | AB54: 1 | AC54: 2.805 | AD54: 0.02131782913
A55: 40 | B55: 2018-01-16 | C55: 279.350006 | D55: 280.089996 | E55: 276.179993 | F55: 276.970001 | G55: 106555100 | H55: 276.970001 | I55: 1 | J55: 1 | K55: 279.35 | L55: 280.09 | M55: 276.18 | N55: 276.97 | O55: 106555100 | U55: 2008-03-20 | V55: 0.642 | W55: 132.080002 | X55: 200803 | Y55: 200703 | Z55: 2007-03-16 | AA55: 5 | AB55: 1 | AC55: 2.792 | AD55: 0.0211387035
A56: 41 | B56: 2018-01-12 | C56: 276.420013 | D56: 278.109985 | E56: 276.079987 | F56: 277.920013 | G56: 90816100 | H56: 277.920013 | I56: 1 | J56: 1 | K56: 276.42 | L56: 278.11 | M56: 276.08 | N56: 277.92 | O56: 90816100 | U56: 2007-12-21 | V56: 0.775 | W56: 148.130005 | X56: 200712 | Y56: 200612 | Z56: 2006-12-15 | AA56: 5 | AB56: 1 | AC56: 2.701 | AD56: 0.01823398305
A57: 42 | B57: 2018-01-11 | C57: 274.75 | D57: 276.119995 | E57: 274.559998 | F57: 276.119995 | G57: 62361500 | H57: 276.119995 | I57: 1 | J57: 1 | K57: 274.75 | L57: 276.12 | M57: 274.56 | N57: 276.12 | O57: 62361500 | U57: 2007-09-21 | V57: 0.719 | W57: 151.970001 | X57: 200709 | Y57: 200609 | Z57: 2006-09-15 | AA57: 5 | AB57: 1 | AC57: 2.719 | AD57: 0.01789168903
A58: 43 | B58: 2018-01-10 | C58: 273.679993 | D58: 274.420013 | E58: 272.920013 | F58: 274.119995 | G58: 69574300 | H58: 274.119995 | I58: 1 | J58: 1 | K58: 273.68 | L58: 274.42 | M58: 272.92 | N58: 274.12 | O58: 69574300 | U58: 2007-06-15 | V58: 0.656 | W58: 153.070007 | X58: 200706 | Y58: 200606 | Z58: 2006-06-16 | AA58: 5 | AB58: 1 | AC58: 2.579 | AD58: 0.01684849992
A59: 44 | B59: 2018-01-09 | C59: 274.399994 | D59: 275.25 | E59: 274.079987 | F59: 274.540009 | G59: 57254000 | H59: 274.540009 | I59: 1 | J59: 1 | K59: 274.4 | L59: 275.25 | M59: 274.08 | N59: 274.54 | O59: 57254000 | U59: 2007-03-16 | V59: 0.551 | W59: 138.529999 | X59: 200703 | Y59: 200603 | Z59: 2006-03-17 | AA59: 5 | AB59: 1 | AC59: 2.478 | AD59: 0.01788782226
A60: 45 | B60: 2018-01-08 | C60: 273.309998 | D60: 274.100006 | E60: 272.980011 | F60: 273.920013 | G60: 57319200 | H60: 273.920013 | I60: 1 | J60: 1 | K60: 273.31 | L60: 274.1 | M60: 272.98 | N60: 273.92 | O60: 57319200 | U60: 2006-12-15 | V60: 0.793 | W60: 142.339996 | X60: 200612 | Y60: 200512 | Z60: 2005-12-16 | AA60: 5 | AB60: 1 | AC60: 2.446 | AD60: 0.01718420731
A61: 46 | B61: 2018-01-05 | C61: 272.51001 | D61: 273.559998 | E61: 271.950012 | F61: 273.420013 | G61: 83524000 | H61: 273.420013 | I61: 1 | J61: 1 | K61: 272.51 | L61: 273.56 | M61: 271.95 | N61: 273.42 | O61: 83524000 | U61: 2006-09-15 | V61: 0.579 | W61: 131.960007 | X61: 200609 | Y61: 200509 | Z61: 2005-09-16 | AA61: 5 | AB61: 1 | AC61: 2.325 | AD61: 0.01761897451
A62: 47 | B62: 2018-01-04 | C62: 271.200012 | D62: 272.160004 | E62: 270.540009 | F62: 271.609985 | G62: 80636400 | H62: 271.609985 | I62: 1 | J62: 1 | K62: 271.2 | L62: 272.16 | M62: 270.54 | N62: 271.61 | O62: 80636400 | U62: 2006-06-16 | V62: 0.555 | W62: 124.650002 | X62: 200606 | Y62: 200506 | Z62: 2005-06-17 | AA62: 5 | AB62: 1 | AC62: 2.268 | AD62: 0.01819494556
A63: 48 | B63: 2018-01-03 | C63: 268.959991 | D63: 270.640015 | E63: 268.959991 | F63: 270.470001 | G63: 90070400 | H63: 270.470001 | I63: 1 | J63: 1 | K63: 268.96 | L63: 270.64 | M63: 268.96 | N63: 270.47 | O63: 90070400 | U63: 2006-03-17 | V63: 0.519 | W63: 130.619995 | X63: 200603 | Y63: 200503 | Z63: 2005-03-18 | AA63: 5 | AB63: 1 | AC63: 2.201 | AD63: 0.0168504064
A64: 49 | B64: 2018-01-02 | C64: 267.839996 | D64: 268.809998 | E64: 267.399994 | F64: 268.769989 | G64: 86655700 | H64: 268.769989 | I64: 1 | J64: 1 | K64: 267.84 | L64: 268.81 | M64: 267.4 | N64: 268.77 | O64: 86655700 | U64: 2005-12-16 | V64: 0.672 | W64: 126.360001 | X64: 200512 | Y64: 200412 | Z64: 2004-12-17 | AA64: 5 | AB64: 1 | AC64: 2.149 | AD64: 0.01700696409
A65: 50 | B65: 2017-12-29 | C65: 268.529999 | D65: 268.549988 | E65: 266.640015 | F65: 266.859985 | G65: 96007400 | H65: 266.859985 | I65: 1 | J65: 1 | K65: 268.53 | L65: 268.55 | M65: 266.64 | N65: 266.86 | O65: 96007400 | U65: 2005-09-16 | V65: 0.522 | W65: 123.5 | X65: 200509 | Y65: 200409 | Z65: 2004-09-17 | AA65: 6 | AB65: 1 | AC65: 2.396 | AD65: 0.01940080972
A66: 51 | B66: 2017-12-28 | C66: 267.890015 | D66: 267.920013 | E66: 267.450012 | F66: 267.869995 | G66: 45116100 | H66: 267.869995 | I66: 1 | J66: 1 | K66: 267.89 | L66: 267.92 | M66: 267.45 | N66: 267.87 | O66: 45116100 | U66: 2005-06-17 | V66: 0.488 | W66: 121.360001 | X66: 200506 | Y66: 200406 | Z66: 2004-06-18 | AA66: 6 | AB66: 1 | AC66: 2.343 | AD66: 0.01930619628
A67: 52 | B67: 2017-12-27 | C67: 267.380005 | D67: 267.730011 | E67: 267.01001 | F67: 267.320007 | G67: 57751000 | H67: 267.320007 | I67: 1 | J67: 1 | K67: 267.38 | L67: 267.73 | M67: 267.01 | N67: 267.32 | O67: 57751000 | U67: 2005-03-18 | V67: 0.467 | W67: 118.540001 | X67: 200503 | Y67: 200403 | Z67: 2004-03-19 | AA67: 6 | AB67: 1 | AC67: 2.269 | AD67: 0.01914121799
A68: 53 | B68: 2017-12-26 | C68: 267.049988 | D68: 267.440002 | E68: 266.890015 | F68: 267.190002 | G68: 45244400 | H68: 267.190002 | I68: 1 | J68: 1 | K68: 267.05 | L68: 267.44 | M68: 266.89 | N68: 267.19 | O68: 45244400 | U68: 2004-12-17 | V68: 0.568 | W68: 119.440002 | X68: 200412 | Y68: 200312 | Z68: 2003-12-19 | AA68: 6 | AB68: 1 | AC68: 2.197 | AD68: 0.0183941725
A69: 54 | B69: 2017-12-22 | C69: 267.600006 | D69: 267.640015 | E69: 266.899994 | F69: 267.51001 | G69: 78720900 | H69: 267.51001 | I69: 1 | J69: 1 | K69: 267.6 | L69: 267.64 | M69: 266.9 | N69: 267.51 | O69: 78720900 | U69: 2004-11-15 | V69: 0.351 | W69: 118.730003 | X69: 200411 | Y69: 200311 | Z69: 2003-12-19 | AA69: 5 | AB69: 0 | AC69: 2.145 | AD69: 0.01806620017
A70: 55 | B70: 2017-12-21 | C70: 267.73999 | D70: 268.390015 | E70: 267.299988 | F70: 267.579987 | G70: 67032300 | H70: 267.579987 | I70: 1 | J70: 1 | K70: 267.74 | L70: 268.39 | M70: 267.3 | N70: 267.58 | O70: 67032300 | U70: 2004-09-17 | V70: 0.469 | W70: 113.150002 | X70: 200409 | Y70: 200309 | Z70: 2003-09-19 | AA70: 5 | AB70: 1 | AC70: 1.794 | AD70: 0.01585505938
A71: 56 | B71: 2017-12-20 | C71: 268.269989 | D71: 268.329987 | E71: 266.690002 | F71: 267.029999 | G71: 76751500 | H71: 267.029999 | I71: 1 | J71: 1 | K71: 268.27 | L71: 268.33 | M71: 266.69 | N71: 267.03 | O71: 76751500 | U71: 2004-06-18 | V71: 0.414 | W71: 113.629997 | X71: 200406 | Y71: 200306 | Z71: 2003-06-20 | AA71: 5 | AB71: 1 | AC71: 1.725 | AD71: 0.01518085053
A72: 57 | B72: 2017-12-19 | C72: 268.480011 | D72: 268.529999 | E72: 267.089996 | F72: 267.170013 | G72: 82382900 | H72: 267.170013 | I72: 1 | J72: 1 | K72: 268.48 | L72: 268.53 | M72: 267.09 | N72: 267.17 | O72: 82382900 | U72: 2004-03-19 | V72: 0.395 | W72: 111.059998 | X72: 200403 | Y72: 200303 | Z72: 2003-03-21 | AA72: 5 | AB72: 1 | AC72: 1.671 | AD72: 0.01504592139
A73: 58 | B73: 2017-12-18 | C73: 268.100006 | D73: 268.600006 | E73: 267.980011 | F73: 268.200012 | G73: 83653600 | H73: 268.200012 | I73: 1 | J73: 1 | K73: 268.1 | L73: 268.6 | M73: 267.98 | N73: 268.2 | O73: 83653600 | U73: 2003-12-19 | V73: 0.516 | W73: 108.900002 | X73: 200312 | Y73: 200212 | Z73: 2002-12-20 | AA73: 5 | AB73: 1 | AC73: 1.63 | AD73: 0.01496786015
A74: 59 | B74: 2017-12-15 | C74: 265.450012 | D74: 267.040009 | E74: 265.390015 | F74: 266.51001 | G74: 144610300 | H74: 266.51001 | I74: 1 | J74: 1 | K74: 265.45 | L74: 267.04 | M74: 265.39 | N74: 266.51 | O74: 144610300 | U74: 2003-09-19 | V74: 0.4 | W74: 103.669998 | X74: 200309 | Y74: 200209 | Z74: 2002-09-20 | AA74: 5 | AB74: 1 | AC74: 1.55 | AD74: 0.01495128803
A75: 60 | B75: 2017-12-14 | C75: 267.089996 | D75: 267.220001 | E75: 265.600006 | F75: 265.660004 | G75: 100666700 | H75: 264.30899 | I75: 0.9949144998 | J75: 1 | K75: 265.73 | L75: 265.86 | M75: 264.25 | N75: 264.31 | O75: 100666700 | U75: 2003-06-20 | V75: 0.36 | W75: 99.440002 | X75: 200306 | Y75: 200206 | Z75: 2002-06-21 | AA75: 5 | AB75: 1 | AC75: 1.528 | AD75: 0.01536604957
A76: 61 | B76: 2017-12-13 | C76: 267.059998 | D76: 267.559998 | E76: 266.649994 | F76: 266.75 | G76: 102905400 | H76: 265.393463 | I76: 0.9949145754 | J76: 1 | K76: 265.7 | L76: 266.2 | M76: 265.29 | N76: 265.39 | O76: 102905400 | U76: 2003-03-21 | V76: 0.354 | W76: 89.669998 | X76: 200303 | Y76: 200203 | Z76: 2002-03-15 | AA76: 5 | AB76: 1 | AC76: 1.521 | AD76: 0.01696219509
A77: 62 | B77: 2017-12-12 | C77: 267.209991 | D77: 267.320007 | E77: 266.350006 | F77: 266.779999 | G77: 85195800 | H77: 265.423309 | I77: 0.9949145738 | J77: 1 | K77: 265.85 | L77: 265.96 | M77: 265 | N77: 265.42 | O77: 85195800 | U77: 2002-12-20 | V77: 0.436 | W77: 89.989998 | X77: 200212 | Y77: 200112 | Z77: 2001-12-21 | AA77: 5 | AB77: 1 | AC77: 1.498 | AD77: 0.0166462944
A78: 63 | B78: 2017-12-11 | C78: 266.309998 | D78: 266.380005 | E78: 265.480011 | F78: 266.309998 | G78: 83077500 | H78: 264.955688 | I78: 0.9949145357 | J78: 1 | K78: 264.96 | L78: 265.03 | M78: 264.13 | N78: 264.96 | O78: 83077500 | U78: 2002-09-20 | V78: 0.378 | W78: 84.349998 | X78: 200209 | Y78: 200109 | Z78: 2001-09-21 | AA78: 5 | AB78: 1 | AC78: 1.455 | AD78: 0.01724955583
A79: 64 | B79: 2017-12-08 | C79: 265.160004 | D79: 265.519989 | E79: 264.029999 | F79: 265.51001 | G79: 76563900 | H79: 264.15976 | I79: 0.9949145044 | J79: 1 | K79: 263.81 | L79: 264.17 | M79: 262.69 | N79: 264.16 | O79: 76563900 | U79: 2002-06-21 | V79: 0.353 | W79: 99.279999 | X79: 200206 | Y79: 200106 | Z79: 2001-06-15 | AA79: 5 | AB79: 1 | AC79: 1.446 | AD79: 0.01456486719
A80: 65 | B80: 2017-12-07 | C80: 264.070007 | D80: 264.429993 | E80: 262.940002 | F80: 264.070007 | G80: 77218600 | H80: 262.727081 | I80: 0.9949145077 | J80: 1 | K80: 262.73 | L80: 263.09 | M80: 261.6 | N80: 262.73 | O80: 77218600 | U80: 2002-03-15 | V80: 0.331 | W80: 116.650002 | X80: 200203 | Y80: 200103 | Z80: 2001-03-16 | AA80: 5 | AB80: 1 | AC80: 1.439 | AD80: 0.0123360478
A81: 66 | B81: 2017-12-06 | C81: 263.299988 | D81: 263.730011 | E81: 262.709991 | F81: 263.23999 | G81: 75898600 | H81: 261.901306 | I81: =IF(F81=0,1,H81/F81) -> 0.9949145873 | J81: =INDEX(OFFSET($T$15,0,0,$S$13+1,1),MATCH(B81,OFFSET($Q$15,0,0,$S$13+1,1),-1)) -> 1 | K81: =ROUND($I81*C81,2) -> 261.96 | L81: =ROUND($I81*D81,2) -> 262.39 | M81: =ROUND($I81*E81,2) -> 261.37 | N81: =ROUND($I81*F81,2) -> 261.9 | O81: =G81*J81 -> 75898600 | U81: 2001-12-21 | V81: 0.393 | W81: =(INDEX(OFFSET($F$15,1,0,$B$10,1),MATCH(U81,OFFSET($B$15,1,0,$B$10,1),-1))) -> 114.949997 | X81: =YEAR(U81)&RIGHT("0"&MONTH(U81),2) -> 200112 | Y81: =YEAR(U81)-1&RIGHT("0"&MONTH(U81),2) -> 200012 | Z81: =OFFSET(U80,AA81,0,1,1) -> 2000-12-27 | AA81: =MATCH(Y81,OFFSET($X$15,A81,0,$V$14+1-A81,1),-1) -> 5 | AB81: =IF(OR(AND(YEAR(U81)=YEAR(Z81),MONTH(U81)=MONTH(Z81)),MONTH(U81)=MONTH(Z81)),1,0) -> 1 | AC81: =(V81+IF(AA81-AB81=0,0,IFERROR(SUM(OFFSET(V81,1,0,AA81-AB81-1,1)),0))) -> 1.424 | AD81: =AC81/(INDEX(OFFSET($F$15,1,0,$B$10,1),MATCH(U81,OFFSET($B$15,1,0,$B$10,1),-1))) -> 0.0123879951
A82: 67 | B82: 2017-12-05 | C82: 263.190002 | D82: 265.149994 | E82: 263.040009 | F82: 263.190002 | G82: 77994500 | H82: 261.851563 | I82: 0.9949145523 | J82: 1 | K82: 261.85 | L82: 263.8 | M82: 261.7 | N82: 261.85 | O82: 77994500 | U82: 2001-09-21 | V82: 0.369 | W82: 97.279999 | X82: 200109 | Y82: 200009 | Z82: 2000-09-15 | AA82: 6 | AB82: 1 | AC82: 1.442 | AD82: 0.01482319094
A83: 68 | B83: 2017-12-04 | C83: 266.309998 | D83: 266.799988 | E83: 264.079987 | F83: 264.140015 | G83: 94040600 | H83: 262.796753 | I83: 0.9949145835 | J83: 1 | K83: 264.96 | L83: 265.44 | M83: 262.74 | N83: 262.8 | O83: 94040600 | U83: 2001-06-15 | V83: 0.346 | W83: 121.849998 | X83: 200106 | Y83: 200006 | Z83: 2000-06-16 | AA83: 7 | AB83: 1 | AC83: 1.448 | AD83: 0.01188346347
A84: 69 | B84: 2017-12-01 | C84: 264.76001 | D84: 265.309998 | E84: 260.76001 | F84: 264.459991 | G84: 164390900 | H84: 263.115082 | I84: 0.9949145086 | J84: 1 | K84: 263.41 | L84: 263.96 | M84: 259.43 | N84: 263.12 | O84: 164390900 | U84: 2001-03-16 | V84: 0.316 | W84: 115.010002 | X84: 200103 | Y84: 200003 | Z84: 2000-03-17 | AA84: 7 | AB84: 1 | AC84: 1.45 | AD84: 0.01260759912
A85: 70 | B85: 2017-11-30 | C85: 263.76001 | D85: 266.049988 | E85: 263.670013 | F85: 265.01001 | G85: 127894400 | H85: 263.662323 | I85: 0.9949145808 | J85: 1 | K85: 262.42 | L85: 264.7 | M85: 262.33 | N85: 263.66 | O85: 127894400 | U85: 2000-12-27 | V85: 0 | W85: 133.3125 | X85: 200012 | Y85: 199912 | Z85: 1999-12-17 | AA85: 7 | AB85: 1 | AC85: 1.505 | AD85: 0.01128926395
A86: 71 | B86: 2017-11-29 | C86: 263.019989 | D86: 263.630005 | E86: 262.200012 | F86: 262.709991 | G86: 77512100 | H86: 261.373993 | I86: 0.994914552 | J86: 1 | K86: 261.68 | L86: 262.29 | M86: 260.87 | N86: 261.37 | O86: 77512100 | U86: 2000-12-15 | V86: 0.411 | W86: 130.968704 | X86: 200012 | Y86: 199912 | Z86: 1999-12-17 | AA86: 6 | AB86: 1 | AC86: 1.505 | AD86: 0.0114912949
A87: 72 | B87: 2017-11-28 | C87: 260.76001 | D87: 262.899994 | E87: 260.649994 | F87: 262.869995 | G87: 98971700 | H87: 261.533173 | I87: 0.9949145128 | J87: 1 | K87: 259.43 | L87: 261.56 | M87: 259.32 | N87: 261.53 | O87: 98971700 | U87: 2000-09-15 | V87: 0.375 | W87: 146 | X87: 200009 | Y87: 199909 | Z87: 1999-09-17 | AA87: 6 | AB87: 1 | AC87: 1.442 | AD87: 0.009876712329
A88: 73 | B88: 2017-11-27 | C88: 260.410004 | D88: 260.75 | E88: 260 | F88: 260.230011 | G88: 52274900 | H88: 258.906616 | I88: 0.9949145181 | J88: 1 | K88: 259.09 | L88: 259.42 | M88: 258.68 | N88: 258.91 | O88: 52274900 | U88: 2000-09-14 | V88: 0 | W88: 149.640594 | X88: 200009 | Y88: 199909 | Z88: 1999-09-17 | AA88: 5 | AB88: 1 | AC88: 1.067 | AD88: 0.0071304181
A89: 74 | B89: 2017-11-24 | C89: 260.320007 | D89: 260.480011 | E89: 260.160004 | F89: 260.359985 | G89: 27856500 | H89: 259.035919 | I89: 0.9949144797 | J89: 1 | K89: 259 | L89: 259.16 | M89: 258.84 | N89: 259.04 | O89: 27856500 | U89: 2000-06-16 | V89: 0.348 | W89: 146.593704 | X89: 200006 | Y89: 199906 | Z89: 1999-06-18 | AA89: 5 | AB89: 1 | AC89: 1.439 | AD89: 0.009816246952
A90: 75 | B90: 2017-11-22 | C90: 260 | D90: 260.149994 | E90: 259.570007 | F90: 259.76001 | G90: 45033400 | H90: 258.438995 | I90: 0.9949144789 | J90: 1 | K90: 258.68 | L90: 258.83 | M90: 258.25 | N90: 258.44 | O90: 45033400 | U90: 2000-03-17 | V90: 0.371 | W90: 146.9375 | X90: 200003 | Y90: 199903 | Z90: 1999-03-19 | AA90: 5 | AB90: 1 | AC90: 1.496 | AD90: 0.01018119949
A91: 76 | B91: 2017-11-21 | C91: 259.179993 | D91: 260.200012 | E91: 258.26001 | F91: 259.98999 | G91: 69176800 | H91: 258.667816 | I91: 0.9949145196 | J91: 1 | K91: 257.86 | L91: 258.88 | M91: 256.95 | N91: 258.67 | O91: 69176800 | U91: 1999-12-17 | V91: 0.348 | W91: 142.6875 | X91: 199912 | Y91: 199812 | Z91: 1998-12-18 | AA91: 5 | AB91: 1 | AC91: 1.445 | AD91: 0.01012702584
A92: 77 | B92: 2017-11-20 | C92: 258.140015 | D92: 258.519989 | E92: 257.859985 | F92: 258.299988 | G92: 48075500 | H92: 256.98642 | I92: 0.9949145642 | J92: 1 | K92: 256.83 | L92: 257.21 | M92: 256.55 | N92: 256.99 | O92: 48075500 | U92: 1999-09-17 | V92: 0.372 | W92: 133.75 | X92: 199909 | Y92: 199809 | Z92: 1998-09-18 | AA92: 5 | AB92: 1 | AC92: 1.489 | AD92: 0.01113271028
A93: 78 | B93: 2017-11-17 | C93: 258.220001 | D93: 258.589996 | E93: 257.769989 | F93: 257.859985 | G93: 75756800 | H93: 256.548645 | I93: 0.994914527 | J93: 1 | K93: 256.91 | L93: 257.27 | M93: 256.46 | N93: 256.55 | O93: 75756800 | U93: 1999-06-18 | V93: 0.405 | W93: 134.3125 | X93: 199906 | Y93: 199806 | Z93: 1998-06-19 | AA93: 5 | AB93: 1 | AC93: 1.476 | AD93: 0.01098929735
A94: 79 | B94: 2017-11-16 | C94: 257.519989 | D94: 259.040009 | E94: 257.470001 | F94: 258.619995 | G94: 67777000 | H94: 257.304779 | I94: 0.9949144845 | J94: 1 | K94: 256.21 | L94: 257.72 | M94: 256.16 | N94: 257.3 | O94: 67777000 | U94: 1999-03-19 | V94: 0.32 | W94: 129.6875 | X94: 199903 | Y94: 199803 | Z94: 1998-03-20 | AA94: 5 | AB94: 1 | AC94: 1.423 | AD94: 0.01097253012
A95: 80 | B95: 2017-11-15 | C95: 256.619995 | D95: 257.220001 | E95: 255.630005 | F95: 256.440002 | G95: 80811500 | H95: 255.13588 | I95: 0.9949145142 | J95: 1 | K95: 255.31 | L95: 255.91 | M95: 254.33 | N95: 255.14 | O95: 80811500 | U95: 1998-12-18 | V95: 0.392 | W95: 118.5 | X95: 199812 | Y95: 199712 | Z95: 1997-12-19 | AA95: 5 | AB95: 1 | AC95: 1.416 | AD95: 0.01194936709
A96: 81 | B96: 2017-11-14 | C96: 257.410004 | D96: 257.850006 | E96: 256.519989 | F96: 257.730011 | G96: 61315200 | H96: 256.419342 | I96: 0.9949145658 | J96: 1 | K96: 256.1 | L96: 256.54 | M96: 255.22 | N96: 256.42 | O96: 61315200 | U96: 1998-09-18 | V96: 0.359 | W96: 102.093697 | X96: 199809 | Y96: 199709 | Z96: 1997-09-19 | AA96: 5 | AB96: 1 | AC96: 1.404 | AD96: 0.01375207325
A97: 82 | B97: 2017-11-13 | C97: 257.309998 | D97: 258.589996 | E97: 257.269989 | F97: 258.329987 | G97: 50228600 | H97: 257.016266 | I97: 0.9949145625 | J97: 1 | K97: 256 | L97: 257.27 | M97: 255.96 | N97: 257.02 | O97: 50228600 | U97: 1998-06-19 | V97: 0.352 | W97: 110.0625 | X97: 199806 | Y97: 199706 | Z97: 1997-06-20 | AA97: 5 | AB97: 1 | AC97: 1.393 | AD97: 0.0126564452
A98: 83 | B98: 2017-11-10 | C98: 257.730011 | D98: 258.290009 | E98: 257.369995 | F98: 258.089996 | G98: 59984700 | H98: 256.777496 | I98: 0.9949145646 | J98: 1 | K98: 256.42 | L98: 256.98 | M98: 256.06 | N98: 256.78 | O98: 59984700 | U98: 1998-03-20 | V98: 0.313 | W98: 109.875 | X98: 199803 | Y98: 199703 | Z98: 1997-03-21 | AA98: 5 | AB98: 1 | AC98: 1.391 | AD98: 0.01265984073
A99: 84 | B99: 2017-11-09 | C99: 257.730011 | D99: 258.390015 | E99: 256.359985 | F99: 258.170013 | G99: 95085500 | H99: 256.857086 | I99: 0.9949144868 | J99: 1 | K99: 256.42 | L99: 257.08 | M99: 255.06 | N99: 256.86 | O99: 95085500 | U99: 1997-12-19 | V99: 0.38 | W99: 94.781197 | X99: 199712 | Y99: 199612 | Z99: 1996-12-20 | AA99: 5 | AB99: 1 | AC99: 1.377 | AD99: 0.01452819803
A100: 85 | B100: 2017-11-08 | C100: 258.470001 | D100: 259.220001 | E100: 258.149994 | F100: 259.109985 | G100: 50469600 | H100: 257.792297 | I100: 0.9949145611 | J100: 1 | K100: 257.16 | L100: 257.9 | M100: 256.84 | N100: 257.79 | O100: 50469600 | U100: 1997-09-19 | V100: 0.348 | W100: 95.031197 | X100: 199709 | Y100: 199609 | Z100: 1996-09-20 | AA100: 5 | AB100: 1 | AC100: 1.364 | AD100: 0.0143531813
A101: 86 | B101: 2017-11-07 | C101: 258.970001 | D101: 259.350006 | E101: 258.089996 | F101: 258.670013 | G101: 57502200 | H101: 257.354553 | I101: 0.9949145246 | J101: 1 | K101: 257.65 | L101: 258.03 | M101: 256.78 | N101: 257.35 | O101: 57502200 | U101: 1997-06-20 | V101: 0.35 | W101: 89.578102 | X101: 199706 | Y101: 199606 | Z101: 1996-06-21 | AA101: 5 | AB101: 1 | AC101: 1.368 | AD101: 0.01527158948
A102: 87 | B102: 2017-11-06 | C102: 258.299988 | D102: 259 | E102: 258.220001 | F102: 258.850006 | G102: 49652600 | H102: 257.53363 | I102: 0.994914522 | J102: 1 | K102: 256.99 | L102: 257.68 | M102: 256.91 | N102: 257.53 | O102: 49652600 | U102: 1997-03-21 | V102: 0.299 | W102: 78.4375 | X102: 199703 | Y102: 199603 | Z102: 1996-03-15 | AA102: 5 | AB102: 1 | AC102: 1.369 | AD102: 0.01745338645
A103: 88 | B103: 2017-11-03 | C103: 257.769989 | D103: 258.5 | E103: 257.299988 | F103: 258.450012 | G103: 59589700 | H103: 257.135681 | I103: 0.994914564 | J103: 1 | K103: 256.46 | L103: 257.19 | M103: 255.99 | N103: 257.14 | O103: 59589700 | U103: 1996-12-20 | V103: 0.367 | W103: 74.843697 | X103: 199612 | Y103: 199512 | Z103: 1995-12-15 | AA103: 5 | AB103: 1 | AC103: 1.355 | AD103: 0.01810439695
A104: 89 | B104: 2017-11-02 | C104: 257.410004 | D104: 257.75 | E104: 256.190002 | F104: 257.589996 | G104: 56449500 | H104: 256.280029 | I104: 0.9949145269 | J104: 1 | K104: 256.1 | L104: 256.44 | M104: 254.89 | N104: 256.28 | O104: 56449500 | U104: 1996-09-20 | V104: 0.352 | W104: 68.640602 | X104: 199609 | Y104: 199509 | Z104: 1995-09-15 | AA104: 5 | AB104: 1 | AC104: 1.37 | AD104: 0.01995903241
A105: 90 | B105: 2017-11-01 | C105: 258.040009 | D105: 258.429993 | E105: 257.070007 | F105: 257.48999 | G105: 54202700 | H105: 256.180542 | I105: 0.9949145674 | J105: 1 | K105: 256.73 | L105: 257.12 | M105: 255.76 | N105: 256.18 | O105: 54202700 | U105: 1996-06-21 | V105: 0.351 | W105: 66.8125 | X105: 199606 | Y105: 199506 | Z105: 1995-06-16 | AA105: 5 | AB105: 1 | AC105: 1.33 | AD105: 0.01990645463
A106: 91 | B106: 2017-10-31 | C106: 257.179993 | D106: 257.440002 | E106: 256.809998 | F106: 257.149994 | G106: 60304800 | H106: 255.84227 | I106: 0.9949145478 | J106: 1 | K106: 255.87 | L106: 256.13 | M106: 255.5 | N106: 255.84 | O106: 60304800 | U106: 1996-03-15 | V106: 0.285 | W106: 64.125 | X106: 199603 | Y106: 199503 | Z106: 1995-03-17 | AA106: 5 | AB106: 1 | AC106: 1.295 | AD106: 0.02019493177
A107: 92 | B107: 2017-10-30 | C107: 256.470001 | D107: 257.600006 | E107: 256.410004 | F107: 256.75 | G107: 54285700 | H107: 255.444305 | I107: 0.9949145278 | J107: 1 | K107: 255.17 | L107: 256.29 | M107: 255.11 | N107: 255.44 | O107: 54285700 | U107: 1995-12-15 | V107: 0.382 | W107: 61.8125 | X107: 199512 | Y107: 199412 | Z107: 1994-12-16 | AA107: 5 | AB107: 1 | AC107: 1.278 | AD107: 0.02067542973
A108: 93 | B108: 2017-10-27 | C108: 256.470001 | D108: 257.890015 | E108: 255.630005 | F108: 257.709991 | G108: 85562500 | H108: 256.399414 | I108: 0.9949145278 | J108: 1 | K108: 255.17 | L108: 256.58 | M108: 254.33 | N108: 256.4 | O108: 85562500 | U108: 1995-09-15 | V108: 0.312 | W108: 58.4375 | X108: 199509 | Y108: 199409 | Z108: 1994-09-19 | AA108: 5 | AB108: 1 | AC108: 1.259 | AD108: 0.02154438503
A109: 94 | B109: 2017-10-26 | C109: 255.990005 | D109: 256.299988 | E109: 255.479996 | F109: 255.619995 | G109: 69798000 | H109: 254.320053 | I109: 0.9949145528 | J109: 1 | K109: 254.69 | L109: 255 | M109: 254.18 | N109: 254.32 | O109: 69798000 | U109: 1995-06-16 | V109: 0.316 | W109: 53.9687 | X109: 199506 | Y109: 199406 | Z109: 1994-06-17 | AA109: 6 | AB109: 1 | AC109: 1.235 | AD109: 0.0228836344
A110: 95 | B110: 2017-10-25 | C110: 256.179993 | D110: 256.309998 | E110: 254 | F110: 255.289993 | G110: 103715300 | H110: 253.99173 | I110: 0.9949145559 | J110: 1 | K110: 254.88 | L110: 255.01 | M110: 252.71 | N110: 253.99 | O110: 103715300 | U110: 1995-03-17 | V110: 0.268 | W110: 49.5625 | X110: 199503 | Y110: 199403 | Z110: 1994-03-18 | AA110: 6 | AB110: 1 | AC110: 1.224 | AD110: 0.02469609079
A111: 96 | B111: 2017-10-24 | C111: 256.600006 | D111: 256.829987 | E111: 256.149994 | F111: 256.559998 | G111: 66935900 | H111: 255.255264 | I111: 0.9949145073 | J111: 1 | K111: 255.3 | L111: 255.52 | M111: 254.85 | N111: 255.26 | O111: 66935900 | U111: 1994-12-16 | V111: 0.363 | W111: 45.75 | X111: 199412 | Y111: 199312 | Z111: 1993-12-17 | AA111: 6 | AB111: 1 | AC111: 1.227 | AD111: 0.02681967213
A112: 97 | B112: 2017-10-23 | C112: 257.480011 | D112: 257.51001 | E112: 256.019989 | F112: 256.109985 | G112: 63915300 | H112: 254.807541 | I112: 0.994914513 | J112: 1 | K112: 256.17 | L112: 256.2 | M112: 254.72 | N112: 254.81 | O112: 63915300 | U112: 1994-09-19 | V112: 0 | W112: 47.0625 | X112: 199409 | Y112: 199309 | Z112: 1993-09-17 | AA112: 6 | AB112: 1 | AC112: 1.181 | AD112: 0.02509428951
A113: 98 | B113: 2017-10-20 | C113: 256.700012 | D113: 257.140015 | E113: 255.770004 | F113: 257.109985 | G113: 89176400 | H113: 255.80246 | I113: 0.9949145304 | J113: 1 | K113: 255.39 | L113: 255.83 | M113: 254.47 | N113: 255.8 | O113: 89176400 | U113: 1994-09-16 | V113: 0.288 | W113: 47.015598 | X113: 199409 | Y113: 199309 | Z113: 1993-09-17 | AA113: 5 | AB113: 1 | AC113: 1.181 | AD113: 0.02511932317
A114: 99 | B114: 2017-10-19 | C114: 254.830002 | D114: 255.830002 | E114: 254.350006 | F114: 255.789993 | G114: 61903800 | H114: 254.489182 | I114: 0.9949145352 | J114: 1 | K114: 253.53 | L114: 254.53 | M114: 253.06 | N114: 254.49 | O114: 61903800 | U114: 1994-06-17 | V114: 0.305 | W114: 45.875 | X114: 199406 | Y114: 199306 | Z114: 1993-06-18 | AA114: 5 | AB114: 1 | AC114: 1.179 | AD114: 0.02570027248
A115: 100 | B115: 2017-10-18 | C115: 255.899994 | D115: 255.949997 | E115: 255.5 | F115: 255.720001 | G115: 40888300 | H115: 254.41954 | I115: 0.994914512 | J115: 1 | K115: 254.6 | L115: 254.65 | M115: 254.2 | N115: 254.42 | O115: 40888300 | U115: 1994-03-18 | V115: 0.271 | W115: 46.9687 | X115: 199403 | Y115: 199303 | Z115: 1993-03-19 | AA115: 5 | AB115: 1 | AC115: 1.192 | AD115: 0.0253786032
A116: 101 | B116: 2017-10-17 | C116: 255.229996 | D116: 255.520004 | E116: 254.979996 | F116: 255.470001 | G116: 31561000 | H116: 254.170822 | I116: 0.9949145536 | J116: 1 | K116: 253.93 | L116: 254.22 | M116: 253.68 | N116: 254.17 | O116: 31561000 | U116: 1993-12-17 | V116: 0.317 | W116: 46.5625 | X116: 199312 | Y116: 199212 | Z116: 1993-03-19 | AA116: 4 | AB116: 0 | AC116: 1.134 | AD116: 0.02435436242
A117: 102 | B117: 2017-10-16 | C117: 255.210007 | D117: 255.509995 | E117: 254.820007 | F117: 255.289993 | G117: 38221700 | H117: 253.99173 | I117: 0.9949145559 | J117: 1 | K117: 253.91 | L117: 254.21 | M117: 253.52 | N117: 253.99 | O117: 38221700 | U117: 1993-09-17 | V117: 0.286 | W117: 45.8125 | X117: 199309 | Y117: 199209 | Z117: 1993-03-19 | AA117: 3 | AB117: 0 | AC117: 0.817 | AD117: 0.01783356071
A118: 103 | B118: 2017-10-13 | C118: 255.139999 | D118: 255.270004 | E118: 254.639999 | F118: 254.949997 | G118: 54800400 | H118: 253.653458 | I118: 0.9949145361 | J118: 1 | K118: 253.84 | L118: 253.97 | M118: 253.35 | N118: 253.65 | O118: 54800400 | U118: 1993-06-18 | V118: 0.318 | W118: 44.5 | X118: 199306 | Y118: 199206 | Z118: 1993-03-19 | AA118: 2 | AB118: 0 | AC118: 0.531 | AD118: 0.01193258427
A119: 104 | B119: 2017-10-12 | C119: 254.660004 | D119: 255.059998 | E119: 254.369995 | F119: 254.639999 | G119: 47065100 | H119: 253.345032 | I119: 0.9949145185 | J119: 1 | K119: 253.36 | L119: 253.76 | M119: 253.08 | N119: 253.35 | O119: 47065100 | U119: 1993-03-19 | V119: 0.213 | W119: 45.0312 | X119: 199303 | Y119: 199203 | Z119: 1993-03-19 | AA119: 1 | AB119: 1 | AC119: 0.213 | AD119: 0.004730053829
A120: 105 | B120: 2017-10-11 | C120: 254.509995 | D120: 255.020004 | E120: 254.320007 | F120: 255.020004 | G120: 47674300 | H120: 253.723114 | I120: 0.9949145558 | J120: 1 | K120: 253.22 | L120: 253.72 | M120: 253.03 | N120: 253.72 | O120: 47674300
A121: 106 | B121: 2017-10-10 | C121: 254.600006 | D121: 255.050003 | E121: 253.979996 | F121: 254.619995 | G121: 43057400 | H121: 253.325134 | I121: 0.9949145353 | J121: 1 | K121: 253.31 | L121: 253.75 | M121: 252.69 | N121: 253.33 | O121: 43057400
A122: 107 | B122: 2017-10-09 | C122: 254.630005 | D122: 254.699997 | E122: 253.649994 | F122: 253.949997 | G122: 35803100 | H122: 252.658539 | I122: 0.9949145185 | J122: 1 | K122: 253.34 | L122: 253.4 | M122: 252.36 | N122: 252.66 | O122: 35803100
A123: 108 | B123: 2017-10-06 | C123: 254.149994 | D123: 254.699997 | E123: 253.850006 | F123: 254.369995 | G123: 80646000 | H123: 253.076401 | I123: 0.9949145181 | J123: 1 | K123: 252.86 | L123: 253.4 | M123: 252.56 | N123: 253.08 | O123: 80646000
A124: 109 | B124: 2017-10-05 | C124: 253.539993 | D124: 254.679993 | E124: 253.199997 | F124: 254.660004 | G124: 63522800 | H124: 253.364944 | I124: 0.9949145528 | J124: 1 | K124: 252.25 | L124: 253.38 | M124: 251.91 | N124: 253.36 | O124: 63522800
A125: 110 | B125: 2017-10-04 | C125: 252.690002 | D125: 253.440002 | E125: 252.559998 | F125: 253.160004 | G125: 55953600 | H125: 251.872574 | I125: 0.99491456 | J125: 1 | K125: 251.4 | L125: 252.15 | M125: 251.28 | N125: 251.87 | O125: 55953600
A126: 111 | B126: 2017-10-03 | C126: 252.320007 | D126: 252.889999 | E126: 252.229996 | F126: 252.860001 | G126: 66810200 | H126: 251.574097 | I126: 0.9949145614 | J126: 1 | K126: 251.04 | L126: 251.6 | M126: 250.95 | N126: 251.57 | O126: 66810200
A127: 112 | B127: 2017-10-02 | C127: 251.490005 | D127: 252.320007 | E127: 251.289993 | F127: 252.320007 | G127: 59023000 | H127: 251.036835 | I127: 0.9949145055 | J127: 1 | K127: 250.21 | L127: 251.04 | M127: 250.01 | N127: 251.04 | O127: 59023000
A128: 113 | B128: 2017-09-29 | C128: 250.339996 | D128: 251.320007 | E128: 250.130005 | F128: 251.229996 | G128: 85578000 | H128: 249.952377 | I128: 0.9949145444 | J128: 1 | K128: 249.07 | L128: 250.04 | M128: 248.86 | N128: 249.95 | O128: 85578000
A129: 114 | B129: 2017-09-28 | C129: 249.729996 | D129: 250.440002 | E129: 249.630005 | F129: 250.350006 | G129: 44778800 | H129: 249.076859 | I129: 0.9949145318 | J129: 1 | K129: 248.46 | L129: 249.17 | M129: 248.36 | N129: 249.08 | O129: 44778800
A130: 115 | B130: 2017-09-27 | C130: 249.880005 | D130: 250.490005 | E130: 248.869995 | F130: 250.050003 | G130: 81001400 | H130: 248.778381 | I130: 0.9949145292 | J130: 1 | K130: 248.61 | L130: 249.22 | M130: 247.6 | N130: 248.78 | O130: 81001400
A131: 116 | B131: 2017-09-26 | C131: 249.419998 | D131: 249.699997 | E131: 248.809998 | F131: 249.080002 | G131: 54082000 | H131: 247.813309 | I131: 0.9949145135 | J131: 1 | K131: 248.15 | L131: 248.43 | M131: 247.54 | N131: 247.81 | O131: 54082000
A132: 117 | B132: 2017-09-25 | C132: 249.149994 | D132: 249.550003 | E132: 248.080002 | F132: 248.929993 | G132: 57064400 | H132: 247.664063 | I132: 0.994914514 | J132: 1 | K132: 247.88 | L132: 248.28 | M132: 246.82 | N132: 247.66 | O132: 57064400
A133: 118 | B133: 2017-09-22 | C133: 249.050003 | D133: 249.630005 | E133: 249.020004 | F133: 249.440002 | G133: 51214000 | H133: 248.171478 | I133: 0.9949145125 | J133: 1 | K133: 247.78 | L133: 248.36 | M133: 247.75 | N133: 248.17 | O133: 51214000
A134: 119 | B134: 2017-09-21 | C134: 249.880005 | D134: 249.979996 | E134: 249.190002 | F134: 249.389999 | G134: 48211400 | H134: 248.121735 | I134: 0.9949145354 | J134: 1 | K134: 248.61 | L134: 248.71 | M134: 247.92 | N134: 248.12 | O134: 48211400
A135: 120 | B135: 2017-09-20 | C135: 250.070007 | D135: 250.190002 | E135: 248.919998 | F135: 250.059998 | G135: 59574100 | H135: 248.78833 | I135: 0.9949145485 | J135: 1 | K135: 248.8 | L135: 248.92 | M135: 247.65 | N135: 248.79 | O135: 59574100
A136: 121 | B136: 2017-09-19 | C136: 250 | D136: 250.070007 | E136: 249.600006 | F136: 249.970001 | G136: 47108100 | H136: 248.698792 | I136: 0.9949145538 | J136: 1 | K136: 248.73 | L136: 248.8 | M136: 248.33 | N136: 248.7 | O136: 47108100
A137: 122 | B137: 2017-09-18 | C137: 249.610001 | D137: 250.119995 | E137: 249.279999 | F137: 249.720001 | G137: 46235200 | H137: 248.450058 | I137: 0.9949145323 | J137: 1 | K137: 248.34 | L137: 248.85 | M137: 248.01 | N137: 248.45 | O137: 46235200
A138: 123 | B138: 2017-09-15 | C138: 248.690002 | D138: 249.289993 | E138: 248.570007 | F138: 249.190002 | G138: 95432400 | H138: 247.92276 | I138: 0.9949145552 | J138: 1 | K138: 247.43 | L138: 248.02 | M138: 247.31 | N138: 247.92 | O138: 95432400
A139: 124 | B139: 2017-09-14 | C139: 249.800003 | D139: 250.320007 | E139: 249.600006 | F139: 250.089996 | G139: 95446300 | H139: 247.589447 | I139: 0.9900014033 | J139: 1 | K139: 247.3 | L139: 247.82 | M139: 247.1 | N139: 247.59 | O139: 95446300
A140: 125 | B140: 2017-09-13 | C140: 249.720001 | D140: 250.210007 | E140: 249.589996 | F140: 250.169998 | G140: 59228000 | H140: 247.668655 | I140: 0.9900014269 | J140: 1 | K140: 247.22 | L140: 247.71 | M140: 247.09 | N140: 247.67 | O140: 59228000
A141: 126 | B141: 2017-09-12 | C141: 249.630005 | D141: 250.089996 | E141: 249.419998 | F141: 250.050003 | G141: 56896000 | H141: 247.549866 | I141: 0.9900014518 | J141: 1 | K141: 247.13 | L141: 247.59 | M141: 246.93 | N141: 247.55 | O141: 56896000
A142: 127 | B142: 2017-09-11 | C142: 248.039993 | D142: 249.300003 | E142: 248.020004 | F142: 249.210007 | G142: 71364800 | H142: 246.718246 | I142: 0.9900013606 | J142: 1 | K142: 245.56 | L142: 246.81 | M142: 245.54 | N142: 246.72 | O142: 71364800
A143: 128 | B143: 2017-09-08 | C143: 246.539993 | D143: 247.110001 | E143: 246.300003 | F143: 246.580002 | G143: 63832800 | H143: 244.114548 | I143: 0.9900014033 | J143: 1 | K143: 244.07 | L143: 244.64 | M143: 243.84 | N143: 244.11 | O143: 63832800
A144: 129 | B144: 2017-09-07 | C144: 247.25 | D144: 247.270004 | E144: 246.399994 | F144: 246.869995 | G144: 58034700 | H144: 244.401642 | I144: 0.9900014054 | J144: 1 | K144: 244.78 | L144: 244.8 | M144: 243.94 | N144: 244.4 | O144: 58034700
A145: 130 | B145: 2017-09-06 | C145: 246.839996 | D145: 247.279999 | E145: 246.229996 | F145: 246.899994 | G145: 57916900 | H145: 244.431335 | I145: =IF(F145=0,1,H145/F145) -> 0.9900013809 | J145: =INDEX(OFFSET($T$15,0,0,$S$13+1,1),MATCH(B145,OFFSET($Q$15,0,0,$S$13+1,1),-1)) -> 1 | K145: =ROUND($I145*C145,2) -> 244.37 | L145: =ROUND($I145*D145,2) -> 244.81 | M145: =ROUND($I145*E145,2) -> 243.77 | N145: =ROUND($I145*F145,2) -> 244.43 | O145: =G145*J145 -> 57916900
A146: 131 | B146: 2017-09-05 | C146: 247.259995 | D146: 247.520004 | E146: 244.949997 | F146: 246.059998 | G146: 91398800 | H146: 243.599747 | I146: 0.9900014183 | J146: 1 | K146: 244.79 | L146: 245.05 | M146: 242.5 | N146: 243.6 | O146: 91398800
A147: 132 | B147: 2017-09-01 | C147: 247.919998 | D147: 248.330002 | E147: 247.669998 | F147: 247.839996 | G147: 62007000 | H147: 245.361938 | I147: 0.9900013798 | J147: 1 | K147: 245.44 | L147: 245.85 | M147: 245.19 | N147: 245.36 | O147: 62007000
A148: 133 | B148: 2017-08-31 | C148: 246.720001 | D148: 247.770004 | E148: 246.050003 | F148: 247.490005 | G148: 103803900 | H148: 245.015457 | I148: 0.9900014225 | J148: 1 | K148: 244.25 | L148: 245.29 | M148: 243.59 | N148: 245.02 | O148: 103803900
A149: 134 | B149: 2017-08-30 | C149: 244.830002 | D149: 246.320007 | E149: 244.619995 | F149: 246.009995 | G149: 62030800 | H149: 243.550232 | I149: 0.9900013697 | J149: 1 | K149: 242.38 | L149: 243.86 | M149: 242.17 | N149: 243.55 | O149: 62030800
A150: 135 | B150: 2017-08-29 | C150: 243.059998 | D150: 245.149994 | E150: 242.929993 | F150: 244.850006 | G150: 51135700 | H150: 242.401855 | I150: 0.9900014256 | J150: 1 | K150: 240.63 | L150: 242.7 | M150: 240.5 | N150: 242.4 | O150: 51135700
A151: 136 | B151: 2017-08-28 | C151: 245.169998 | D151: 245.199997 | E151: 244.089996 | F151: 244.570007 | G151: 40565600 | H151: 242.124649 | I151: 0.9900013987 | J151: 1 | K151: 242.72 | L151: 242.75 | M151: 241.65 | N151: 242.12 | O151: 40565600
A152: 137 | B152: 2017-08-25 | C152: 244.899994 | D152: 245.610001 | E152: 244.389999 | F152: 244.559998 | G152: 64445900 | H152: 242.114731 | I152: 0.9900013615 | J152: 1 | K152: 242.45 | L152: 243.15 | M152: 241.95 | N152: 242.11 | O152: 64445900
A153: 138 | B153: 2017-08-24 | C153: 245 | D153: 245.179993 | E153: 243.75 | F153: 243.990005 | G153: 49730500 | H153: 241.550446 | I153: 0.9900013978 | J153: 1 | K153: 242.55 | L153: 242.73 | M153: 241.31 | N153: 241.55 | O153: 49730500
A154: 139 | B154: 2017-08-23 | C154: 244.330002 | D154: 245.050003 | E154: 244.160004 | F154: 244.559998 | G154: 50203800 | H154: 242.114731 | I154: 0.9900013615 | J154: 1 | K154: 241.89 | L154: 242.6 | M154: 241.72 | N154: 242.11 | O154: 50203800
A155: 140 | B155: 2017-08-22 | C155: 243.570007 | D155: 245.619995 | E155: 243.550003 | F155: 245.440002 | G155: 63140100 | H155: 242.985947 | I155: 0.9900014057 | J155: 1 | K155: 241.13 | L155: 243.16 | M155: 241.11 | N155: 242.99 | O155: 63140100
A156: 141 | B156: 2017-08-21 | C156: 242.639999 | D156: 243.199997 | E156: 241.830002 | F156: 242.899994 | G156: 65469700 | H156: 240.471344 | I156: 0.9900014407 | J156: 1 | K156: 240.21 | L156: 240.77 | M156: 239.41 | N156: 240.47 | O156: 65469700
A157: 142 | B157: 2017-08-18 | C157: 242.899994 | D157: 244.190002 | E157: 242.199997 | F157: 242.710007 | G157: 136748000 | H157: 240.283249 | I157: 0.9900014094 | J157: 1 | K157: 240.47 | L157: 241.75 | M157: 239.78 | N157: 240.28 | O157: 136748000
A158: 143 | B158: 2017-08-17 | C158: 246.240005 | D158: 246.600006 | E158: 243.089996 | F158: 243.089996 | G158: 128490400 | H158: 240.659439 | I158: 0.9900014108 | J158: 1 | K158: 243.78 | L158: 244.13 | M158: 240.66 | N158: 240.66 | O158: 128490400
A159: 144 | B159: 2017-08-16 | C159: 247.110001 | D159: 247.570007 | E159: 246.449997 | F159: 246.940002 | G159: 56715500 | H159: 244.470947 | I159: 0.9900013972 | J159: 1 | K159: 244.64 | L159: 245.09 | M159: 243.99 | N159: 244.47 | O159: 56715500
A160: 145 | B160: 2017-08-15 | C160: 246.979996 | D160: 247 | E160: 246.160004 | F160: 246.509995 | G160: 55242700 | H160: 244.045242 | I160: 0.9900014074 | J160: 1 | K160: 244.51 | L160: 244.53 | M160: 243.7 | N160: 244.05 | O160: 55242700
A161: 146 | B161: 2017-08-14 | C161: 245.589996 | D161: 246.789993 | E161: 245.550003 | F161: 246.539993 | G161: 72139000 | H161: 244.074951 | I161: 0.9900014518 | J161: 1 | K161: 243.13 | L161: 244.32 | M161: 243.09 | N161: 244.07 | O161: 72139000
A162: 147 | B162: 2017-08-11 | C162: 244.020004 | D162: 244.800003 | E162: 243.75 | F162: 244.119995 | G162: 74869900 | H162: 241.679138 | I162: 0.9900014048 | J162: 1 | K162: 241.58 | L162: 242.35 | M162: 241.31 | N162: 241.68 | O162: 74869900
A163: 148 | B163: 2017-08-10 | C163: 246.289993 | D163: 246.440002 | E163: 243.699997 | F163: 243.759995 | G163: 120479500 | H163: 241.322739 | I163: 0.990001411 | J163: 1 | K163: 243.83 | L163: 243.98 | M163: 241.26 | N163: 241.32 | O163: 120479500
A164: 149 | B164: 2017-08-09 | C164: 246.470001 | D164: 247.309998 | E164: 246.059998 | F164: 247.25 | G164: 62632600 | H164: 244.777847 | I164: 0.9900014034 | J164: 1 | K164: 244.01 | L164: 244.84 | M164: 243.6 | N164: 244.78 | O164: 62632600
A165: 150 | B165: 2017-08-08 | C165: 247.509995 | D165: 248.910004 | E165: 246.830002 | F165: 247.259995 | G165: 61719400 | H165: 244.78775 | I165: 0.9900014355 | J165: 1 | K165: 245.04 | L165: 246.42 | M165: 244.36 | N165: 244.79 | O165: 61719400
A166: 151 | B166: 2017-08-07 | C166: 247.490005 | D166: 247.869995 | E166: 247.369995 | F166: 247.869995 | G166: 31995000 | H166: 245.391647 | I166: 0.9900014199 | J166: 1 | K166: 245.02 | L166: 245.39 | M166: 244.9 | N166: 245.39 | O166: 31995000
A167: 152 | B167: 2017-08-04 | C167: 247.520004 | D167: 247.789993 | E167: 246.970001 | F167: 247.410004 | G167: 60191800 | H167: 244.936249 | I167: 0.9900013946 | J167: 1 | K167: 245.05 | L167: 245.31 | M167: 244.5 | N167: 244.94 | O167: 60191800
A168: 153 | B168: 2017-08-03 | C168: 247.309998 | D168: 247.339996 | E168: 246.639999 | F168: 246.960007 | G168: 40856000 | H168: 244.490753 | I168: 0.9900014013 | J168: 1 | K168: 244.84 | L168: 244.87 | M168: 244.17 | N168: 244.49 | O168: 40856000
A169: 154 | B169: 2017-08-02 | C169: 247.470001 | D169: 247.600006 | E169: 246.369995 | F169: 247.440002 | G169: 47211200 | H169: 244.965942 | I169: 0.9900013742 | J169: 1 | K169: 245 | L169: 245.12 | M169: 243.91 | N169: 244.97 | O169: 47211200
A170: 155 | B170: 2017-08-01 | C170: 247.460007 | D170: 247.5 | E170: 246.720001 | F170: 247.320007 | G170: 55050400 | H170: 244.847153 | I170: 0.9900013993 | J170: 1 | K170: 244.99 | L170: 245.03 | M170: 244.25 | N170: 244.85 | O170: 55050400
A171: 156 | B171: 2017-07-31 | C171: 247.369995 | D171: 247.479996 | E171: 246.529999 | F171: 246.770004 | G171: 65838700 | H171: 244.302643 | I171: 0.9900013739 | J171: 1 | K171: 244.9 | L171: 245.01 | M171: 244.07 | N171: 244.3 | O171: 65838700
A172: 157 | B172: 2017-07-28 | C172: 246.649994 | D172: 247.059998 | E172: 246.130005 | F172: 246.910004 | G172: 50088400 | H172: 244.441254 | I172: 0.9900014177 | J172: 1 | K172: 244.18 | L172: 244.59 | M172: 243.67 | N172: 244.44 | O172: 50088400
A173: 158 | B173: 2017-07-27 | C173: 247.960007 | D173: 248 | E173: 245.679993 | F173: 247.199997 | G173: 70766600 | H173: 244.728348 | I173: 0.9900014198 | J173: 1 | K173: 245.48 | L173: 245.52 | M173: 243.22 | N173: 244.73 | O173: 70766600
A174: 159 | B174: 2017-07-26 | C174: 247.75 | D174: 247.789993 | E174: 247.130005 | F174: 247.429993 | G174: 47575400 | H174: 244.956039 | I174: 0.9900013981 | J174: 1 | K174: 245.27 | L174: 245.31 | M174: 244.66 | N174: 244.96 | O174: 47575400
A175: 160 | B175: 2017-07-25 | C175: 247.679993 | D175: 247.800003 | E175: 247.160004 | F175: 247.419998 | G175: 54915600 | H175: 244.946152 | I175: 0.9900014307 | J175: 1 | K175: 245.2 | L175: 245.32 | M175: 244.69 | N175: 244.95 | O175: 54915600
A176: 161 | B176: 2017-07-24 | C176: 246.789993 | D176: 246.979996 | E176: 246.279999 | F176: 246.820007 | G176: 46622300 | H176: 244.352158 | I176: 0.9900014224 | J176: 1 | K176: 244.32 | L176: 244.51 | M176: 243.82 | N176: 244.35 | O176: 46622300
A177: 162 | B177: 2017-07-21 | C177: 246.440002 | D177: 246.910004 | E177: 246.179993 | F177: 246.880005 | G177: 82340800 | H177: 244.41156 | I177: 0.9900014381 | J177: 1 | K177: 243.98 | L177: 244.44 | M177: 243.72 | N177: 244.41 | O177: 82340800
A178: 163 | B178: 2017-07-20 | C178: 247.279999 | D178: 247.419998 | E178: 246.470001 | F178: 247.100006 | G178: 47135200 | H178: 244.629349 | I178: 0.9900013883 | J178: 1 | K178: 244.81 | L178: 244.95 | M178: 244.01 | N178: 244.63 | O178: 47135200
A179: 164 | B179: 2017-07-19 | C179: 246.020004 | D179: 247 | E179: 246.009995 | F179: 246.990005 | G179: 51034300 | H179: 244.520447 | I179: 0.9900013849 | J179: 1 | K179: 243.56 | L179: 244.53 | M179: 243.55 | N179: 244.52 | O179: 51034300
A180: 165 | B180: 2017-07-18 | C180: 245.059998 | D180: 245.720001 | E180: 244.669998 | F180: 245.660004 | G180: 42742500 | H180: 243.203735 | I180: 0.9900013476 | J180: 1 | K180: 242.61 | L180: 243.26 | M180: 242.22 | N180: 243.2 | O180: 42742500
A181: 166 | B181: 2017-07-17 | C181: 245.470001 | D181: 245.910004 | E181: 245.330002 | F181: 245.529999 | G181: 33531900 | H181: 243.075043 | I181: 0.990001401 | J181: 1 | K181: 243.02 | L181: 243.45 | M181: 242.88 | N181: 243.08 | O181: 33531900
A182: 167 | B182: 2017-07-14 | C182: 244.419998 | D182: 245.970001 | E182: 244.309998 | F182: 245.559998 | G182: 60262700 | H182: 243.104752 | I182: 0.9900014415 | J182: 1 | K182: 241.98 | L182: 243.51 | M182: 241.87 | N182: 243.1 | O182: 60262700
A183: 168 | B183: 2017-07-13 | C183: 244.020004 | D183: 244.550003 | E183: 243.759995 | F183: 244.419998 | G183: 39471600 | H183: 241.976151 | I183: 0.9900014442 | J183: 1 | K183: 241.58 | L183: 242.1 | M183: 241.32 | N183: 241.98 | O183: 39471600
A184: 169 | B184: 2017-07-12 | C184: 243.300003 | D184: 244.199997 | E184: 243.300003 | F184: 244.009995 | G184: 59610400 | H184: 241.570236 | I184: 0.9900013973 | J184: 1 | K184: 240.87 | L184: 241.76 | M184: 240.87 | N184: 241.57 | O184: 59610400
A185: 170 | B185: 2017-07-11 | C185: 242.369995 | D185: 242.550003 | E185: 240.850006 | F185: 242.190002 | G185: 50354600 | H185: 239.768433 | I185: 0.9900013668 | J185: 1 | K185: 239.95 | L185: 240.12 | M185: 238.44 | N185: 239.77 | O185: 50354600
A186: 171 | B186: 2017-07-10 | C186: 242.110001 | D186: 242.800003 | E186: 241.759995 | F186: 242.369995 | G186: 36663300 | H186: 239.94664 | I186: 0.9900014232 | J186: 1 | K186: 239.69 | L186: 240.37 | M186: 239.34 | N186: 239.95 | O186: 36663300
A187: 172 | B187: 2017-07-07 | C187: 241.210007 | D187: 242.279999 | E187: 240.559998 | F187: 242.110001 | G187: 57972300 | H187: 239.68924 | I187: 0.9900014002 | J187: 1 | K187: 238.8 | L187: 239.86 | M187: 238.15 | N187: 239.69 | O187: 57972300
A188: 173 | B188: 2017-07-06 | C188: 241.889999 | D188: 242.029999 | E188: 240.339996 | F188: 240.550003 | G188: 65400800 | H188: 238.144836 | I188: 0.9900013845 | J188: 1 | K188: 239.47 | L188: 239.61 | M188: 237.94 | N188: 238.14 | O188: 65400800
A189: 174 | B189: 2017-07-05 | C189: 242.630005 | D189: 243.009995 | E189: 241.699997 | F189: 242.770004 | G189: 54427600 | H189: 240.342651 | I189: 0.9900014295 | J189: 1 | K189: 240.2 | L189: 240.58 | M189: 239.28 | N189: 240.34 | O189: 54427600
A190: 175 | B190: 2017-07-03 | C190: 242.880005 | D190: 243.380005 | E190: 242.210007 | F190: 242.210007 | G190: 39153800 | H190: 239.788254 | I190: 0.9900014329 | J190: 1 | K190: 240.45 | L190: 240.95 | M190: 239.79 | N190: 239.79 | O190: 39153800
A191: 176 | B191: 2017-06-30 | C191: 242.279999 | D191: 242.710007 | E191: 241.580002 | F191: 241.800003 | G191: 86820700 | H191: 239.382355 | I191: 0.9900014559 | J191: 1 | K191: 239.86 | L191: 240.28 | M191: 239.16 | N191: 239.38 | O191: 86820700
A192: 177 | B192: 2017-06-29 | C192: 243.660004 | D192: 243.720001 | E192: 239.960007 | F192: 241.350006 | G192: 106949700 | H192: 238.936844 | I192: 0.9900014007 | J192: 1 | K192: 241.22 | L192: 241.28 | M192: 237.56 | N192: 238.94 | O192: 106949700
A193: 178 | B193: 2017-06-28 | C193: 242.5 | D193: 243.720001 | E193: 242.229996 | F193: 243.490005 | G193: 70042600 | H193: 241.05545 | I193: 0.9900014171 | J193: 1 | K193: 240.08 | L193: 241.28 | M193: 239.81 | N193: 241.06 | O193: 70042600
A194: 179 | B194: 2017-06-27 | C194: 243.039993 | D194: 243.380005 | E194: 241.309998 | F194: 241.330002 | G194: 82247700 | H194: 238.917038 | I194: 0.9900013924 | J194: 1 | K194: 240.61 | L194: 240.95 | M194: 238.9 | N194: 238.92 | O194: 82247700
A195: 180 | B195: 2017-06-26 | C195: 243.899994 | D195: 244.380005 | E195: 243.050003 | F195: 243.289993 | G195: 56700500 | H195: 240.857422 | I195: 0.990001352 | J195: 1 | K195: 241.46 | L195: 241.94 | M195: 240.62 | N195: 240.86 | O195: 56700500
A196: 181 | B196: 2017-06-23 | C196: 242.910004 | D196: 243.509995 | E196: 242.470001 | F196: 243.130005 | G196: 66986800 | H196: 240.699036 | I196: 0.9900013616 | J196: 1 | K196: 240.48 | L196: 241.08 | M196: 240.05 | N196: 240.7 | O196: 66986800
A197: 182 | B197: 2017-06-22 | C197: 242.960007 | D197: 243.529999 | E197: 242.639999 | F197: 242.839996 | G197: 44148100 | H197: 240.411942 | I197: 0.9900014246 | J197: 1 | K197: 240.53 | L197: 241.1 | M197: 240.21 | N197: 240.41 | O197: 44148100
A198: 183 | B198: 2017-06-21 | C198: 243.460007 | D198: 243.589996 | E198: 242.410004 | F198: 242.949997 | G198: 55977600 | H198: 240.520828 | I198: 0.9900013623 | J198: 1 | K198: 241.03 | L198: 241.15 | M198: 239.99 | N198: 240.52 | O198: 55977600
A199: 184 | B199: 2017-06-20 | C199: 244.25 | D199: 244.259995 | E199: 242.990005 | F199: 243.009995 | G199: 56906400 | H199: 240.580231 | I199: 0.9900013825 | J199: 1 | K199: 241.81 | L199: 241.82 | M199: 240.56 | N199: 240.58 | O199: 56906400
A200: 185 | B200: 2017-06-19 | C200: 243.589996 | D200: 244.729996 | E200: 243.479996 | F200: 244.660004 | G200: 65123800 | H200: 242.213745 | I200: 0.9900013939 | J200: 1 | K200: 241.15 | L200: 242.28 | M200: 241.05 | N200: 242.21 | O200: 65123800
... 6141 more rows

Sheet CalculationsAndCharts
A1: RocketRSI
A2: =InputPriceData!A1 -> SPDR S&P 500 ETF (SPY) -NYSEArca (Daily) | R2: Chart Controls
A4: User Charting Controls | E4: Click to Shift Chart One Bar:
A5: Data Control
A6: =InputPriceData!$B$10 -> 6326 | B6: Available Input Data Rows | E6: Earliest: | F6: =OFFSET(InputPriceData!B15,CalculationsAndCharts!A6,0,1,1) -> 1993-01-29
B7: Use Close Adjusted: | C7: FALSE | E7: Latest: | F7: =OFFSET(InputPriceData!B15,1,0,1,1) -> 2018-03-13
A8: =MIN(A6-A11,LOOKUP(2,1/(B:B<>0),ROW(A:A))-32) -> 1000 | B8: Logically Available for Calc / Plot | E8: $ Change: | F8: =G33-G34 -> -1.089996
F10: Y-axis Range | R10: 2
A11: 59 | B11: Input Data Offset (Pan) | E11: Max High+ | F11: =CEILING(MAX(MAX(OFFSET($E$33,0,0,$A$12,1)))+2*F14,0.1) -> 272.3
A12: 258 | B12: Data Points to Plot (Zoom) | E12: Min Low- | F12: =FLOOR(MIN(MIN(OFFSET($F$33,0,0,$A$12,1)))-2*F14,0.1) -> 216.6
B13: First: | C13: =OFFSET(B32,A12,0,1,1) -> 2016-12-07 | E13: White space %: | F13: 0.05
B14: ="Last: " & IF(OFFSET(InputPriceData!P15,1+A11,0,1,1)="","",TEXT(OFFSET(InputPriceData!P15,1+A11,0,1,1),"H:MM AM/PM")) -> Last: | C14: =B33 -> 2017-12-14 | E14: Allowance: | F14: =FLOOR((CEILING(MAX(MAX(OFFSET($E$33,0,0,$A$12,1))),1)-FLOOR(MIN(MIN(OFFSET($F$33,0,0,$A$12,1))),1))*F13,0.01) -> 2.35
A15: User Controls
A16: 8 | B16: Smooth Length | C16: PDS: | D16: =MAX(A16:A17)+1 -> 11 | E16: FirstAvail: | F16: =LogicallyAvailableRows-A16 -> 992
A17: 10 | B17: RSI Length
C18: Super Smoother Coefficient Calculations | D18: a1: | E18: =EXP(-1.414*3.14159/A16) -> 0.5739138205
D19: b1: | E19: =2*E18*COS(RADIANS(1.414*180/A16)) -> 0.9753719409
D20: c1: | E20: =1-E21-E22 -> 0.3540051324
D21: c2: | E21: =E19 -> 0.9753719409
D22: c3: | E22: =-E18*E18 -> -0.3293770733
A23: Help! I would like to plot data
A24: From | B24: 2016-12-07 | C24: =OFFSET(InputPriceData!$A$15,MATCH(B24,OFFSET(InputPriceData!B15,1,0,InputPriceData!$B$10,1),0),0,1,1)-C25 -> 258 | E24: 12
A25: To | B25: 2017-12-14 | C25: =OFFSET(InputPriceData!$A$15,MATCH(B25,OFFSET(InputPriceData!$B$15,1,0,InputPriceData!$B$10,1),0),0,1,1)-1 -> 59 | E25: =$A$12-$E$24+1 -> 247
H28: @ Cursor => | I28: =OFFSET(A32,$E$25,0,1,1)&"(RR)" -> 247(RR) | J28: =OFFSET($B$32,E25,0,1,1) -> 2016-12-22 | K28: =TEXT(OFFSET(D32,$E$25,0,1,1),"#,##0.00")&"(o)" -> 225.60(o) | L28: =TEXT(OFFSET(E32,$E$25,0,1,1),"#,##0.00")&"(h)" -> 225.74(h) | M28: =TEXT(OFFSET(F32,$E$25,0,1,1),"#,##0.00")&"(l)" -> 224.92(l) | N28: =TEXT(OFFSET(G32,$E$25,0,1,1),"#,##0.00")&"(c)" -> 225.38(c)
E29: Cursor ==> | AT29: Chart Cursor work area
Y30: Chart Control Work Area | BA30: Recursive Median Oscillator Chart Cursor
A31: Rel Row | H31: MYRSI Calculations | M31: Rocket RSI Calculations | Y31: =IF(R10=1,L32,T32) -> Rocket RSI | AO31: Used To Color Vol Bars
B32: Date | C32: Volume | D32: Open | E32: High | F32: Low | G32: Close | H32: Filt | I32: Filt Delta | J32: CU | K32: CD | L32: My RSI | M32: Mom | N32: Mom Filt | O32: Mom Delta Filt | P32: Mom CU | Q32: Mom CD | R32: Mom MyRsi | S32: .999 MmRsi | T32: Rocket RSI | AO32: Up Vol | AP32: Dn Vol | AT32: Volume Cursor | AV32: =MAX(OFFSET(C33,0,0,A12,1)) -> 172174100 | AW32: RSI Chart Cursor | AY32: Price Chart Cursor
A33: 1 | B33: =OFFSET(InputPriceData!B$15,CalculationsAndCharts!$A33+$A$11,0,1,1) -> 2017-12-14 | C33: =OFFSET(InputPriceData!G$15,CalculationsAndCharts!$A33+$A$11,IF($C$7,8,0),1,1) -> 100666700 | D33: =OFFSET(InputPriceData!C$15,CalculationsAndCharts!$A33+$A$11,IF($C$7,8,0),1,1) -> 267.089996 | E33: =OFFSET(InputPriceData!D$15,CalculationsAndCharts!$A33+$A$11,IF($C$7,8,0),1,1) -> 267.220001 | F33: =OFFSET(InputPriceData!E$15,CalculationsAndCharts!$A33+$A$11,IF($C$7,8,0),1,1) -> 265.600006 | G33: =OFFSET(InputPriceData!F$15,CalculationsAndCharts!$A33+$A$11,IF($C$7,8,0),1,1) -> 265.660004 | H33: =$E$20*(G33+G34)/2+$E$21*H34+$E$22*H35 -> 266.5196772 | I33: =H33-H34 -> 0.1744200888 | J33: =SUMIF(OFFSET(I33,0,0,$A$17,1),">0") -> 4.427716609 | K33: =-SUMIF(OFFSET(I33,0,0,$A$17,1),"<0") -> 0.6694973659 | L33: =IF((J33+K33)<>0,(J33-K33)/(J33+K33),0) -> 0.7373085104 | M33: =G33-OFFSET(G33,$A$17-1,0,1,1) -> 1.200013 | N33: =$E$20*(M33+M34)/2+$E$21*N34+$E$22*N35 -> 2.70247655 | O33: =N33-N34 -> -0.8813226039 | P33: =SUMIF(OFFSET(O33,0,0,$A$17,1),">0") -> 1.320740858 | Q33: =-SUMIF(OFFSET(O33,0,0,$A$17,1),"<0") -> 3.867144308 | R33: =IF((P33+Q33)<>0,(P33-Q33)/(P33+Q33),0) -> -0.4908365101 | S33: =IF(R33>0.999,0.999,IF(R33<-0.999,-0.999,R33)) -> -0.4908365101 | T33: =0.5*LN((1+S33)/(1-S33)) -> -0.5371617472 | Y33: =IF($R$10=1,L33,T33) -> -0.5371617472 | AO33: =IF(G33>=D33,C33,NA()) ->  | AP33: =IF(G33<D33,C33,NA()) -> 100666700 | AT33: =$E$25 -> 247 | AV33: 0 | AW33: =$E$25 -> 247 | AX33: -4 | AY33: =$E$25 -> 247 | AZ33: 215.8455049 | BA33: =$E$25 -> 247 | BB33: -220
A34: 2 | B34: =OFFSET(InputPriceData!B$15,CalculationsAndCharts!$A34+$A$11,0,1,1) -> 2017-12-13 | C34: =OFFSET(InputPriceData!G$15,CalculationsAndCharts!$A34+$A$11,IF($C$7,8,0),1,1) -> 102905400 | D34: =OFFSET(InputPriceData!C$15,CalculationsAndCharts!$A34+$A$11,IF($C$7,8,0),1,1) -> 267.059998 | E34: =OFFSET(InputPriceData!D$15,CalculationsAndCharts!$A34+$A$11,IF($C$7,8,0),1,1) -> 267.559998 | F34: =OFFSET(InputPriceData!E$15,CalculationsAndCharts!$A34+$A$11,IF($C$7,8,0),1,1) -> 266.649994 | G34: =OFFSET(InputPriceData!F$15,CalculationsAndCharts!$A34+$A$11,IF($C$7,8,0),1,1) -> 266.75 | H34: =$E$20*(G34+G35)/2+$E$21*H35+$E$22*H36 -> 266.3452572 | I34: =H34-H35 -> 0.6802875873 | J34: =SUMIF(OFFSET(I34,0,0,$A$17,1),">0") -> 5.337459775 | K34: =-SUMIF(OFFSET(I34,0,0,$A$17,1),"<0") -> 0.6694973659 | L34: =IF((J34+K34)<>0,(J34-K34)/(J34+K34),0) -> 0.7770926776 | M34: =G34-OFFSET(G34,$A$17-1,0,1,1) -> 1.73999 | N34: =$E$20*(M34+M35)/2+$E$21*N35+$E$22*N36 -> 3.583799154 | O34: =N34-N35 -> -0.4038756682 | P34: =SUMIF(OFFSET(O34,0,0,$A$17,1),">0") -> 2.625874204 | Q34: =-SUMIF(OFFSET(O34,0,0,$A$17,1),"<0") -> 2.985821704 | R34: =IF((P34+Q34)<>0,(P34-Q34)/(P34+Q34),0) -> -0.06414237435 | S34: =IF(R34>0.999,0.999,IF(R34<-0.999,-0.999,R34)) -> -0.06414237435 | T34: =0.5*LN((1+S34)/(1-S34)) -> -0.06423055793 | Y34: =IF($R$10=1,L34,T34) -> -0.06423055793 | AP34: 102905400 | AT34: =$E$25 -> 247 | AV34: =1.2*AV32 -> 206608920 | AW34: =$E$25 -> 247 | AX34: 4 | AY34: =$E$25 -> 247 | AZ34: 274.2489979 | BA34: =$E$25 -> 247 | BB34: 189
A35: 3 | B35: =OFFSET(InputPriceData!B$15,CalculationsAndCharts!$A35+$A$11,0,1,1) -> 2017-12-12 | C35: =OFFSET(InputPriceData!G$15,CalculationsAndCharts!$A35+$A$11,IF($C$7,8,0),1,1) -> 85195800 | D35: =OFFSET(InputPriceData!C$15,CalculationsAndCharts!$A35+$A$11,IF($C$7,8,0),1,1) -> 267.209991 | E35: =OFFSET(InputPriceData!D$15,CalculationsAndCharts!$A35+$A$11,IF($C$7,8,0),1,1) -> 267.320007 | F35: =OFFSET(InputPriceData!E$15,CalculationsAndCharts!$A35+$A$11,IF($C$7,8,0),1,1) -> 266.350006 | G35: =OFFSET(InputPriceData!F$15,CalculationsAndCharts!$A35+$A$11,IF($C$7,8,0),1,1) -> 266.779999 | H35: 265.6649696 | I35: 0.883095303 | J35: 5.602818506 | K35: 0.6694973659 | L35: 0.7865230707 | M35: 4.070008 | N35: 3.987674822 | O35: -0.06255101548 | P35: 4.023623907 | Q35: 2.581946036 | R35: 0.2182518517 | S35: 0.2182518517 | T35: 0.221819787 | Y35: 0.221819787 | AP35: 85195800
A36: 4 | B36: =OFFSET(InputPriceData!B$15,CalculationsAndCharts!$A36+$A$11,0,1,1) -> 2017-12-11 | C36: =OFFSET(InputPriceData!G$15,CalculationsAndCharts!$A36+$A$11,IF($C$7,8,0),1,1) -> 83077500 | D36: =OFFSET(InputPriceData!C$15,CalculationsAndCharts!$A36+$A$11,IF($C$7,8,0),1,1) -> 266.309998 | E36: =OFFSET(InputPriceData!D$15,CalculationsAndCharts!$A36+$A$11,IF($C$7,8,0),1,1) -> 266.380005 | F36: =OFFSET(InputPriceData!E$15,CalculationsAndCharts!$A36+$A$11,IF($C$7,8,0),1,1) -> 265.480011 | G36: =OFFSET(InputPriceData!F$15,CalculationsAndCharts!$A36+$A$11,IF($C$7,8,0),1,1) -> 266.309998 | H36: 264.7818743 | I36: 0.7861514858 | J36: 5.378487258 | K36: 0.6694973659 | L36: 0.7786048056 | M36: 3.440003 | N36: 4.050225837 | O36: 0.1273874309 | P36: 4.872047225 | Q36: 2.519395021 | R36: 0.3182940658 | S36: 0.3182940658 | T36: 0.329747711 | Y36: 0.329747711 | AO36: 83077500
A37: 5 | B37: =OFFSET(InputPriceData!B$15,CalculationsAndCharts!$A37+$A$11,0,1,1) -> 2017-12-08 | C37: =OFFSET(InputPriceData!G$15,CalculationsAndCharts!$A37+$A$11,IF($C$7,8,0),1,1) -> 76563900 | D37: =OFFSET(InputPriceData!C$15,CalculationsAndCharts!$A37+$A$11,IF($C$7,8,0),1,1) -> 265.160004 | E37: =OFFSET(InputPriceData!D$15,CalculationsAndCharts!$A37+$A$11,IF($C$7,8,0),1,1) -> 265.519989 | F37: =OFFSET(InputPriceData!E$15,CalculationsAndCharts!$A37+$A$11,IF($C$7,8,0),1,1) -> 264.029999 | G37: =OFFSET(InputPriceData!F$15,CalculationsAndCharts!$A37+$A$11,IF($C$7,8,0),1,1) -> 265.51001 | H37: 263.9957228 | I37: 0.3293675193 | J37: 5.004800669 | K37: 0.6694973659 | L37: 0.7640246029 | M37: 5.279999 | N37: 3.922838407 | O37: -0.08309737709 | P37: 5.361805401 | Q37: 2.519395021 | R37: 0.3606570355 | S37: 0.3606570355 | T37: 0.3776409727 | Y37: 0.3776409727 | AO37: 76563900
A38: 6 | B38: =OFFSET(InputPriceData!B$15,CalculationsAndCharts!$A38+$A$11,0,1,1) -> 2017-12-07 | C38: =OFFSET(InputPriceData!G$15,CalculationsAndCharts!$A38+$A$11,IF($C$7,8,0),1,1) -> 77218600 | D38: =OFFSET(InputPriceData!C$15,CalculationsAndCharts!$A38+$A$11,IF($C$7,8,0),1,1) -> 264.070007 | E38: =OFFSET(InputPriceData!D$15,CalculationsAndCharts!$A38+$A$11,IF($C$7,8,0),1,1) -> 264.429993 | F38: =OFFSET(InputPriceData!E$15,CalculationsAndCharts!$A38+$A$11,IF($C$7,8,0),1,1) -> 262.940002 | G38: =OFFSET(InputPriceData!F$15,CalculationsAndCharts!$A38+$A$11,IF($C$7,8,0),1,1) -> 264.070007 | H38: 263.6663553 | I38: -0.2076996229 | J38: 5.245663618 | K38: 0.6694973659 | L38: 0.7736334251 | M38: 3.710022 | N38: 4.005935784 | O38: -0.7779300916 | P38: 6.15578802 | Q38: 2.436297643 | R38: 0.4328972641 | S38: 0.4328972641 | T38: 0.4634566265 | Y38: 0.4634566265 | AO38: 77218600
A39: 7 | B39: =OFFSET(InputPriceData!B$15,CalculationsAndCharts!$A39+$A$11,0,1,1) -> 2017-12-06 | C39: =OFFSET(InputPriceData!G$15,CalculationsAndCharts!$A39+$A$11,IF($C$7,8,0),1,1) -> 75898600 | D39: =OFFSET(InputPriceData!C$15,CalculationsAndCharts!$A39+$A$11,IF($C$7,8,0),1,1) -> 263.299988 | E39: =OFFSET(InputPriceData!D$15,CalculationsAndCharts!$A39+$A$11,IF($C$7,8,0),1,1) -> 263.730011 | F39: =OFFSET(InputPriceData!E$15,CalculationsAndCharts!$A39+$A$11,IF($C$7,8,0),1,1) -> 262.709991 | G39: =OFFSET(InputPriceData!F$15,CalculationsAndCharts!$A39+$A$11,IF($C$7,8,0),1,1) -> 263.23999 | H39: 263.8740549 | I39: -0.3951475339 | J39: 5.934580074 | K39: 0.461797743 | L39: 0.8556064835 | M39: 3.47998 | N39: 4.783865875 | O39: -1.084063989 | P39: 6.799907946 | Q39: 1.658367552 | R39: 0.6078710011 | S39: 0.6078710011 | T39: 0.7055376794 | Y39: 0.7055376794 | AP39: 75898600
A40: 8 | B40: =OFFSET(InputPriceData!B$15,CalculationsAndCharts!$A40+$A$11,0,1,1) -> 2017-12-05 | C40: =OFFSET(InputPriceData!G$15,CalculationsAndCharts!$A40+$A$11,IF($C$7,8,0),1,1) -> 77994500 | D40: =OFFSET(InputPriceData!C$15,CalculationsAndCharts!$A40+$A$11,IF($C$7,8,0),1,1) -> 263.190002 | E40: =OFFSET(InputPriceData!D$15,CalculationsAndCharts!$A40+$A$11,IF($C$7,8,0),1,1) -> 265.149994 | F40: =OFFSET(InputPriceData!E$15,CalculationsAndCharts!$A40+$A$11,IF($C$7,8,0),1,1) -> 263.040009 | G40: =OFFSET(InputPriceData!F$15,CalculationsAndCharts!$A40+$A$11,IF($C$7,8,0),1,1) -> 263.190002 | H40: 264.2692024 | I40: -0.06665020917 | J40: 6.442233427 | K40: 0.06665020917 | L40: 0.9795202333 | M40: 3.200012 | N40: 5.867929864 | O40: -0.5743035627 | P40: 7.043715498 | Q40: 0.5743035627 | R40: 0.8492249604 | S40: 0.8492249604 | T40: 1.253366484 | Y40: 1.253366484 | AO40: 77994500
A41: 9 | B41: =OFFSET(InputPriceData!B$15,CalculationsAndCharts!$A41+$A$11,0,1,1) -> 2017-12-04 | C41: =OFFSET(InputPriceData!G$15,CalculationsAndCharts!$A41+$A$11,IF($C$7,8,0),1,1) -> 94040600 | D41: =OFFSET(InputPriceData!C$15,CalculationsAndCharts!$A41+$A$11,IF($C$7,8,0),1,1) -> 266.309998 | E41: =OFFSET(InputPriceData!D$15,CalculationsAndCharts!$A41+$A$11,IF($C$7,8,0),1,1) -> 266.799988 | F41: =OFFSET(InputPriceData!E$15,CalculationsAndCharts!$A41+$A$11,IF($C$7,8,0),1,1) -> 264.079987 | G41: =OFFSET(InputPriceData!F$15,CalculationsAndCharts!$A41+$A$11,IF($C$7,8,0),1,1) -> 264.140015 | H41: 264.3358526 | I41: 0.5186519317 | J41: 6.638549526 | K41: 0 | L41: 1 | M41: 5.840027 | N41: 6.442233427 | O41: 0.3223358325 | P41: 7.043715498 | Q41: 0.1803038578 | R41: 0.9500821222 | S41: 0.9500821222 | T41: 1.832623777 | Y41: 1.832623777 | AP41: 94040600
A42: 10 | B42: =OFFSET(InputPriceData!B$15,CalculationsAndCharts!$A42+$A$11,0,1,1) -> 2017-12-01 | C42: =OFFSET(InputPriceData!G$15,CalculationsAndCharts!$A42+$A$11,IF($C$7,8,0),1,1) -> 164390900 | D42: =OFFSET(InputPriceData!C$15,CalculationsAndCharts!$A42+$A$11,IF($C$7,8,0),1,1) -> 264.76001 | E42: =OFFSET(InputPriceData!D$15,CalculationsAndCharts!$A42+$A$11,IF($C$7,8,0),1,1) -> 265.309998 | F42: =OFFSET(InputPriceData!E$15,CalculationsAndCharts!$A42+$A$11,IF($C$7,8,0),1,1) -> 260.76001 | G42: =OFFSET(InputPriceData!F$15,CalculationsAndCharts!$A42+$A$11,IF($C$7,8,0),1,1) -> 264.459991 | H42: 263.8172007 | I42: 1.055742693 | J42: 6.304622693 | K42: 0 | L42: 1 | M42: 6.600006 | N42: 6.119897595 | O42: 0.8710175946 | P42: 6.721379666 | Q42: 0.4495134721 | R42: 0.8746283166 | S42: 0.8746283166 | T42: 1.352441448 | Y42: 1.352441448 | AP42: 164390900
A43: 11 | B43: =OFFSET(InputPriceData!B$15,CalculationsAndCharts!$A43+$A$11,0,1,1) -> 2017-11-30 | C43: =OFFSET(InputPriceData!G$15,CalculationsAndCharts!$A43+$A$11,IF($C$7,8,0),1,1) -> 127894400 | D43: =OFFSET(InputPriceData!C$15,CalculationsAndCharts!$A43+$A$11,IF($C$7,8,0),1,1) -> 263.76001 | E43: =OFFSET(InputPriceData!D$15,CalculationsAndCharts!$A43+$A$11,IF($C$7,8,0),1,1) -> 266.049988 | F43: =OFFSET(InputPriceData!E$15,CalculationsAndCharts!$A43+$A$11,IF($C$7,8,0),1,1) -> 263.670013 | G43: =OFFSET(InputPriceData!F$15,CalculationsAndCharts!$A43+$A$11,IF($C$7,8,0),1,1) -> 265.01001 | H43: 262.761458 | I43: 1.084163255 | J43: 5.24888 | K43: 0.2209700909 | L43: 0.9192043338 | M43: 6.390015 | N43: 5.24888 | O43: 1.305133346 | P43: 5.850362071 | Q43: 0.989497771 | R43: 0.7106672377 | S43: 0.7106672377 | T43: 0.8885306592 | Y43: 0.8885306592 | AO43: 127894400
A44: 12 | B44: =OFFSET(InputPriceData!B$15,CalculationsAndCharts!$A44+$A$11,0,1,1) -> 2017-11-29 | C44: =OFFSET(InputPriceData!G$15,CalculationsAndCharts!$A44+$A$11,IF($C$7,8,0),1,1) -> 77512100 | D44: =OFFSET(InputPriceData!C$15,CalculationsAndCharts!$A44+$A$11,IF($C$7,8,0),1,1) -> 263.019989 | E44: =OFFSET(InputPriceData!D$15,CalculationsAndCharts!$A44+$A$11,IF($C$7,8,0),1,1) -> 263.630005 | F44: =OFFSET(InputPriceData!E$15,CalculationsAndCharts!$A44+$A$11,IF($C$7,8,0),1,1) -> 262.200012 | G44: =OFFSET(InputPriceData!F$15,CalculationsAndCharts!$A44+$A$11,IF($C$7,8,0),1,1) -> 262.709991 | H44: 261.6772947 | I44: 0.9456463185 | J44: 4.164716744 | K44: 0.6730734754 | L44: 0.7217434222 | M44: 6.269989 | N44: 3.943746654 | O44: 1.397749703 | P44: 4.545228725 | Q44: 1.685236201 | R44: 0.4590335645 | S44: 0.4590335645 | T44: 0.4960861591 | Y44: 0.4960861591 | AP44: 77512100
A45: 13 | B45: =OFFSET(InputPriceData!B$15,CalculationsAndCharts!$A45+$A$11,0,1,1) -> 2017-11-28 | C45: =OFFSET(InputPriceData!G$15,CalculationsAndCharts!$A45+$A$11,IF($C$7,8,0),1,1) -> 98971700 | D45: =OFFSET(InputPriceData!C$15,CalculationsAndCharts!$A45+$A$11,IF($C$7,8,0),1,1) -> 260.76001 | E45: =OFFSET(InputPriceData!D$15,CalculationsAndCharts!$A45+$A$11,IF($C$7,8,0),1,1) -> 262.899994 | F45: =OFFSET(InputPriceData!E$15,CalculationsAndCharts!$A45+$A$11,IF($C$7,8,0),1,1) -> 260.649994 | G45: =OFFSET(InputPriceData!F$15,CalculationsAndCharts!$A45+$A$11,IF($C$7,8,0),1,1) -> 262.869995 | H45: 260.7316484 | I45: 0.6587640548 | J45: 3.219070426 | K45: 0.8627327377 | L45: 0.5772786178 | M45: 5.139984 | N45: 2.545996951 | O45: 0.8484233172 | P45: 3.147479022 | Q45: 2.143726976 | R45: 0.1897019405 | S45: 0.1897019405 | T45: 0.192027965 | Y45: 0.192027965 | AO45: 98971700
A46: 14 | B46: =OFFSET(InputPriceData!B$15,CalculationsAndCharts!$A46+$A$11,0,1,1) -> 2017-11-27 | C46: =OFFSET(InputPriceData!G$15,CalculationsAndCharts!$A46+$A$11,IF($C$7,8,0),1,1) -> 52274900 | D46: =OFFSET(InputPriceData!C$15,CalculationsAndCharts!$A46+$A$11,IF($C$7,8,0),1,1) -> 260.410004 | E46: =OFFSET(InputPriceData!D$15,CalculationsAndCharts!$A46+$A$11,IF($C$7,8,0),1,1) -> 260.75 | F46: =OFFSET(InputPriceData!E$15,CalculationsAndCharts!$A46+$A$11,IF($C$7,8,0),1,1) -> 260 | G46: =OFFSET(InputPriceData!F$15,CalculationsAndCharts!$A46+$A$11,IF($C$7,8,0),1,1) -> 260.230011 | H46: 260.0728844 | I46: 0.4124648964 | J46: 2.560306371 | K46: 1.067413448 | L46: 0.4115237662 | M46: 1.900024 | N46: 1.697573633 | O46: 0.6171456071 | P46: 2.299055705 | Q46: 2.641254882 | R46: -0.06926673355 | S46: -0.06926673355 | T46: -0.06937783138 | Y46: -0.06937783138 | AP46: 52274900
A47: 15 | B47: =OFFSET(InputPriceData!B$15,CalculationsAndCharts!$A47+$A$11,0,1,1) -> 2017-11-24 | C47: =OFFSET(InputPriceData!G$15,CalculationsAndCharts!$A47+$A$11,IF($C$7,8,0),1,1) -> 27856500 | D47: =OFFSET(InputPriceData!C$15,CalculationsAndCharts!$A47+$A$11,IF($C$7,8,0),1,1) -> 260.320007 | E47: =OFFSET(InputPriceData!D$15,CalculationsAndCharts!$A47+$A$11,IF($C$7,8,0),1,1) -> 260.480011 | F47: =OFFSET(InputPriceData!E$15,CalculationsAndCharts!$A47+$A$11,IF($C$7,8,0),1,1) -> 260.160004 | G47: =OFFSET(InputPriceData!F$15,CalculationsAndCharts!$A47+$A$11,IF($C$7,8,0),1,1) -> 260.359985 | H47: 259.6604195 | I47: 0.5702304687 | J47: 2.147841475 | K47: 1.291165599 | L47: 0.2491055869 | M47: 2.269989 | N47: 1.080428026 | O47: 0.7939826195 | P47: 1.681910098 | Q47: 3.313682927 | R47: -0.3266424669 | S47: -0.3266424669 | T47: -0.3390650635 | Y47: -0.3390650635 | AO47: 27856500
A48: 16 | B48: =OFFSET(InputPriceData!B$15,CalculationsAndCharts!$A48+$A$11,0,1,1) -> 2017-11-22 | C48: =OFFSET(InputPriceData!G$15,CalculationsAndCharts!$A48+$A$11,IF($C$7,8,0),1,1) -> 45033400 | D48: =OFFSET(InputPriceData!C$15,CalculationsAndCharts!$A48+$A$11,IF($C$7,8,0),1,1) -> 260 | E48: =OFFSET(InputPriceData!D$15,CalculationsAndCharts!$A48+$A$11,IF($C$7,8,0),1,1) -> 260.149994 | F48: =OFFSET(InputPriceData!E$15,CalculationsAndCharts!$A48+$A$11,IF($C$7,8,0),1,1) -> 259.570007 | G48: =OFFSET(InputPriceData!F$15,CalculationsAndCharts!$A48+$A$11,IF($C$7,8,0),1,1) -> 259.76001 | H48: 259.090189 | I48: 0.6889164553 | J48: 1.622407535 | K48: 1.291165599 | L48: 0.1136892471 | M48: 1.589997 | N48: 0.2864454068 | O48: 0.6441199261 | P48: 0.8879274782 | Q48: 3.407504962 | R48: -0.5865713217 | S48: -0.5865713217 | T48: -0.6724227744 | Y48: -0.6724227744 | AP48: 45033400
A49: 17 | B49: =OFFSET(InputPriceData!B$15,CalculationsAndCharts!$A49+$A$11,0,1,1) -> 2017-11-21 | C49: =OFFSET(InputPriceData!G$15,CalculationsAndCharts!$A49+$A$11,IF($C$7,8,0),1,1) -> 69176800 | D49: =OFFSET(InputPriceData!C$15,CalculationsAndCharts!$A49+$A$11,IF($C$7,8,0),1,1) -> 259.179993 | E49: =OFFSET(InputPriceData!D$15,CalculationsAndCharts!$A49+$A$11,IF($C$7,8,0),1,1) -> 260.200012 | F49: =OFFSET(InputPriceData!E$15,CalculationsAndCharts!$A49+$A$11,IF($C$7,8,0),1,1) -> 258.26001 | G49: =OFFSET(InputPriceData!F$15,CalculationsAndCharts!$A49+$A$11,IF($C$7,8,0),1,1) -> 259.98999 | H49: 258.4012726 | I49: 0.5076533535 | J49: 1.197336881 | K49: 1.291165599 | L49: -0.03770489224 | M49: 0.880005 | N49: -0.3576745193 | O49: 0.2438075521 | P49: 0.8521140366 | Q49: 3.407504962 | R49: -0.5999106789 | S49: -0.5999106789 | T49: -0.693007628 | Y49: -0.693007628 | AO49: 69176800
A50: 18 | B50: =OFFSET(InputPriceData!B$15,CalculationsAndCharts!$A50+$A$11,0,1,1) -> 2017-11-20 | C50: =OFFSET(InputPriceData!G$15,CalculationsAndCharts!$A50+$A$11,IF($C$7,8,0),1,1) -> 48075500 | D50: =OFFSET(InputPriceData!C$15,CalculationsAndCharts!$A50+$A$11,IF($C$7,8,0),1,1) -> 258.140015 | E50: =OFFSET(InputPriceData!D$15,CalculationsAndCharts!$A50+$A$11,IF($C$7,8,0),1,1) -> 258.519989 | F50: =OFFSET(InputPriceData!E$15,CalculationsAndCharts!$A50+$A$11,IF($C$7,8,0),1,1) -> 257.859985 | G50: =OFFSET(InputPriceData!F$15,CalculationsAndCharts!$A50+$A$11,IF($C$7,8,0),1,1) -> 258.299988 | H50: 257.8936192 | I50: 0.1963160991 | J50: 1.066303485 | K50: 1.291165599 | L50: -0.09538284765 | M50: -0.370025 | N50: -0.6014820714 | O50: -0.1803038578 | P50: 1.125342992 | Q50: 3.407504962 | R50: -0.5034719876 | S50: -0.5034719876 | T50: -0.5539462346 | Y50: -0.5539462346 | AO50: 48075500
A51: 19 | B51: =OFFSET(InputPriceData!B$15,CalculationsAndCharts!$A51+$A$11,0,1,1) -> 2017-11-17 | C51: =OFFSET(InputPriceData!G$15,CalculationsAndCharts!$A51+$A$11,IF($C$7,8,0),1,1) -> 75756800 | D51: =OFFSET(InputPriceData!C$15,CalculationsAndCharts!$A51+$A$11,IF($C$7,8,0),1,1) -> 258.220001 | E51: =OFFSET(InputPriceData!D$15,CalculationsAndCharts!$A51+$A$11,IF($C$7,8,0),1,1) -> 258.589996 | F51: =OFFSET(InputPriceData!E$15,CalculationsAndCharts!$A51+$A$11,IF($C$7,8,0),1,1) -> 257.769989 | G51: =OFFSET(InputPriceData!F$15,CalculationsAndCharts!$A51+$A$11,IF($C$7,8,0),1,1) -> 257.859985 | H51: 257.6973031 | I51: 0.1847250981 | J51: 1.323922098 | K51: 1.291165599 | L51: 0.01252596571 | M51: -0.990021 | N51: -0.4211782136 | O51: -0.2692096143 | P51: 1.454437881 | Q51: 3.227201104 | R51: -0.3786629487 | S51: -0.3786629487 | T51: -0.3984978702 | Y51: -0.3984978702 | AP51: 75756800
A52: 20 | B52: =OFFSET(InputPriceData!B$15,CalculationsAndCharts!$A52+$A$11,0,1,1) -> 2017-11-16 | C52: =OFFSET(InputPriceData!G$15,CalculationsAndCharts!$A52+$A$11,IF($C$7,8,0),1,1) -> 67777000 | D52: =OFFSET(InputPriceData!C$15,CalculationsAndCharts!$A52+$A$11,IF($C$7,8,0),1,1) -> 257.519989 | E52: =OFFSET(InputPriceData!D$15,CalculationsAndCharts!$A52+$A$11,IF($C$7,8,0),1,1) -> 259.040009 | F52: =OFFSET(InputPriceData!E$15,CalculationsAndCharts!$A52+$A$11,IF($C$7,8,0),1,1) -> 257.470001 | G52: =OFFSET(InputPriceData!F$15,CalculationsAndCharts!$A52+$A$11,IF($C$7,8,0),1,1) -> 258.619995 | H52: 257.512578 | I52: -0.2209700909 | J52: 1.458211208 | K52: 1.291165599 | L52: 0.06075762635 | M52: 0.169983 | N52: -0.1519685993 | O52: -0.539984299 | P52: 1.454437881 | Q52: 2.994318116 | R52: -0.3461372653 | S52: -0.3461372653 | T52: -0.3610485208 | Y52: -0.3610485208 | AO52: 67777000
A53: 21 | B53: =OFFSET(InputPriceData!B$15,CalculationsAndCharts!$A53+$A$11,0,1,1) -> 2017-11-15 | C53: =OFFSET(InputPriceData!G$15,CalculationsAndCharts!$A53+$A$11,IF($C$7,8,0),1,1) -> 80811500 | D53: =OFFSET(InputPriceData!C$15,CalculationsAndCharts!$A53+$A$11,IF($C$7,8,0),1,1) -> 256.619995 | E53: =OFFSET(InputPriceData!D$15,CalculationsAndCharts!$A53+$A$11,IF($C$7,8,0),1,1) -> 257.220001 | F53: =OFFSET(InputPriceData!E$15,CalculationsAndCharts!$A53+$A$11,IF($C$7,8,0),1,1) -> 255.630005 | G53: =OFFSET(InputPriceData!F$15,CalculationsAndCharts!$A53+$A$11,IF($C$7,8,0),1,1) -> 256.440002 | H53: 257.7335481 | I53: -0.4521033844 | J53: 1.701846254 | K53: 1.070195508 | L53: 0.2278648013 | M53: -1.149994 | N53: 0.3880156997 | O53: -0.6957384301 | P53: 1.454437881 | Q53: 2.588383059 | R53: -0.2804836511 | S53: -0.2804836511 | T53: -0.2882069446 | Y53: -0.2882069446 | AP53: 80811500
A54: 22 | B54: =OFFSET(InputPriceData!B$15,CalculationsAndCharts!$A54+$A$11,0,1,1) -> 2017-11-14 | C54: =OFFSET(InputPriceData!G$15,CalculationsAndCharts!$A54+$A$11,IF($C$7,8,0),1,1) -> 61315200 | D54: =OFFSET(InputPriceData!C$15,CalculationsAndCharts!$A54+$A$11,IF($C$7,8,0),1,1) -> 257.410004 | E54: =OFFSET(InputPriceData!D$15,CalculationsAndCharts!$A54+$A$11,IF($C$7,8,0),1,1) -> 257.850006 | F54: =OFFSET(InputPriceData!E$15,CalculationsAndCharts!$A54+$A$11,IF($C$7,8,0),1,1) -> 256.519989 | G54: =OFFSET(InputPriceData!F$15,CalculationsAndCharts!$A54+$A$11,IF($C$7,8,0),1,1) -> 257.730011 | H54: 258.1856515 | I54: -0.1896592623 | J54: 1.970677766 | K54: 0.6180921239 | L54: 0.5224819895 | M54: 0.240021 | N54: 1.08375413 | O54: -0.4584907752 | P54: 1.511714818 | Q54: 1.892644629 | R54: -0.1118947095 | S54: -0.1118947095 | T54: -0.1123652391 | Y54: -0.1123652391 | AO54: 61315200
A55: 23 | B55: =OFFSET(InputPriceData!B$15,CalculationsAndCharts!$A55+$A$11,0,1,1) -> 2017-11-13 | C55: =OFFSET(InputPriceData!G$15,CalculationsAndCharts!$A55+$A$11,IF($C$7,8,0),1,1) -> 50228600 | D55: =OFFSET(InputPriceData!C$15,CalculationsAndCharts!$A55+$A$11,IF($C$7,8,0),1,1) -> 257.309998 | E55: =OFFSET(InputPriceData!D$15,CalculationsAndCharts!$A55+$A$11,IF($C$7,8,0),1,1) -> 258.589996 | F55: =OFFSET(InputPriceData!E$15,CalculationsAndCharts!$A55+$A$11,IF($C$7,8,0),1,1) -> 257.269989 | G55: =OFFSET(InputPriceData!F$15,CalculationsAndCharts!$A55+$A$11,IF($C$7,8,0),1,1) -> 258.329987 | H55: 258.3753107 | I55: -0.2046807107 | J55: 2.263524961 | K55: 0.4284328615 | L55: 0.6816942242 | M55: 1.179993 | N55: 1.542244905 | O55: -0.4975279055 | P55: 1.577798066 | Q55: 1.434153854 | R55: 0.0476914028 | S55: 0.0476914028 | T55: 0.04772760978 | Y55: 0.04772760978 | AO55: 50228600
A56: 24 | B56: =OFFSET(InputPriceData!B$15,CalculationsAndCharts!$A56+$A$11,0,1,1) -> 2017-11-10 | C56: =OFFSET(InputPriceData!G$15,CalculationsAndCharts!$A56+$A$11,IF($C$7,8,0),1,1) -> 59984700 | D56: =OFFSET(InputPriceData!C$15,CalculationsAndCharts!$A56+$A$11,IF($C$7,8,0),1,1) -> 257.730011 | E56: =OFFSET(InputPriceData!D$15,CalculationsAndCharts!$A56+$A$11,IF($C$7,8,0),1,1) -> 258.290009 | F56: =OFFSET(InputPriceData!E$15,CalculationsAndCharts!$A56+$A$11,IF($C$7,8,0),1,1) -> 257.369995 | G56: =OFFSET(InputPriceData!F$15,CalculationsAndCharts!$A56+$A$11,IF($C$7,8,0),1,1) -> 258.089996 | H56: 258.5799915 | I56: -0.2237521508 | J56: 2.712200855 | K56: 0.2237521508 | L56: 0.8475778391 | M56: 1.339996 | N56: 2.03977281 | O56: -0.672428045 | P56: 1.825294142 | Q56: 0.9366259482 | R56: 0.321757388 | S56: 0.321757388 | T56: 0.3336062129 | Y56: 0.3336062129 | AO56: 59984700
A57: 25 | B57: =OFFSET(InputPriceData!B$15,CalculationsAndCharts!$A57+$A$11,0,1,1) -> 2017-11-09 | C57: =OFFSET(InputPriceData!G$15,CalculationsAndCharts!$A57+$A$11,IF($C$7,8,0),1,1) -> 95085500 | D57: =OFFSET(InputPriceData!C$15,CalculationsAndCharts!$A57+$A$11,IF($C$7,8,0),1,1) -> 257.730011 | E57: =OFFSET(InputPriceData!D$15,CalculationsAndCharts!$A57+$A$11,IF($C$7,8,0),1,1) -> 258.390015 | F57: =OFFSET(InputPriceData!E$15,CalculationsAndCharts!$A57+$A$11,IF($C$7,8,0),1,1) -> 256.359985 | G57: =OFFSET(InputPriceData!F$15,CalculationsAndCharts!$A57+$A$11,IF($C$7,8,0),1,1) -> 258.170013 | H57: 258.8037436 | I57: 0.04479652917 | J57: 2.850819419 | K57: 0 | L57: 1 | M57: 0.460022 | N57: 2.712200855 | O57: -0.09382203473 | P57: 1.825549334 | Q57: 0.2641979032 | R57: 0.7471484604 | S57: 0.7471484604 | T57: 0.9664688852 | Y57: 0.9664688852 | AO57: 95085500
A58: 26 | B58: =OFFSET(InputPriceData!B$15,CalculationsAndCharts!$A58+$A$11,0,1,1) -> 2017-11-08 | C58: =OFFSET(InputPriceData!G$15,CalculationsAndCharts!$A58+$A$11,IF($C$7,8,0),1,1) -> 50469600 | D58: =OFFSET(InputPriceData!C$15,CalculationsAndCharts!$A58+$A$11,IF($C$7,8,0),1,1) -> 258.470001 | E58: =OFFSET(InputPriceData!D$15,CalculationsAndCharts!$A58+$A$11,IF($C$7,8,0),1,1) -> 259.220001 | F58: =OFFSET(InputPriceData!E$15,CalculationsAndCharts!$A58+$A$11,IF($C$7,8,0),1,1) -> 258.149994 | G58: =OFFSET(InputPriceData!F$15,CalculationsAndCharts!$A58+$A$11,IF($C$7,8,0),1,1) -> 259.109985 | H58: 258.7589471 | I58: 0.2638458014 | J58: 2.80602289 | K58: 0.3444606831 | L58: 0.7813283739 | M58: 3.48999 | N58: 2.80602289 | O58: 0.6083064845 | P58: 1.825549334 | Q58: 0.5932208017 | R58: 0.5094855912 | S58: 0.5094855912 | T58: 0.5620347747 | Y58: 0.5620347747 | AO58: 50469600
A59: 27 | B59: =OFFSET(InputPriceData!B$15,CalculationsAndCharts!$A59+$A$11,0,1,1) -> 2017-11-07 | C59: =OFFSET(InputPriceData!G$15,CalculationsAndCharts!$A59+$A$11,IF($C$7,8,0),1,1) -> 57502200 | D59: =OFFSET(InputPriceData!C$15,CalculationsAndCharts!$A59+$A$11,IF($C$7,8,0),1,1) -> 258.970001 | E59: =OFFSET(InputPriceData!D$15,CalculationsAndCharts!$A59+$A$11,IF($C$7,8,0),1,1) -> 259.350006 | F59: =OFFSET(InputPriceData!E$15,CalculationsAndCharts!$A59+$A$11,IF($C$7,8,0),1,1) -> 258.089996 | G59: =OFFSET(InputPriceData!F$15,CalculationsAndCharts!$A59+$A$11,IF($C$7,8,0),1,1) -> 258.670013 | H59: 258.4951013 | I59: 0.3766199569 | J59: 2.542177089 | K59: 0.4848772342 | L59: 0.6796375734 | M59: 3.38002 | N59: 2.197716406 | O59: 0.517036508 | P59: 1.21724285 | Q59: 0.8949753355 | R59: 0.1525730233 | S59: 0.1525730233 | T59: 0.1537737307 | Y59: 0.1537737307 | AP59: 57502200
A60: 28 | B60: =OFFSET(InputPriceData!B$15,CalculationsAndCharts!$A60+$A$11,0,1,1) -> 2017-11-06 | C60: =OFFSET(InputPriceData!G$15,CalculationsAndCharts!$A60+$A$11,IF($C$7,8,0),1,1) -> 49652600 | D60: =OFFSET(InputPriceData!C$15,CalculationsAndCharts!$A60+$A$11,IF($C$7,8,0),1,1) -> 258.299988 | E60: =OFFSET(InputPriceData!D$15,CalculationsAndCharts!$A60+$A$11,IF($C$7,8,0),1,1) -> 259 | F60: =OFFSET(InputPriceData!E$15,CalculationsAndCharts!$A60+$A$11,IF($C$7,8,0),1,1) -> 258.220001 | G60: =OFFSET(InputPriceData!F$15,CalculationsAndCharts!$A60+$A$11,IF($C$7,8,0),1,1) -> 258.850006 | H60: 258.1184813 | I60: 0.4539347124 | J60: 2.290396956 | K60: 0.4848772342 | L60: 0.6505734562 | M60: 2.290008 | N60: 1.680679898 | O60: 0.3290948886 | P60: 0.7002063419 | Q60: 0.9723015937 | R60: -0.1626869721 | S60: -0.1626869721 | T60: -0.1641454861 | Y60: -0.1641454861 | AO60: 49652600
A61: 29 | B61: =OFFSET(InputPriceData!B$15,CalculationsAndCharts!$A61+$A$11,0,1,1) -> 2017-11-03 | C61: =OFFSET(InputPriceData!G$15,CalculationsAndCharts!$A61+$A$11,IF($C$7,8,0),1,1) -> 59589700 | D61: =OFFSET(InputPriceData!C$15,CalculationsAndCharts!$A61+$A$11,IF($C$7,8,0),1,1) -> 257.769989 | E61: =OFFSET(InputPriceData!D$15,CalculationsAndCharts!$A61+$A$11,IF($C$7,8,0),1,1) -> 258.5 | F61: =OFFSET(InputPriceData!E$15,CalculationsAndCharts!$A61+$A$11,IF($C$7,8,0),1,1) -> 257.299988 | G61: =OFFSET(InputPriceData!F$15,CalculationsAndCharts!$A61+$A$11,IF($C$7,8,0),1,1) -> 258.450012 | H61: 257.6645466 | I61: 0.319014208 | J61: 2.191803078 | K61: 0.4848772342 | L61: 0.6377025437 | M61: 2.340027 | N61: 1.351585009 | O61: -0.03632662655 | P61: 0.6068632098 | Q61: 0.9723015937 | R61: -0.2314124423 | S61: -0.2314124423 | T61: -0.2356813134 | Y61: -0.2356813134 | AO61: 59589700
A62: 30 | B62: =OFFSET(InputPriceData!B$15,CalculationsAndCharts!$A62+$A$11,0,1,1) -> 2017-11-02 | C62: =OFFSET(InputPriceData!G$15,CalculationsAndCharts!$A62+$A$11,IF($C$7,8,0),1,1) -> 56449500 | D62: =OFFSET(InputPriceData!C$15,CalculationsAndCharts!$A62+$A$11,IF($C$7,8,0),1,1) -> 257.410004 | E62: =OFFSET(InputPriceData!D$15,CalculationsAndCharts!$A62+$A$11,IF($C$7,8,0),1,1) -> 257.75 | F62: =OFFSET(InputPriceData!E$15,CalculationsAndCharts!$A62+$A$11,IF($C$7,8,0),1,1) -> 256.190002 | G62: =OFFSET(InputPriceData!F$15,CalculationsAndCharts!$A62+$A$11,IF($C$7,8,0),1,1) -> 257.589996 | H62: 257.3455324 | I62: 0.2436350456 | J62: 2.250473157 | K62: 0.4848772342 | L62: 0.6454734021 | M62: 0.480011 | N62: 1.387911636 | O62: -0.1340492419 | P62: 0.6691893791 | Q62: 0.9359749672 | R62: -0.1662045315 | S62: -0.1662045315 | T62: -0.1677608169 | Y62: -0.1677608169 | AO62: 56449500
A63: 31 | B63: =OFFSET(InputPriceData!B$15,CalculationsAndCharts!$A63+$A$11,0,1,1) -> 2017-11-01 | C63: =OFFSET(InputPriceData!G$15,CalculationsAndCharts!$A63+$A$11,IF($C$7,8,0),1,1) -> 54202700 | D63: =OFFSET(InputPriceData!C$15,CalculationsAndCharts!$A63+$A$11,IF($C$7,8,0),1,1) -> 258.040009 | E63: =OFFSET(InputPriceData!D$15,CalculationsAndCharts!$A63+$A$11,IF($C$7,8,0),1,1) -> 258.429993 | F63: =OFFSET(InputPriceData!E$15,CalculationsAndCharts!$A63+$A$11,IF($C$7,8,0),1,1) -> 257.070007 | G63: =OFFSET(InputPriceData!F$15,CalculationsAndCharts!$A63+$A$11,IF($C$7,8,0),1,1) -> 257.48999 | H63: 257.1018973 | I63: 0.2688315129 | J63: 2.218392688 | K63: 0.4848772342 | L63: 0.6412661346 | M63: 1.699997 | N63: 1.521960878 | O63: 0.05727693665 | P63: 0.6691893791 | Q63: 1.295499229 | R63: -0.3187832653 | S63: -0.3187832653 | T63: -0.3302921534 | Y63: -0.3302921534 | AP63: 54202700
A64: 32 | B64: =OFFSET(InputPriceData!B$15,CalculationsAndCharts!$A64+$A$11,0,1,1) -> 2017-10-31 | C64: =OFFSET(InputPriceData!G$15,CalculationsAndCharts!$A64+$A$11,IF($C$7,8,0),1,1) -> 60304800 | D64: =OFFSET(InputPriceData!C$15,CalculationsAndCharts!$A64+$A$11,IF($C$7,8,0),1,1) -> 257.179993 | E64: =OFFSET(InputPriceData!D$15,CalculationsAndCharts!$A64+$A$11,IF($C$7,8,0),1,1) -> 257.440002 | F64: =OFFSET(InputPriceData!E$15,CalculationsAndCharts!$A64+$A$11,IF($C$7,8,0),1,1) -> 256.809998 | G64: =OFFSET(InputPriceData!F$15,CalculationsAndCharts!$A64+$A$11,IF($C$7,8,0),1,1) -> 257.149994 | H64: 256.8330658 | I64: 0.2928471948 | J64: 2.176325122 | K64: 0.4848772342 | L64: 0.6355953668 | M64: 1.429993 | N64: 1.464683941 | O64: 0.06608324825 | P64: 0.6119124425 | Q64: 1.817818884 | R64: -0.4963126699 | S64: -0.4963126699 | T64: -0.5444017209 | Y64: -0.5444017209 | AP64: 60304800
A65: 33 | B65: =OFFSET(InputPriceData!B$15,CalculationsAndCharts!$A65+$A$11,0,1,1) -> 2017-10-30 | C65: =OFFSET(InputPriceData!G$15,CalculationsAndCharts!$A65+$A$11,IF($C$7,8,0),1,1) -> 54285700 | D65: =OFFSET(InputPriceData!C$15,CalculationsAndCharts!$A65+$A$11,IF($C$7,8,0),1,1) -> 256.470001 | E65: =OFFSET(InputPriceData!D$15,CalculationsAndCharts!$A65+$A$11,IF($C$7,8,0),1,1) -> 257.600006 | F65: =OFFSET(InputPriceData!E$15,CalculationsAndCharts!$A65+$A$11,IF($C$7,8,0),1,1) -> 256.410004 | G65: =OFFSET(InputPriceData!F$15,CalculationsAndCharts!$A65+$A$11,IF($C$7,8,0),1,1) -> 256.75 | H65: 256.5402186 | I65: 0.4486758942 | J65: 2.084657745 | K65: 0.4848772342 | L65: 0.6225953426 | M65: 1.279999 | N65: 1.398600693 | O65: 0.2474960763 | P65: 0.5458291942 | Q65: 2.344311326 | R65: -0.6222818991 | S65: -0.6222818991 | T65: -0.7287204321 | Y65: -0.7287204321 | AO65: 54285700
A66: 34 | B66: =OFFSET(InputPriceData!B$15,CalculationsAndCharts!$A66+$A$11,0,1,1) -> 2017-10-27 | C66: =OFFSET(InputPriceData!G$15,CalculationsAndCharts!$A66+$A$11,IF($C$7,8,0),1,1) -> 85562500 | D66: =OFFSET(InputPriceData!C$15,CalculationsAndCharts!$A66+$A$11,IF($C$7,8,0),1,1) -> 256.470001 | E66: =OFFSET(InputPriceData!D$15,CalculationsAndCharts!$A66+$A$11,IF($C$7,8,0),1,1) -> 257.890015 | F66: =OFFSET(InputPriceData!E$15,CalculationsAndCharts!$A66+$A$11,IF($C$7,8,0),1,1) -> 255.630005 | G66: =OFFSET(InputPriceData!F$15,CalculationsAndCharts!$A66+$A$11,IF($C$7,8,0),1,1) -> 257.709991 | H66: 256.0915427 | I66: 0.1386185639 | J66: 1.774345222 | K66: 0.4848772342 | L66: 0.5707574234 | M66: 2.419998 | N66: 1.151104616 | O66: 0.0002551921807 | P66: 0.2983331179 | Q66: 3.053829226 | R66: -0.822005567 | S66: -0.822005567 | T66: -1.162970429 | Y66: -1.162970429 | AO66: 85562500
A67: 35 | B67: =OFFSET(InputPriceData!B$15,CalculationsAndCharts!$A67+$A$11,0,1,1) -> 2017-10-26 | C67: =OFFSET(InputPriceData!G$15,CalculationsAndCharts!$A67+$A$11,IF($C$7,8,0),1,1) -> 69798000 | D67: =OFFSET(InputPriceData!C$15,CalculationsAndCharts!$A67+$A$11,IF($C$7,8,0),1,1) -> 255.990005 | E67: =OFFSET(InputPriceData!D$15,CalculationsAndCharts!$A67+$A$11,IF($C$7,8,0),1,1) -> 256.299988 | F67: =OFFSET(InputPriceData!E$15,CalculationsAndCharts!$A67+$A$11,IF($C$7,8,0),1,1) -> 255.479996 | G67: =OFFSET(InputPriceData!F$15,CalculationsAndCharts!$A67+$A$11,IF($C$7,8,0),1,1) -> 255.619995 | H67: 255.9529242 | I67: -0.3444606831 | J67: 1.714110909 | K67: 0.4848772342 | L67: 0.5589996829 | M67: 0.669998 | N67: 1.150849424 | O67: -0.4228449332 | P67: 0.2980779258 | Q67: 3.728408639 | R67: -0.8519414279 | S67: -0.8519414279 | T67: -1.263190918 | Y67: -1.263190918 | AP67: 69798000
A68: 36 | B68: =OFFSET(InputPriceData!B$15,CalculationsAndCharts!$A68+$A$11,0,1,1) -> 2017-10-25 | C68: =OFFSET(InputPriceData!G$15,CalculationsAndCharts!$A68+$A$11,IF($C$7,8,0),1,1) -> 103715300 | D68: =OFFSET(InputPriceData!C$15,CalculationsAndCharts!$A68+$A$11,IF($C$7,8,0),1,1) -> 256.179993 | E68: =OFFSET(InputPriceData!D$15,CalculationsAndCharts!$A68+$A$11,IF($C$7,8,0),1,1) -> 256.309998 | F68: =OFFSET(InputPriceData!E$15,CalculationsAndCharts!$A68+$A$11,IF($C$7,8,0),1,1) -> 254 | G68: =OFFSET(InputPriceData!F$15,CalculationsAndCharts!$A68+$A$11,IF($C$7,8,0),1,1) -> 255.289993 | H68: 256.2973849 | I68: -0.1404165511 | J68: 1.875448891 | K68: 0.1404165511 | L68: 0.8606885676 | M68: 0.649994 | N68: 1.573694357 | O68: -0.3017545338 | P68: 0.2980779258 | Q68: 3.675693877 | R68: -0.8499773311 | S68: -0.8499773311 | T68: -1.256071128 | Y68: -1.256071128 | AP68: 103715300
A69: 37 | B69: =OFFSET(InputPriceData!B$15,CalculationsAndCharts!$A69+$A$11,0,1,1) -> 2017-10-24 | C69: =OFFSET(InputPriceData!G$15,CalculationsAndCharts!$A69+$A$11,IF($C$7,8,0),1,1) -> 66935900 | D69: =OFFSET(InputPriceData!C$15,CalculationsAndCharts!$A69+$A$11,IF($C$7,8,0),1,1) -> 256.600006 | E69: =OFFSET(InputPriceData!D$15,CalculationsAndCharts!$A69+$A$11,IF($C$7,8,0),1,1) -> 256.829987 | F69: =OFFSET(InputPriceData!E$15,CalculationsAndCharts!$A69+$A$11,IF($C$7,8,0),1,1) -> 256.149994 | G69: =OFFSET(InputPriceData!F$15,CalculationsAndCharts!$A69+$A$11,IF($C$7,8,0),1,1) -> 256.559998 | H69: 256.4378014 | I69: 0.1248398239 | J69: 2.077614973 | K69: 0 | L69: 1 | M69: 1.539994 | N69: 1.875448891 | O69: -0.07732625826 | P69: 0.2980779258 | Q69: 3.518217211 | R69: -0.8437867538 | S69: -0.8437867538 | T69: -1.234177359 | Y69: -1.234177359 | AP69: 66935900
A70: 38 | B70: =OFFSET(InputPriceData!B$15,CalculationsAndCharts!$A70+$A$11,0,1,1) -> 2017-10-23 | C70: =OFFSET(InputPriceData!G$15,CalculationsAndCharts!$A70+$A$11,IF($C$7,8,0),1,1) -> 63915300 | D70: =OFFSET(InputPriceData!C$15,CalculationsAndCharts!$A70+$A$11,IF($C$7,8,0),1,1) -> 257.480011 | E70: =OFFSET(InputPriceData!D$15,CalculationsAndCharts!$A70+$A$11,IF($C$7,8,0),1,1) -> 257.51001 | F70: =OFFSET(InputPriceData!E$15,CalculationsAndCharts!$A70+$A$11,IF($C$7,8,0),1,1) -> 256.019989 | G70: =OFFSET(InputPriceData!F$15,CalculationsAndCharts!$A70+$A$11,IF($C$7,8,0),1,1) -> 256.109985 | H70: 256.3129616 | I70: 0.3553408346 | J70: 2.072364228 | K70: 0 | L70: 1 | M70: 1.48999 | N70: 1.95277515 | O70: 0.2357517564 | P70: 0.3711994631 | Q70: 3.440890952 | R70: -0.8052514906 | S70: -0.8052514906 | T70: -1.11337308 | Y70: -1.11337308 | AP70: 63915300
A71: 39 | B71: =OFFSET(InputPriceData!B$15,CalculationsAndCharts!$A71+$A$11,0,1,1) -> 2017-10-20 | C71: =OFFSET(InputPriceData!G$15,CalculationsAndCharts!$A71+$A$11,IF($C$7,8,0),1,1) -> 89176400 | D71: =OFFSET(InputPriceData!C$15,CalculationsAndCharts!$A71+$A$11,IF($C$7,8,0),1,1) -> 256.700012 | E71: =OFFSET(InputPriceData!D$15,CalculationsAndCharts!$A71+$A$11,IF($C$7,8,0),1,1) -> 257.140015 | F71: =OFFSET(InputPriceData!E$15,CalculationsAndCharts!$A71+$A$11,IF($C$7,8,0),1,1) -> 255.770004 | G71: =OFFSET(InputPriceData!F$15,CalculationsAndCharts!$A71+$A$11,IF($C$7,8,0),1,1) -> 257.109985 | H71: 255.9576208 | I71: 0.3776842875 | J71: 2.032381511 | K71: 0 | L71: 1 | M71: 3.159988 | N71: 1.717023393 | O71: 0.06232616932 | P71: 0.6825367286 | Q71: 3.440890952 | R71: -0.6689469144 | S71: -0.6689469144 | T71: -0.8088346871 | Y71: -0.8088346871 | AO71: 89176400
A72: 40 | B72: =OFFSET(InputPriceData!B$15,CalculationsAndCharts!$A72+$A$11,0,1,1) -> 2017-10-19 | C72: =OFFSET(InputPriceData!G$15,CalculationsAndCharts!$A72+$A$11,IF($C$7,8,0),1,1) -> 61903800 | D72: =OFFSET(InputPriceData!C$15,CalculationsAndCharts!$A72+$A$11,IF($C$7,8,0),1,1) -> 254.830002 | E72: =OFFSET(InputPriceData!D$15,CalculationsAndCharts!$A72+$A$11,IF($C$7,8,0),1,1) -> 255.830002 | F72: =OFFSET(InputPriceData!E$15,CalculationsAndCharts!$A72+$A$11,IF($C$7,8,0),1,1) -> 254.350006 | G72: =OFFSET(InputPriceData!F$15,CalculationsAndCharts!$A72+$A$11,IF($C$7,8,0),1,1) -> 255.789993 | H72: 255.5799365 | I72: 0.2115545762 | J72: 2.359825304 | K72: 0 | L72: 1 | M72: 1.419998 | N72: 1.654697224 | O72: -0.4935735036 | P72: 1.550754201 | Q72: 3.440890952 | R72: -0.3786600798 | S72: -0.3786600798 | T72: -0.398494521 | Y72: -0.398494521 | AO72: 61903800
A73: 41 | B73: =OFFSET(InputPriceData!B$15,CalculationsAndCharts!$A73+$A$11,0,1,1) -> 2017-10-18 | C73: =OFFSET(InputPriceData!G$15,CalculationsAndCharts!$A73+$A$11,IF($C$7,8,0),1,1) -> 40888300 | D73: =OFFSET(InputPriceData!C$15,CalculationsAndCharts!$A73+$A$11,IF($C$7,8,0),1,1) -> 255.899994 | E73: =OFFSET(InputPriceData!D$15,CalculationsAndCharts!$A73+$A$11,IF($C$7,8,0),1,1) -> 255.949997 | F73: =OFFSET(InputPriceData!E$15,CalculationsAndCharts!$A73+$A$11,IF($C$7,8,0),1,1) -> 255.5 | G73: =OFFSET(InputPriceData!F$15,CalculationsAndCharts!$A73+$A$11,IF($C$7,8,0),1,1) -> 255.720001 | H73: 255.3683819 | I73: 0.2267639466 | J73: 2.897354329 | K73: 0 | L73: 1 | M73: 1.059997 | N73: 2.148270727 | O73: -0.5223196554 | P73: 2.457268413 | Q73: 2.947317449 | R73: -0.09067281897 | S73: -0.09067281897 | T73: -0.09092254268 | Y73: -0.09092254268 | AP73: 40888300
A74: 42 | B74: =OFFSET(InputPriceData!B$15,CalculationsAndCharts!$A74+$A$11,0,1,1) -> 2017-10-17 | C74: =OFFSET(InputPriceData!G$15,CalculationsAndCharts!$A74+$A$11,IF($C$7,8,0),1,1) -> 31561000 | D74: =OFFSET(InputPriceData!C$15,CalculationsAndCharts!$A74+$A$11,IF($C$7,8,0),1,1) -> 255.229996 | E74: =OFFSET(InputPriceData!D$15,CalculationsAndCharts!$A74+$A$11,IF($C$7,8,0),1,1) -> 255.520004 | F74: =OFFSET(InputPriceData!E$15,CalculationsAndCharts!$A74+$A$11,IF($C$7,8,0),1,1) -> 254.979996 | G74: =OFFSET(InputPriceData!F$15,CalculationsAndCharts!$A74+$A$11,IF($C$7,8,0),1,1) -> 255.470001 | H74: 255.1416179 | I74: 0.2011798179 | J74: 3.398262642 | K74: 0 | L74: 1 | M74: 2.309997 | N74: 2.670590383 | O74: -0.5264924413 | P74: 3.213965405 | Q74: 2.424997793 | R74: 0.1399135947 | S74: 0.1399135947 | T74: 0.1408374445 | Y74: 0.1408374445 | AO74: 31561000
A75: 43 | B75: =OFFSET(InputPriceData!B$15,CalculationsAndCharts!$A75+$A$11,0,1,1) -> 2017-10-16 | C75: =OFFSET(InputPriceData!G$15,CalculationsAndCharts!$A75+$A$11,IF($C$7,8,0),1,1) -> 38221700 | D75: =OFFSET(InputPriceData!C$15,CalculationsAndCharts!$A75+$A$11,IF($C$7,8,0),1,1) -> 255.210007 | E75: =OFFSET(InputPriceData!D$15,CalculationsAndCharts!$A75+$A$11,IF($C$7,8,0),1,1) -> 255.509995 | F75: =OFFSET(InputPriceData!E$15,CalculationsAndCharts!$A75+$A$11,IF($C$7,8,0),1,1) -> 254.820007 | G75: =OFFSET(InputPriceData!F$15,CalculationsAndCharts!$A75+$A$11,IF($C$7,8,0),1,1) -> 255.289993 | H75: 254.9404381 | I75: 0.1383633717 | J75: 4.044964096 | K75: 0 | L75: 1 | M75: 2.429992 | N75: 3.197082824 | O75: -0.7095179006 | P75: 4.00300889 | Q75: 1.898505352 | R75: 0.356603992 | S75: 0.356603992 | T75: 0.3729896905 | Y75: 0.3729896905 | AO75: 38221700
A76: 44 | B76: =OFFSET(InputPriceData!B$15,CalculationsAndCharts!$A76+$A$11,0,1,1) -> 2017-10-13 | C76: =OFFSET(InputPriceData!G$15,CalculationsAndCharts!$A76+$A$11,IF($C$7,8,0),1,1) -> 54800400 | D76: =OFFSET(InputPriceData!C$15,CalculationsAndCharts!$A76+$A$11,IF($C$7,8,0),1,1) -> 255.139999 | E76: =OFFSET(InputPriceData!D$15,CalculationsAndCharts!$A76+$A$11,IF($C$7,8,0),1,1) -> 255.270004 | F76: =OFFSET(InputPriceData!E$15,CalculationsAndCharts!$A76+$A$11,IF($C$7,8,0),1,1) -> 254.639999 | G76: =OFFSET(InputPriceData!F$15,CalculationsAndCharts!$A76+$A$11,IF($C$7,8,0),1,1) -> 254.949997 | H76: 254.8020748 | I76: 0.07838425019 | J76: 4.659564388 | K76: 0 | L76: 1 | M76: 2.62999 | N76: 3.906600725 | O76: -0.6745794129 | P76: 4.805303197 | Q76: 1.188987451 | R76: 0.6032933599 | S76: 0.6032933599 | T76: 0.6983090385 | Y76: 0.6983090385 | AP76: 54800400
A77: 45 | B77: =OFFSET(InputPriceData!B$15,CalculationsAndCharts!$A77+$A$11,0,1,1) -> 2017-10-12 | C77: =OFFSET(InputPriceData!G$15,CalculationsAndCharts!$A77+$A$11,IF($C$7,8,0),1,1) -> 47065100 | D77: =OFFSET(InputPriceData!C$15,CalculationsAndCharts!$A77+$A$11,IF($C$7,8,0),1,1) -> 254.660004 | E77: =OFFSET(InputPriceData!D$15,CalculationsAndCharts!$A77+$A$11,IF($C$7,8,0),1,1) -> 255.059998 | F77: =OFFSET(InputPriceData!E$15,CalculationsAndCharts!$A77+$A$11,IF($C$7,8,0),1,1) -> 254.369995 | G77: =OFFSET(InputPriceData!F$15,CalculationsAndCharts!$A77+$A$11,IF($C$7,8,0),1,1) -> 254.639999 | H77: 254.7236905 | I77: 0.1613379827 | J77: 5.112648291 | K77: 0 | L77: 1 | M77: 3.410003 | N77: 4.581180138 | O77: -0.3701301712 | P77: 5.478776293 | Q77: 0.5144080385 | R77: 0.8283356526 | S77: 0.8283356526 | T77: 1.182810125 | Y77: 1.182810125 | AP77: 47065100
A78: 46 | B78: =OFFSET(InputPriceData!B$15,CalculationsAndCharts!$A78+$A$11,0,1,1) -> 2017-10-11 | C78: =OFFSET(InputPriceData!G$15,CalculationsAndCharts!$A78+$A$11,IF($C$7,8,0),1,1) -> 47674300 | D78: =OFFSET(InputPriceData!C$15,CalculationsAndCharts!$A78+$A$11,IF($C$7,8,0),1,1) -> 254.509995 | E78: =OFFSET(InputPriceData!D$15,CalculationsAndCharts!$A78+$A$11,IF($C$7,8,0),1,1) -> 255.020004 | F78: =OFFSET(InputPriceData!E$15,CalculationsAndCharts!$A78+$A$11,IF($C$7,8,0),1,1) -> 254.320007 | G78: =OFFSET(InputPriceData!F$15,CalculationsAndCharts!$A78+$A$11,IF($C$7,8,0),1,1) -> 255.020004 | H78: 254.5623525 | I78: 0.2021660821 | J78: 5.297754258 | K78: 0 | L78: 1 | M78: 4.669998 | N78: 4.951310309 | O78: -0.1442778673 | P78: 5.676804225 | Q78: 0.1442778673 | R78: 0.9504291934 | S78: 0.9504291934 | T78: 1.836201321 | Y78: 1.836201321 | AO78: 47674300
A79: 47 | B79: =OFFSET(InputPriceData!B$15,CalculationsAndCharts!$A79+$A$11,0,1,1) -> 2017-10-10 | C79: =OFFSET(InputPriceData!G$15,CalculationsAndCharts!$A79+$A$11,IF($C$7,8,0),1,1) -> 43057400 | D79: =OFFSET(InputPriceData!C$15,CalculationsAndCharts!$A79+$A$11,IF($C$7,8,0),1,1) -> 254.600006 | E79: =OFFSET(InputPriceData!D$15,CalculationsAndCharts!$A79+$A$11,IF($C$7,8,0),1,1) -> 255.050003 | F79: =OFFSET(InputPriceData!E$15,CalculationsAndCharts!$A79+$A$11,IF($C$7,8,0),1,1) -> 253.979996 | G79: =OFFSET(InputPriceData!F$15,CalculationsAndCharts!$A79+$A$11,IF($C$7,8,0),1,1) -> 254.619995 | H79: 254.3601864 | I79: 0.1195890782 | J79: 5.142055717 | K79: 0 | L79: 1 | M79: 4.569992 | N79: 5.095588176 | O79: 0.07312153736 | P79: 5.676804225 | Q79: 0.6253329999 | R79: 0.8015489103 | S79: 0.8015489103 | T79: 1.102929705 | Y79: 1.102929705 | AO79: 43057400
A80: 48 | B80: =OFFSET(InputPriceData!B$15,CalculationsAndCharts!$A80+$A$11,0,1,1) -> 2017-10-09 | C80: =OFFSET(InputPriceData!G$15,CalculationsAndCharts!$A80+$A$11,IF($C$7,8,0),1,1) -> 35803100 | D80: =OFFSET(InputPriceData!C$15,CalculationsAndCharts!$A80+$A$11,IF($C$7,8,0),1,1) -> 254.630005 | E80: =OFFSET(InputPriceData!D$15,CalculationsAndCharts!$A80+$A$11,IF($C$7,8,0),1,1) -> 254.699997 | F80: =OFFSET(InputPriceData!E$15,CalculationsAndCharts!$A80+$A$11,IF($C$7,8,0),1,1) -> 253.649994 | G80: =OFFSET(InputPriceData!F$15,CalculationsAndCharts!$A80+$A$11,IF($C$7,8,0),1,1) -> 253.949997 | H80: 254.2405974 | I80: 0.3153581182 | J80: 5.022466639 | K80: 0.2317309037 | L80: 0.9117920855 | M80: 4.869995 | N80: 5.022466639 | O80: 0.5470890219 | P80: 5.603682687 | Q80: 1.869209557 | R80: 0.4997359802 | S80: 0.4997359802 | T80: 0.5489541798 | Y80: 0.5489541798 | AP80: 35803100
A81: 49 | B81: =OFFSET(InputPriceData!B$15,CalculationsAndCharts!$A81+$A$11,0,1,1) -> 2017-10-06 | C81: =OFFSET(InputPriceData!G$15,CalculationsAndCharts!$A81+$A$11,IF($C$7,8,0),1,1) -> 80646000 | D81: =OFFSET(InputPriceData!C$15,CalculationsAndCharts!$A81+$A$11,IF($C$7,8,0),1,1) -> 254.149994 | E81: =OFFSET(InputPriceData!D$15,CalculationsAndCharts!$A81+$A$11,IF($C$7,8,0),1,1) -> 254.699997 | F81: =OFFSET(InputPriceData!E$15,CalculationsAndCharts!$A81+$A$11,IF($C$7,8,0),1,1) -> 253.850006 | G81: =OFFSET(InputPriceData!F$15,CalculationsAndCharts!$A81+$A$11,IF($C$7,8,0),1,1) -> 254.369995 | H81: 253.9252392 | I81: 0.7051280798 | J81: 4.70710852 | K81: 0.4571464652 | L81: 0.8229574386 | M81: 5.440002 | N81: 4.475377617 | O81: 0.9305436412 | P81: 5.056593665 | Q81: 3.073736354 | R81: 0.2438839883 | S81: 0.2438839883 | T81: 0.2488995964 | Y81: 0.2488995964 | AO81: 80646000
A82: 50 | B82: =OFFSET(InputPriceData!B$15,CalculationsAndCharts!$A82+$A$11,0,1,1) -> 2017-10-05 | C82: =OFFSET(InputPriceData!G$15,CalculationsAndCharts!$A82+$A$11,IF($C$7,8,0),1,1) -> 63522800 | D82: =OFFSET(InputPriceData!C$15,CalculationsAndCharts!$A82+$A$11,IF($C$7,8,0),1,1) -> 253.539993 | E82: =OFFSET(InputPriceData!D$15,CalculationsAndCharts!$A82+$A$11,IF($C$7,8,0),1,1) -> 254.679993 | F82: =OFFSET(InputPriceData!E$15,CalculationsAndCharts!$A82+$A$11,IF($C$7,8,0),1,1) -> 253.199997 | G82: =OFFSET(InputPriceData!F$15,CalculationsAndCharts!$A82+$A$11,IF($C$7,8,0),1,1) -> 254.660004 | H82: 253.2201112 | I82: 0.749083602 | J82: 4.001980441 | K82: 0.6145770759 | L82: 0.7337509286 | M82: 5.220002 | N82: 3.544833976 | O82: 0.9065142127 | P82: 4.126050024 | Q82: 3.573549155 | R82: 0.07175709497 | S82: 0.07175709497 | T82: 0.0718806379 | Y82: 0.0718806379 | AO82: =IF(G82>=D82,C82,NA()) -> 63522800 | AP82: =IF(G82<D82,C82,NA()) -> 
A83: 51 | B83: =OFFSET(InputPriceData!B$15,CalculationsAndCharts!$A83+$A$11,0,1,1) -> 2017-10-04 | C83: =OFFSET(InputPriceData!G$15,CalculationsAndCharts!$A83+$A$11,IF($C$7,8,0),1,1) -> 55953600 | D83: =OFFSET(InputPriceData!C$15,CalculationsAndCharts!$A83+$A$11,IF($C$7,8,0),1,1) -> 252.690002 | E83: =OFFSET(InputPriceData!D$15,CalculationsAndCharts!$A83+$A$11,IF($C$7,8,0),1,1) -> 253.440002 | F83: =OFFSET(InputPriceData!E$15,CalculationsAndCharts!$A83+$A$11,IF($C$7,8,0),1,1) -> 252.559998 | G83: =OFFSET(InputPriceData!F$15,CalculationsAndCharts!$A83+$A$11,IF($C$7,8,0),1,1) -> 253.160004 | H83: 252.4710276 | I83: 0.7276722592 | J83: 3.252896839 | K83: 0.6436018083 | L83: 0.6696512092 | M83: 3.770005 | N83: 2.638319763 | O83: 0.7566969915 | P83: 3.28451329 | Q83: 3.573549155 | R83: -0.04214541161 | S83: -0.04214541161 | T83: -0.04217039163 | Y83: -0.04217039163 | AO83: 55953600
A84: 52 | B84: =OFFSET(InputPriceData!B$15,CalculationsAndCharts!$A84+$A$11,0,1,1) -> 2017-10-03 | C84: =OFFSET(InputPriceData!G$15,CalculationsAndCharts!$A84+$A$11,IF($C$7,8,0),1,1) -> 66810200 | D84: =OFFSET(InputPriceData!C$15,CalculationsAndCharts!$A84+$A$11,IF($C$7,8,0),1,1) -> 252.320007 | E84: =OFFSET(InputPriceData!D$15,CalculationsAndCharts!$A84+$A$11,IF($C$7,8,0),1,1) -> 252.889999 | F84: =OFFSET(InputPriceData!E$15,CalculationsAndCharts!$A84+$A$11,IF($C$7,8,0),1,1) -> 252.229996 | G84: =OFFSET(InputPriceData!F$15,CalculationsAndCharts!$A84+$A$11,IF($C$7,8,0),1,1) -> 252.860001 | H84: 251.7433553 | I84: 0.8478812723 | J84: 2.584062367 | K84: 0.6436018083 | L84: 0.6011965475 | M84: 2.800003 | N84: 1.881622771 | O84: 0.789043485 | P84: 2.647014024 | Q84: 3.573549155 | R84: -0.1489471458 | S84: -0.1489471458 | T84: -0.1500635208 | Y84: -0.1500635208 | AO84: 66810200
A85: 53 | B85: =OFFSET(InputPriceData!B$15,CalculationsAndCharts!$A85+$A$11,0,1,1) -> 2017-10-02 | C85: =OFFSET(InputPriceData!G$15,CalculationsAndCharts!$A85+$A$11,IF($C$7,8,0),1,1) -> 59023000 | D85: =OFFSET(InputPriceData!C$15,CalculationsAndCharts!$A85+$A$11,IF($C$7,8,0),1,1) -> 251.490005 | E85: =OFFSET(InputPriceData!D$15,CalculationsAndCharts!$A85+$A$11,IF($C$7,8,0),1,1) -> 252.320007 | F85: =OFFSET(InputPriceData!E$15,CalculationsAndCharts!$A85+$A$11,IF($C$7,8,0),1,1) -> 251.289993 | G85: =OFFSET(InputPriceData!F$15,CalculationsAndCharts!$A85+$A$11,IF($C$7,8,0),1,1) -> 252.320007 | H85: 250.895474 | I85: 0.7529636631 | J85: 1.736181095 | K85: 0.6929324525 | L85: 0.4294771001 | M85: 2.350006 | N85: 1.092579286 | O85: 0.8022943073 | P85: 1.873946759 | Q85: 3.573549155 | R85: -0.3119970023 | S85: -0.3119970023 | T85: -0.3227562448 | Y85: -0.3227562448 | AO85: 59023000
A86: 54 | B86: =OFFSET(InputPriceData!B$15,CalculationsAndCharts!$A86+$A$11,0,1,1) -> 2017-09-29 | C86: =OFFSET(InputPriceData!G$15,CalculationsAndCharts!$A86+$A$11,IF($C$7,8,0),1,1) -> 85578000 | D86: =OFFSET(InputPriceData!C$15,CalculationsAndCharts!$A86+$A$11,IF($C$7,8,0),1,1) -> 250.339996 | E86: =OFFSET(InputPriceData!D$15,CalculationsAndCharts!$A86+$A$11,IF($C$7,8,0),1,1) -> 251.320007 | F86: =OFFSET(InputPriceData!E$15,CalculationsAndCharts!$A86+$A$11,IF($C$7,8,0),1,1) -> 250.130005 | G86: =OFFSET(InputPriceData!F$15,CalculationsAndCharts!$A86+$A$11,IF($C$7,8,0),1,1) -> 251.229996 | H86: 250.1425104 | I86: 0.5314681539 | J86: 0.9832174314 | K86: 0.8349373941 | L86: 0.0815552313 | M86: 1.509995 | N86: 0.2902849789 | O86: 0.6734730955 | P86: 1.071652452 | Q86: 4.140699055 | R86: -0.5888026927 | S86: -0.5888026927 | T86: -0.6758314112 | Y86: -0.6758314112 | AO86: 85578000
A87: 55 | B87: =OFFSET(InputPriceData!B$15,CalculationsAndCharts!$A87+$A$11,0,1,1) -> 2017-09-28 | C87: =OFFSET(InputPriceData!G$15,CalculationsAndCharts!$A87+$A$11,IF($C$7,8,0),1,1) -> 44778800 | D87: =OFFSET(InputPriceData!C$15,CalculationsAndCharts!$A87+$A$11,IF($C$7,8,0),1,1) -> 249.729996 | E87: =OFFSET(InputPriceData!D$15,CalculationsAndCharts!$A87+$A$11,IF($C$7,8,0),1,1) -> 250.440002 | F87: =OFFSET(InputPriceData!E$15,CalculationsAndCharts!$A87+$A$11,IF($C$7,8,0),1,1) -> 249.630005 | G87: =OFFSET(InputPriceData!F$15,CalculationsAndCharts!$A87+$A$11,IF($C$7,8,0),1,1) -> 250.350006 | H87: 249.6110422 | I87: 0.3464439494 | J87: 0.6001652949 | K87: 0.8349373941 | L87: -0.1635925436 | M87: 1.160004 | N87: -0.3831881165 | O87: 0.1980279321 | P87: 0.3981793566 | Q87: 4.944378939 | R87: -0.8509405665 | S87: -0.8509405665 | T87: -1.259552047 | Y87: -1.259552047 | AO87: 44778800
A88: 56 | B88: =OFFSET(InputPriceData!B$15,CalculationsAndCharts!$A88+$A$11,0,1,1) -> 2017-09-27 | C88: =OFFSET(InputPriceData!G$15,CalculationsAndCharts!$A88+$A$11,IF($C$7,8,0),1,1) -> 81001400 | D88: =OFFSET(InputPriceData!C$15,CalculationsAndCharts!$A88+$A$11,IF($C$7,8,0),1,1) -> 249.880005 | E88: =OFFSET(InputPriceData!D$15,CalculationsAndCharts!$A88+$A$11,IF($C$7,8,0),1,1) -> 250.490005 | F88: =OFFSET(InputPriceData!E$15,CalculationsAndCharts!$A88+$A$11,IF($C$7,8,0),1,1) -> 248.869995 | G88: =OFFSET(InputPriceData!F$15,CalculationsAndCharts!$A88+$A$11,IF($C$7,8,0),1,1) -> 250.050003 | H88: 249.2645983 | I88: 0.0464675408 | J88: 0.9255218861 | K88: 0.8349373941 | L88: 0.05145503396 | M88: -0.039993 | N88: -0.5812160487 | O88: -0.6253329999 | P88: 0.2001514245 | Q88: 5.032764158 | R88: -0.9235029034 | S88: -0.9235029034 | T88: -1.612325222 | Y88: -1.612325222 | AO88: 81001400
A89: 57 | B89: =OFFSET(InputPriceData!B$15,CalculationsAndCharts!$A89+$A$11,0,1,1) -> 2017-09-26 | C89: =OFFSET(InputPriceData!G$15,CalculationsAndCharts!$A89+$A$11,IF($C$7,8,0),1,1) -> 54082000 | D89: =OFFSET(InputPriceData!C$15,CalculationsAndCharts!$A89+$A$11,IF($C$7,8,0),1,1) -> 249.419998 | E89: =OFFSET(InputPriceData!D$15,CalculationsAndCharts!$A89+$A$11,IF($C$7,8,0),1,1) -> 249.699997 | F89: =OFFSET(InputPriceData!E$15,CalculationsAndCharts!$A89+$A$11,IF($C$7,8,0),1,1) -> 248.809998 | G89: =OFFSET(InputPriceData!F$15,CalculationsAndCharts!$A89+$A$11,IF($C$7,8,0),1,1) -> 249.080002 | H89: 249.2181307 | I89: -0.2317309037 | J89: 1.891199999 | K89: 0.8349373941 | L89: 0.3874575828 | M89: -1.089996 | N89: 0.04411695125 | O89: -1.243876557 | P89: 0.8683665484 | Q89: 4.407431158 | R89: -0.6708112795 | S89: -0.6708112795 | T89: -0.8122166893 | Y89: -0.8122166893 | AP89: 54082000
A90: 58 | B90: =OFFSET(InputPriceData!B$15,CalculationsAndCharts!$A90+$A$11,0,1,1) -> 2017-09-25 | C90: =OFFSET(InputPriceData!G$15,CalculationsAndCharts!$A90+$A$11,IF($C$7,8,0),1,1) -> 57064400 | D90: =OFFSET(InputPriceData!C$15,CalculationsAndCharts!$A90+$A$11,IF($C$7,8,0),1,1) -> 249.149994 | E90: =OFFSET(InputPriceData!D$15,CalculationsAndCharts!$A90+$A$11,IF($C$7,8,0),1,1) -> 249.550003 | F90: =OFFSET(InputPriceData!E$15,CalculationsAndCharts!$A90+$A$11,IF($C$7,8,0),1,1) -> 248.080002 | G90: =OFFSET(InputPriceData!F$15,CalculationsAndCharts!$A90+$A$11,IF($C$7,8,0),1,1) -> 248.929993 | H90: 249.4498616 | I90: -0.2254155615 | J90: 2.870311235 | K90: 0.6032064904 | L90: 0.6526826473 | M90: -1.12001 | N90: 1.287993508 | O90: -1.204526797 | P90: 1.718261061 | Q90: 3.163554601 | R90: -0.2960565577 | S90: -0.2960565577 | T90: -0.3051917504 | Y90: -0.3051917504 | AP90: 57064400
A91: 59 | B91: =OFFSET(InputPriceData!B$15,CalculationsAndCharts!$A91+$A$11,0,1,1) -> 2017-09-22 | C91: =OFFSET(InputPriceData!G$15,CalculationsAndCharts!$A91+$A$11,IF($C$7,8,0),1,1) -> 51214000 | D91: =OFFSET(InputPriceData!C$15,CalculationsAndCharts!$A91+$A$11,IF($C$7,8,0),1,1) -> 249.050003 | E91: =OFFSET(InputPriceData!D$15,CalculationsAndCharts!$A91+$A$11,IF($C$7,8,0),1,1) -> 249.630005 | F91: =OFFSET(InputPriceData!E$15,CalculationsAndCharts!$A91+$A$11,IF($C$7,8,0),1,1) -> 249.020004 | G91: =OFFSET(InputPriceData!F$15,CalculationsAndCharts!$A91+$A$11,IF($C$7,8,0),1,1) -> 249.440002 | H91: 249.6752772 | I91: -0.1574306108 | J91: 3.212693424 | K91: 0.3777909289 | L91: 0.7895599079 | M91: 0.229995 | N91: 2.492520306 | O91: -0.4998128005 | P91: 1.948354294 | Q91: 1.959027804 | R91: -0.00273162684 | S91: -0.00273162684 | T91: -0.002731633634 | Y91: -0.002731633634 | AO91: 51214000
A92: 60 | B92: =OFFSET(InputPriceData!B$15,CalculationsAndCharts!$A92+$A$11,0,1,1) -> 2017-09-21 | C92: =OFFSET(InputPriceData!G$15,CalculationsAndCharts!$A92+$A$11,IF($C$7,8,0),1,1) -> 48211400 | D92: =OFFSET(InputPriceData!C$15,CalculationsAndCharts!$A92+$A$11,IF($C$7,8,0),1,1) -> 249.880005 | E92: =OFFSET(InputPriceData!D$15,CalculationsAndCharts!$A92+$A$11,IF($C$7,8,0),1,1) -> 249.979996 | F92: =OFFSET(InputPriceData!E$15,CalculationsAndCharts!$A92+$A$11,IF($C$7,8,0),1,1) -> 249.190002 | G92: =OFFSET(InputPriceData!F$15,CalculationsAndCharts!$A92+$A$11,IF($C$7,8,0),1,1) -> 249.389999 | H92: 249.8327078 | I92: -0.02902473235 | J92: 3.212693424 | K92: 0.3143625292 | L92: 0.82174225 | M92: 2.809997 | N92: 2.992333106 | O92: 0.06497747864 | P92: 1.948354294 | Q92: 1.649274097 | R92: 0.08313259878 | S92: 0.08313259878 | T92: 0.08332490744 | Y92: 0.08332490744 | AP92: 48211400
A93: 61 | B93: =OFFSET(InputPriceData!B$15,CalculationsAndCharts!$A93+$A$11,0,1,1) -> 2017-09-20 | C93: =OFFSET(InputPriceData!G$15,CalculationsAndCharts!$A93+$A$11,IF($C$7,8,0),1,1) -> 59574100 | D93: =OFFSET(InputPriceData!C$15,CalculationsAndCharts!$A93+$A$11,IF($C$7,8,0),1,1) -> 250.070007 | E93: =OFFSET(InputPriceData!D$15,CalculationsAndCharts!$A93+$A$11,IF($C$7,8,0),1,1) -> 250.190002 | F93: =OFFSET(InputPriceData!E$15,CalculationsAndCharts!$A93+$A$11,IF($C$7,8,0),1,1) -> 248.919998 | G93: =OFFSET(InputPriceData!F$15,CalculationsAndCharts!$A93+$A$11,IF($C$7,8,0),1,1) -> 250.059998 | H93: 249.8617325 | I93: 0.05883778733 | J93: 3.212693424 | K93: 0.3456977348 | L93: 0.8056999811 | M93: 3.190003 | N93: 2.927355627 | O93: 0.1191977253 | P93: 1.883376816 | Q93: 1.964855421 | R93: -0.02117299591 | S93: -0.02117299591 | T93: -0.02117616069 | Y93: -0.02117616069 | AP93: 59574100
A94: 62 | B94: =OFFSET(InputPriceData!B$15,CalculationsAndCharts!$A94+$A$11,0,1,1) -> 2017-09-19 | C94: =OFFSET(InputPriceData!G$15,CalculationsAndCharts!$A94+$A$11,IF($C$7,8,0),1,1) -> 47108100 | D94: =OFFSET(InputPriceData!C$15,CalculationsAndCharts!$A94+$A$11,IF($C$7,8,0),1,1) -> 250 | E94: =OFFSET(InputPriceData!D$15,CalculationsAndCharts!$A94+$A$11,IF($C$7,8,0),1,1) -> 250.070007 | F94: =OFFSET(InputPriceData!E$15,CalculationsAndCharts!$A94+$A$11,IF($C$7,8,0),1,1) -> 249.600006 | G94: =OFFSET(InputPriceData!F$15,CalculationsAndCharts!$A94+$A$11,IF($C$7,8,0),1,1) -> 249.970001 | H94: 249.8028947 | I94: -0.04933064425 | J94: 3.153855637 | K94: 0.4110045996 | L94: 0.7694133445 | M94: 3.070007 | N94: 2.808157902 | O94: 0.01597622055 | P94: 1.76417909 | Q94: 2.494307818 | R94: -0.1714526176 | S94: -0.1714526176 | T94: -0.1731628927 | Y94: -0.1731628927 | AP94: 47108100
A95: 63 | B95: =OFFSET(InputPriceData!B$15,CalculationsAndCharts!$A95+$A$11,0,1,1) -> 2017-09-18 | C95: =OFFSET(InputPriceData!G$15,CalculationsAndCharts!$A95+$A$11,IF($C$7,8,0),1,1) -> 46235200 | D95: =OFFSET(InputPriceData!C$15,CalculationsAndCharts!$A95+$A$11,IF($C$7,8,0),1,1) -> 249.610001 | E95: =OFFSET(InputPriceData!D$15,CalculationsAndCharts!$A95+$A$11,IF($C$7,8,0),1,1) -> 250.119995 | F95: =OFFSET(InputPriceData!E$15,CalculationsAndCharts!$A95+$A$11,IF($C$7,8,0),1,1) -> 249.279999 | G95: =OFFSET(InputPriceData!F$15,CalculationsAndCharts!$A95+$A$11,IF($C$7,8,0),1,1) -> 249.720001 | H95: 249.8522254 | I95: -0.1420049416 | J95: 3.579000595 | K95: 0.3616739553 | L95: 0.8164405862 | M95: 3.660003 | N95: 2.792181682 | O95: -0.5671498999 | P95: 2.352959747 | Q95: 2.494307818 | R95: -0.02916036079 | S95: -0.02916036079 | T95: -0.02916863028 | Y95: -0.02916863028 | AO95: 46235200
A96: 64 | B96: =OFFSET(InputPriceData!B$15,CalculationsAndCharts!$A96+$A$11,0,1,1) -> 2017-09-15 | C96: =OFFSET(InputPriceData!G$15,CalculationsAndCharts!$A96+$A$11,IF($C$7,8,0),1,1) -> 95432400 | D96: =OFFSET(InputPriceData!C$15,CalculationsAndCharts!$A96+$A$11,IF($C$7,8,0),1,1) -> 248.690002 | E96: =OFFSET(InputPriceData!D$15,CalculationsAndCharts!$A96+$A$11,IF($C$7,8,0),1,1) -> 249.289993 | F96: =OFFSET(InputPriceData!E$15,CalculationsAndCharts!$A96+$A$11,IF($C$7,8,0),1,1) -> 248.570007 | G96: =OFFSET(InputPriceData!F$15,CalculationsAndCharts!$A96+$A$11,IF($C$7,8,0),1,1) -> 249.190002 | H96: 249.9942303 | I96: 0.1484160173 | J96: 4.531096497 | K96: 0.2196690137 | L96: 0.9075226873 | M96: 1.350006 | N96: 3.359331581 | O96: -0.8036798846 | P96: 4.354032695 | Q96: 1.927157918 | R96: 0.3863717768 | S96: 0.3863717768 | T96: 0.407528068 | Y96: 0.407528068 | AO96: 95432400
A97: 65 | B97: =OFFSET(InputPriceData!B$15,CalculationsAndCharts!$A97+$A$11,0,1,1) -> 2017-09-14 | C97: =OFFSET(InputPriceData!G$15,CalculationsAndCharts!$A97+$A$11,IF($C$7,8,0),1,1) -> 95446300 | D97: =OFFSET(InputPriceData!C$15,CalculationsAndCharts!$A97+$A$11,IF($C$7,8,0),1,1) -> 249.800003 | E97: =OFFSET(InputPriceData!D$15,CalculationsAndCharts!$A97+$A$11,IF($C$7,8,0),1,1) -> 250.320007 | F97: =OFFSET(InputPriceData!E$15,CalculationsAndCharts!$A97+$A$11,IF($C$7,8,0),1,1) -> 249.600006 | G97: =OFFSET(InputPriceData!F$15,CalculationsAndCharts!$A97+$A$11,IF($C$7,8,0),1,1) -> 250.089996 | H97: 249.8458143 | I97: 0.6718005407 | J97: 5.14286624 | K97: 0.2196690137 | L97: 0.9180727013 | M97: 2.599991 | N97: 4.163011466 | O97: -0.08838521905 | P97: 6.20814626 | Q97: 1.123478033 | R97: 0.6935254759 | S97: 0.6935254759 | T97: 0.8547165411 | Y97: 0.8547165411 | AO97: 95446300
A98: 66 | B98: =OFFSET(InputPriceData!B$15,CalculationsAndCharts!$A98+$A$11,0,1,1) -> 2017-09-13 | C98: =OFFSET(InputPriceData!G$15,CalculationsAndCharts!$A98+$A$11,IF($C$7,8,0),1,1) -> 59228000 | D98: =OFFSET(InputPriceData!C$15,CalculationsAndCharts!$A98+$A$11,IF($C$7,8,0),1,1) -> 249.720001 | E98: =OFFSET(InputPriceData!D$15,CalculationsAndCharts!$A98+$A$11,IF($C$7,8,0),1,1) -> 250.210007 | F98: =OFFSET(InputPriceData!E$15,CalculationsAndCharts!$A98+$A$11,IF($C$7,8,0),1,1) -> 249.589996 | G98: =OFFSET(InputPriceData!F$15,CalculationsAndCharts!$A98+$A$11,IF($C$7,8,0),1,1) -> 250.169998 | H98: =$E$20*(G98+G99)/2+$E$21*H99+$E$22*H100 -> 249.1740138 | I98: =H98-H99 -> 1.012145653 | J98: =SUMIF(OFFSET(I98,0,0,$A$17,1),">0") -> 4.814996228 | K98: =-SUMIF(OFFSET(I98,0,0,$A$17,1),"<0") -> 0.2196690137 | L98: =IF((J98+K98)<>0,(J98-K98)/(J98+K98),0) -> 0.9127373904 | M98: =G98-OFFSET(G98,$A$17-1,0,1,1) -> 4.160003 | N98: =$E$20*(M98+M99)/2+$E$21*N99+$E$22*N100 -> 4.251396685 | O98: =N98-N99 -> 0.6682151239 | P98: =SUMIF(OFFSET(O98,0,0,$A$17,1),">0") -> 6.708858438 | Q98: =-SUMIF(OFFSET(O98,0,0,$A$17,1),"<0") -> 1.035092814 | R98: =IF((P98+Q98)<>0,(P98-Q98)/(P98+Q98),0) -> 0.7326706276 | S98: =IF(R98>0.999,0.999,IF(R98<-0.999,-0.999,R98)) -> 0.7326706276 | T98: =0.5*LN((1+S98)/(1-S98)) -> 0.9344688549 | Y98: =IF($R$10=1,L98,T98) -> 0.9344688549 | AO98: 59228000
A99: 67 | B99: =OFFSET(InputPriceData!B$15,CalculationsAndCharts!$A99+$A$11,0,1,1) -> 2017-09-12 | C99: =OFFSET(InputPriceData!G$15,CalculationsAndCharts!$A99+$A$11,IF($C$7,8,0),1,1) -> 56896000 | D99: =OFFSET(InputPriceData!C$15,CalculationsAndCharts!$A99+$A$11,IF($C$7,8,0),1,1) -> 249.630005 | E99: =OFFSET(InputPriceData!D$15,CalculationsAndCharts!$A99+$A$11,IF($C$7,8,0),1,1) -> 250.089996 | F99: =OFFSET(InputPriceData!E$15,CalculationsAndCharts!$A99+$A$11,IF($C$7,8,0),1,1) -> 249.419998 | G99: =OFFSET(InputPriceData!F$15,CalculationsAndCharts!$A99+$A$11,IF($C$7,8,0),1,1) -> 250.050003 | H99: 248.1618681 | I99: 0.9791112358 | J99: 3.932067298 | K99: 0.2196690137 | L99: 0.8941796891 | M99: 5.199997 | N99: 3.583181561 | O99: 0.8498945127 | P99: 6.040643314 | Q99: 1.489667219 | R99: 0.6043543722 | S99: 0.6043543722 | T99: 0.6999788815 | Y99: 0.6999788815 | AO99: 56896000
A100: 68 | B100: =OFFSET(InputPriceData!B$15,CalculationsAndCharts!$A100+$A$11,0,1,1) -> 2017-09-11 | C100: =OFFSET(InputPriceData!G$15,CalculationsAndCharts!$A100+$A$11,IF($C$7,8,0),1,1) -> 71364800 | D100: =OFFSET(InputPriceData!C$15,CalculationsAndCharts!$A100+$A$11,IF($C$7,8,0),1,1) -> 248.039993 | E100: =OFFSET(InputPriceData!D$15,CalculationsAndCharts!$A100+$A$11,IF($C$7,8,0),1,1) -> 249.300003 | F100: =OFFSET(InputPriceData!E$15,CalculationsAndCharts!$A100+$A$11,IF($C$7,8,0),1,1) -> 248.020004 | G100: =OFFSET(InputPriceData!F$15,CalculationsAndCharts!$A100+$A$11,IF($C$7,8,0),1,1) -> 249.210007 | H100: 247.1827569 | I100: 0.3423821897 | J100: 3.065245019 | K100: 0.2196690137 | L100: 0.8662558523 | M100: 4.64 | N100: 2.733287048 | O100: 0.230093233 | P100: 5.190748801 | Q100: 1.744272455 | R100: 0.4969669478 | S100: 0.4969669478 | T100: 0.5452702136 | Y100: 0.5452702136 | AO100: 71364800
A101: 69 | B101: =OFFSET(InputPriceData!B$15,CalculationsAndCharts!$A101+$A$11,0,1,1) -> 2017-09-08 | C101: =OFFSET(InputPriceData!G$15,CalculationsAndCharts!$A101+$A$11,IF($C$7,8,0),1,1) -> 63832800 | D101: =OFFSET(InputPriceData!C$15,CalculationsAndCharts!$A101+$A$11,IF($C$7,8,0),1,1) -> 246.539993 | E101: =OFFSET(InputPriceData!D$15,CalculationsAndCharts!$A101+$A$11,IF($C$7,8,0),1,1) -> 247.110001 | F101: =OFFSET(InputPriceData!E$15,CalculationsAndCharts!$A101+$A$11,IF($C$7,8,0),1,1) -> 246.300003 | G101: =OFFSET(InputPriceData!F$15,CalculationsAndCharts!$A101+$A$11,IF($C$7,8,0),1,1) -> 246.580002 | H101: 246.8403747 | I101: -0.094002211 | J101: 2.818919711 | K101: 0.2196690137 | L101: 0.85541379 | M101: 2.020004 | N101: 2.503193815 | O101: -0.1900590931 | P101: 5.527693041 | Q101: 1.744272455 | R101: 0.5202748264 | S101: 0.5202748264 | T101: 0.5767165098 | Y101: 0.5767165098 | AO101: 63832800
A102: 70 | B102: =OFFSET(InputPriceData!B$15,CalculationsAndCharts!$A102+$A$11,0,1,1) -> 2017-09-07 | C102: =OFFSET(InputPriceData!G$15,CalculationsAndCharts!$A102+$A$11,IF($C$7,8,0),1,1) -> 58034700 | D102: =OFFSET(InputPriceData!C$15,CalculationsAndCharts!$A102+$A$11,IF($C$7,8,0),1,1) -> 247.25 | E102: =OFFSET(InputPriceData!D$15,CalculationsAndCharts!$A102+$A$11,IF($C$7,8,0),1,1) -> 247.270004 | F102: =OFFSET(InputPriceData!E$15,CalculationsAndCharts!$A102+$A$11,IF($C$7,8,0),1,1) -> 246.399994 | G102: =OFFSET(InputPriceData!F$15,CalculationsAndCharts!$A102+$A$11,IF($C$7,8,0),1,1) -> 246.869995 | H102: 246.9343769 | I102: -0.06035993794 | J102: 3.074141098 | K102: 0.1256668027 | L102: 0.9214535331 | M102: 2.87999 | N102: 2.693252908 | O102: -0.3155813243 | P102: 7.007162695 | Q102: 1.554213362 | R102: 0.636924403 | S102: 0.636924403 | T102: 0.7529816636 | Y102: 0.7529816636 | AP102: 58034700
A103: 71 | B103: =OFFSET(InputPriceData!B$15,CalculationsAndCharts!$A103+$A$11,0,1,1) -> 2017-09-06 | C103: =OFFSET(InputPriceData!G$15,CalculationsAndCharts!$A103+$A$11,IF($C$7,8,0),1,1) -> 57916900 | D103: =OFFSET(InputPriceData!C$15,CalculationsAndCharts!$A103+$A$11,IF($C$7,8,0),1,1) -> 246.839996 | E103: =OFFSET(InputPriceData!D$15,CalculationsAndCharts!$A103+$A$11,IF($C$7,8,0),1,1) -> 247.279999 | F103: =OFFSET(InputPriceData!E$15,CalculationsAndCharts!$A103+$A$11,IF($C$7,8,0),1,1) -> 246.229996 | G103: =OFFSET(InputPriceData!F$15,CalculationsAndCharts!$A103+$A$11,IF($C$7,8,0),1,1) -> 246.899994 | H103: 246.9947368 | I103: -0.0653068648 | J103: 3.53828663 | K103: 0.0653068648 | L103: 0.9637545884 | M103: 2.339996 | N103: 3.008834233 | O103: -0.5294523967 | P103: 8.172784003 | Q103: 1.238632037 | R103: 0.736780941 | S103: 0.736780941 | T103: 0.9434010176 | Y103: 0.9434010176 | AO103: 57916900
A104: 72 | B104: =OFFSET(InputPriceData!B$15,CalculationsAndCharts!$A104+$A$11,0,1,1) -> 2017-09-05 | C104: =OFFSET(InputPriceData!G$15,CalculationsAndCharts!$A104+$A$11,IF($C$7,8,0),1,1) -> 91398800 | D104: =OFFSET(InputPriceData!C$15,CalculationsAndCharts!$A104+$A$11,IF($C$7,8,0),1,1) -> 247.259995 | E104: =OFFSET(InputPriceData!D$15,CalculationsAndCharts!$A104+$A$11,IF($C$7,8,0),1,1) -> 247.520004 | F104: =OFFSET(InputPriceData!E$15,CalculationsAndCharts!$A104+$A$11,IF($C$7,8,0),1,1) -> 244.949997 | G104: =OFFSET(InputPriceData!F$15,CalculationsAndCharts!$A104+$A$11,IF($C$7,8,0),1,1) -> 246.059998 | H104: 247.0600437 | I104: 0.4251449583 | J104: 3.53828663 | K104: 0.1796119186 | L104: 0.903379871 | M104: 0.619996 | N104: 3.53828663 | O104: 0.6047568769 | P104: 8.172784003 | Q104: 0.8463768289 | R104: 0.8123158363 | S104: 0.8123158363 | T104: 1.133800102 | Y104: 1.133800102 | AP104: 91398800
A105: 73 | B105: =OFFSET(InputPriceData!B$15,CalculationsAndCharts!$A105+$A$11,0,1,1) -> 2017-09-01 | C105: =OFFSET(InputPriceData!G$15,CalculationsAndCharts!$A105+$A$11,IF($C$7,8,0),1,1) -> 62007000 | D105: =OFFSET(InputPriceData!C$15,CalculationsAndCharts!$A105+$A$11,IF($C$7,8,0),1,1) -> 247.919998 | E105: =OFFSET(InputPriceData!D$15,CalculationsAndCharts!$A105+$A$11,IF($C$7,8,0),1,1) -> 248.330002 | F105: =OFFSET(InputPriceData!E$15,CalculationsAndCharts!$A105+$A$11,IF($C$7,8,0),1,1) -> 247.669998 | G105: =OFFSET(InputPriceData!F$15,CalculationsAndCharts!$A105+$A$11,IF($C$7,8,0),1,1) -> 247.839996 | H105: 246.6348988 | I105: 0.9520959019 | J105: 3.113141671 | K105: 1.228588965 | L105: 0.4340556482 | M105: 4.940002 | N105: 2.933529753 | O105: 2.001072949 | P105: 7.568027127 | Q105: 2.018606709 | R105: 0.5788705935 | S105: 0.5788705935 | T105: 0.6607624455 | Y105: 0.6607624455 | AP105: 62007000
A106: 74 | B106: =OFFSET(InputPriceData!B$15,CalculationsAndCharts!$A106+$A$11,0,1,1) -> 2017-08-31 | C106: =OFFSET(InputPriceData!G$15,CalculationsAndCharts!$A106+$A$11,IF($C$7,8,0),1,1) -> 103803900 | D106: =OFFSET(InputPriceData!C$15,CalculationsAndCharts!$A106+$A$11,IF($C$7,8,0),1,1) -> 246.720001 | E106: =OFFSET(InputPriceData!D$15,CalculationsAndCharts!$A106+$A$11,IF($C$7,8,0),1,1) -> 247.770004 | F106: =OFFSET(InputPriceData!E$15,CalculationsAndCharts!$A106+$A$11,IF($C$7,8,0),1,1) -> 246.050003 | G106: =OFFSET(InputPriceData!F$15,CalculationsAndCharts!$A106+$A$11,IF($C$7,8,0),1,1) -> 247.490005 | H106: 245.6828029 | I106: 0.7601857597 | J106: 2.161045769 | K106: 2.32251677 | L106: -0.03601399539 | M106: 4.779998 | N106: 0.9324568039 | O106: 1.854113564 | P106: 5.566954178 | Q106: 3.273114539 | R106: 0.2594821049 | S106: 0.2594821049 | T106: 0.265553044 | Y106: 0.265553044 | AO106: 103803900
A107: 75 | B107: =OFFSET(InputPriceData!B$15,CalculationsAndCharts!$A107+$A$11,0,1,1) -> 2017-08-30 | C107: =OFFSET(InputPriceData!G$15,CalculationsAndCharts!$A107+$A$11,IF($C$7,8,0),1,1) -> 62030800 | D107: =OFFSET(InputPriceData!C$15,CalculationsAndCharts!$A107+$A$11,IF($C$7,8,0),1,1) -> 244.830002 | E107: =OFFSET(InputPriceData!D$15,CalculationsAndCharts!$A107+$A$11,IF($C$7,8,0),1,1) -> 246.320007 | F107: =OFFSET(InputPriceData!E$15,CalculationsAndCharts!$A107+$A$11,IF($C$7,8,0),1,1) -> 244.619995 | G107: =OFFSET(InputPriceData!F$15,CalculationsAndCharts!$A107+$A$11,IF($C$7,8,0),1,1) -> 246.009995 | H107: 244.9226171 | I107: 0.3439305294 | J107: 1.40086001 | K107: 2.479298419 | L107: -0.2779366949 | M107: 2.919999 | N107: -0.9216567603 | O107: 0.5007121783 | P107: 3.712840614 | Q107: 3.450603279 | R107: 0.03660771805 | S107: 0.03660771805 | T107: 0.03662408418 | Y107: 0.03662408418 | AO107: 62030800
A108: 76 | B108: =OFFSET(InputPriceData!B$15,CalculationsAndCharts!$A108+$A$11,0,1,1) -> 2017-08-29 | C108: =OFFSET(InputPriceData!G$15,CalculationsAndCharts!$A108+$A$11,IF($C$7,8,0),1,1) -> 51135700 | D108: =OFFSET(InputPriceData!C$15,CalculationsAndCharts!$A108+$A$11,IF($C$7,8,0),1,1) -> 243.059998 | E108: =OFFSET(InputPriceData!D$15,CalculationsAndCharts!$A108+$A$11,IF($C$7,8,0),1,1) -> 245.149994 | F108: =OFFSET(InputPriceData!E$15,CalculationsAndCharts!$A108+$A$11,IF($C$7,8,0),1,1) -> 242.929993 | G108: =OFFSET(InputPriceData!F$15,CalculationsAndCharts!$A108+$A$11,IF($C$7,8,0),1,1) -> 244.850006 | H108: 244.5786866 | I108: 0.1292167231 | J108: 1.640720608 | K108: 2.479298419 | L108: -0.2035373635 | M108: -2.089996 | N108: -1.422368939 | O108: -0.4545744051 | P108: 3.733112215 | Q108: 3.450603279 | R108: 0.03932629795 | S108: 0.03932629795 | T108: 0.03934659024 | Y108: 0.03934659024 | AO108: 51135700
A109: 77 | B109: =OFFSET(InputPriceData!B$15,CalculationsAndCharts!$A109+$A$11,0,1,1) -> 2017-08-28 | C109: =OFFSET(InputPriceData!G$15,CalculationsAndCharts!$A109+$A$11,IF($C$7,8,0),1,1) -> 40565600 | D109: =OFFSET(InputPriceData!C$15,CalculationsAndCharts!$A109+$A$11,IF($C$7,8,0),1,1) -> 245.169998 | E109: =OFFSET(InputPriceData!D$15,CalculationsAndCharts!$A109+$A$11,IF($C$7,8,0),1,1) -> 245.199997 | F109: =OFFSET(InputPriceData!E$15,CalculationsAndCharts!$A109+$A$11,IF($C$7,8,0),1,1) -> 244.089996 | G109: =OFFSET(InputPriceData!F$15,CalculationsAndCharts!$A109+$A$11,IF($C$7,8,0),1,1) -> 244.570007 | H109: 244.4494698 | I109: 0.1122889566 | J109: 1.878398077 | K109: 2.479298419 | L109: -0.1378940323 | M109: -1.939988 | N109: -0.9677945336 | O109: -0.2546052354 | P109: 3.993005301 | Q109: 2.996028874 | R109: 0.1426486696 | S109: 0.1426486696 | T109: 0.1436282263 | Y109: 0.1436282263 | AP109: 40565600
A110: 78 | B110: =OFFSET(InputPriceData!B$15,CalculationsAndCharts!$A110+$A$11,0,1,1) -> 2017-08-25 | C110: =OFFSET(InputPriceData!G$15,CalculationsAndCharts!$A110+$A$11,IF($C$7,8,0),1,1) -> 64445900 | D110: =OFFSET(InputPriceData!C$15,CalculationsAndCharts!$A110+$A$11,IF($C$7,8,0),1,1) -> 244.899994 | E110: =OFFSET(InputPriceData!D$15,CalculationsAndCharts!$A110+$A$11,IF($C$7,8,0),1,1) -> 245.610001 | F110: =OFFSET(InputPriceData!E$15,CalculationsAndCharts!$A110+$A$11,IF($C$7,8,0),1,1) -> 244.389999 | G110: =OFFSET(InputPriceData!F$15,CalculationsAndCharts!$A110+$A$11,IF($C$7,8,0),1,1) -> 244.559998 | H110: 244.3371809 | I110: 0.0960568821 | J110: 1.766109121 | K110: 2.950279009 | L110: -0.2510755807 | M110: -1.979995 | N110: -0.7131892981 | O110: 0.5670374725 | P110: 3.993005301 | Q110: 3.145118442 | R110: 0.1187828749 | S110: 0.1187828749 | T110: 0.119346303 | Y110: 0.119346303 | AP110: 64445900
A111: 79 | B111: =OFFSET(InputPriceData!B$15,CalculationsAndCharts!$A111+$A$11,0,1,1) -> 2017-08-24 | C111: =OFFSET(InputPriceData!G$15,CalculationsAndCharts!$A111+$A$11,IF($C$7,8,0),1,1) -> 49730500 | D111: =OFFSET(InputPriceData!C$15,CalculationsAndCharts!$A111+$A$11,IF($C$7,8,0),1,1) -> 245 | E111: =OFFSET(InputPriceData!D$15,CalculationsAndCharts!$A111+$A$11,IF($C$7,8,0),1,1) -> 245.179993 | F111: =OFFSET(InputPriceData!E$15,CalculationsAndCharts!$A111+$A$11,IF($C$7,8,0),1,1) -> 243.75 | G111: =OFFSET(InputPriceData!F$15,CalculationsAndCharts!$A111+$A$11,IF($C$7,8,0),1,1) -> 243.990005 | H111: 244.241124 | I111: 0.2552213864 | J111: 1.670052239 | K111: 4.174527277 | L111: -0.4285124416 | M111: -0.12999 | N111: -1.280226771 | O111: 1.479469654 | P111: 3.425967829 | Q111: 4.205304259 | R111: -0.1021240523 | S111: -0.1021240523 | T111: -0.1024813188 | Y111: -0.1024813188 | AP111: 49730500
A112: 80 | B112: =OFFSET(InputPriceData!B$15,CalculationsAndCharts!$A112+$A$11,0,1,1) -> 2017-08-23 | C112: =OFFSET(InputPriceData!G$15,CalculationsAndCharts!$A112+$A$11,IF($C$7,8,0),1,1) -> 50203800 | D112: =OFFSET(InputPriceData!C$15,CalculationsAndCharts!$A112+$A$11,IF($C$7,8,0),1,1) -> 244.330002 | E112: =OFFSET(InputPriceData!D$15,CalculationsAndCharts!$A112+$A$11,IF($C$7,8,0),1,1) -> 245.050003 | F112: =OFFSET(InputPriceData!E$15,CalculationsAndCharts!$A112+$A$11,IF($C$7,8,0),1,1) -> 244.160004 | G112: =OFFSET(InputPriceData!F$15,CalculationsAndCharts!$A112+$A$11,IF($C$7,8,0),1,1) -> 244.559998 | H112: 243.9859026 | I112: 0.4641455319 | J112: 1.414830852 | K112: 4.876003054 | L112: -0.5501929082 | M112: 0.800003 | N112: -2.759696425 | O112: 1.165621309 | P112: 1.946498175 | Q112: 4.845559807 | R112: -0.4268311077 | S112: -0.4268311077 | T112: -0.4560154157 | Y112: -0.4560154157 | AO112: 50203800
A113: 81 | B113: =OFFSET(InputPriceData!B$15,CalculationsAndCharts!$A113+$A$11,0,1,1) -> 2017-08-22 | C113: =OFFSET(InputPriceData!G$15,CalculationsAndCharts!$A113+$A$11,IF($C$7,8,0),1,1) -> 63140100 | D113: =OFFSET(InputPriceData!C$15,CalculationsAndCharts!$A113+$A$11,IF($C$7,8,0),1,1) -> 243.570007 | E113: =OFFSET(InputPriceData!D$15,CalculationsAndCharts!$A113+$A$11,IF($C$7,8,0),1,1) -> 245.619995 | F113: =OFFSET(InputPriceData!E$15,CalculationsAndCharts!$A113+$A$11,IF($C$7,8,0),1,1) -> 243.550003 | G113: =OFFSET(InputPriceData!F$15,CalculationsAndCharts!$A113+$A$11,IF($C$7,8,0),1,1) -> 245.440002 | H113: 243.5217571 | I113: -0.1796119186 | J113: 0.9506853203 | K113: 4.918417784 | L113: -0.676037274 | M113: -1.809998 | N113: -3.925317733 | O113: -0.1371971883 | P113: 0.7808768661 | Q113: 4.973712418 | R113: -0.7286072637 | S113: -0.7286072637 | T113: -0.925752165 | Y113: -0.925752165 | AO113: 63140100
A114: 82 | B114: =OFFSET(InputPriceData!B$15,CalculationsAndCharts!$A114+$A$11,0,1,1) -> 2017-08-21 | C114: =OFFSET(InputPriceData!G$15,CalculationsAndCharts!$A114+$A$11,IF($C$7,8,0),1,1) -> 65469700 | D114: =OFFSET(InputPriceData!C$15,CalculationsAndCharts!$A114+$A$11,IF($C$7,8,0),1,1) -> 242.639999 | E114: =OFFSET(InputPriceData!D$15,CalculationsAndCharts!$A114+$A$11,IF($C$7,8,0),1,1) -> 243.199997 | F114: =OFFSET(InputPriceData!E$15,CalculationsAndCharts!$A114+$A$11,IF($C$7,8,0),1,1) -> 241.830002 | G114: =OFFSET(InputPriceData!F$15,CalculationsAndCharts!$A114+$A$11,IF($C$7,8,0),1,1) -> 242.899994 | H114: 243.701369 | I114: -1.048977047 | J114: 1.073938153 | K114: 4.738805865 | L114: -0.6304884062 | M114: -4.360001 | N114: -3.788120545 | O114: -1.17222988 | P114: 0.7808768661 | Q114: 4.873586746 | R114: -0.7238016124 | S114: -0.7238016124 | T114: -0.9155839838 | Y114: -0.9155839838 | AO114: 65469700
A115: 83 | B115: =OFFSET(InputPriceData!B$15,CalculationsAndCharts!$A115+$A$11,0,1,1) -> 2017-08-18 | C115: =OFFSET(InputPriceData!G$15,CalculationsAndCharts!$A115+$A$11,IF($C$7,8,0),1,1) -> 136748000 | D115: =OFFSET(InputPriceData!C$15,CalculationsAndCharts!$A115+$A$11,IF($C$7,8,0),1,1) -> 242.899994 | E115: =OFFSET(InputPriceData!D$15,CalculationsAndCharts!$A115+$A$11,IF($C$7,8,0),1,1) -> 244.190002 | F115: =OFFSET(InputPriceData!E$15,CalculationsAndCharts!$A115+$A$11,IF($C$7,8,0),1,1) -> 242.199997 | G115: =OFFSET(InputPriceData!F$15,CalculationsAndCharts!$A115+$A$11,IF($C$7,8,0),1,1) -> 242.710007 | H115: 244.750346 | I115: -1.093927804 | J115: 1.234518179 | K115: 3.689828819 | L115: -0.4986063411 | M115: -5.159988 | N115: -2.615890665 | O115: -1.254507831 | P115: 0.8452229665 | Q115: 3.701356866 | R115: -0.6281939402 | S115: -0.6281939402 | T115: -0.7384271469 | Y115: -0.7384271469 | AP115: 136748000
A116: 84 | B116: =OFFSET(InputPriceData!B$15,CalculationsAndCharts!$A116+$A$11,0,1,1) -> 2017-08-17 | C116: =OFFSET(InputPriceData!G$15,CalculationsAndCharts!$A116+$A$11,IF($C$7,8,0),1,1) -> 128490400 | D116: =OFFSET(InputPriceData!C$15,CalculationsAndCharts!$A116+$A$11,IF($C$7,8,0),1,1) -> 246.240005 | E116: =OFFSET(InputPriceData!D$15,CalculationsAndCharts!$A116+$A$11,IF($C$7,8,0),1,1) -> 246.600006 | F116: =OFFSET(InputPriceData!E$15,CalculationsAndCharts!$A116+$A$11,IF($C$7,8,0),1,1) -> 243.089996 | G116: =OFFSET(InputPriceData!F$15,CalculationsAndCharts!$A116+$A$11,IF($C$7,8,0),1,1) -> 243.089996 | H116: 245.8442739 | I116: -0.1567816489 | J116: 1.255225271 | K116: 2.595901014 | L116: -0.3481256247 | M116: -4.320008 | N116: -1.361382835 | O116: -0.17748874 | P116: 0.8452229665 | Q116: 2.552163495 | R116: -0.5024275418 | S116: -0.5024275418 | T116: -0.5525481248 | Y116: -0.5525481248 | AP116: 128490400
A117: 85 | B117: =OFFSET(InputPriceData!B$15,CalculationsAndCharts!$A117+$A$11,0,1,1) -> 2017-08-16 | C117: =OFFSET(InputPriceData!G$15,CalculationsAndCharts!$A117+$A$11,IF($C$7,8,0),1,1) -> 56715500 | D117: =OFFSET(InputPriceData!C$15,CalculationsAndCharts!$A117+$A$11,IF($C$7,8,0),1,1) -> 247.110001 | E117: =OFFSET(InputPriceData!D$15,CalculationsAndCharts!$A117+$A$11,IF($C$7,8,0),1,1) -> 247.570007 | F117: =OFFSET(InputPriceData!E$15,CalculationsAndCharts!$A117+$A$11,IF($C$7,8,0),1,1) -> 246.449997 | G117: =OFFSET(InputPriceData!F$15,CalculationsAndCharts!$A117+$A$11,IF($C$7,8,0),1,1) -> 246.940002 | H117: 246.0010555 | I117: 0.5837911282 | J117: 1.318032619 | K117: 2.439119365 | L117: -0.2983873826 | M117: -0.020005 | N117: -1.183894095 | O117: 0.5209837799 | P117: 0.8452229665 | Q117: 2.68306539 | R117: -0.520887818 | S117: -0.520887818 | T117: -0.5775573819 | Y117: -0.5775573819 | AP117: 56715500
A118: 86 | B118: =OFFSET(InputPriceData!B$15,CalculationsAndCharts!$A118+$A$11,0,1,1) -> 2017-08-15 | C118: =OFFSET(InputPriceData!G$15,CalculationsAndCharts!$A118+$A$11,IF($C$7,8,0),1,1) -> 55242700 | D118: =OFFSET(InputPriceData!C$15,CalculationsAndCharts!$A118+$A$11,IF($C$7,8,0),1,1) -> 246.979996 | E118: =OFFSET(InputPriceData!D$15,CalculationsAndCharts!$A118+$A$11,IF($C$7,8,0),1,1) -> 247 | F118: =OFFSET(InputPriceData!E$15,CalculationsAndCharts!$A118+$A$11,IF($C$7,8,0),1,1) -> 246.160004 | G118: =OFFSET(InputPriceData!F$15,CalculationsAndCharts!$A118+$A$11,IF($C$7,8,0),1,1) -> 246.509995 | H118: 245.4172644 | I118: 0.3668941921 | J118: 0.8412425965 | K118: 2.439119365 | L118: -0.4871037975 | M118: -0.930007 | N118: -1.704877875 | O118: 0.2598930862 | P118: 0.3242391866 | Q118: 3.142205707 | R118: -0.8129269632 | S118: -0.8129269632 | T118: -1.135599407 | Y118: -1.135599407 | AP118: 55242700
A119: 87 | B119: =OFFSET(InputPriceData!B$15,CalculationsAndCharts!$A119+$A$11,0,1,1) -> 2017-08-14 | C119: =OFFSET(InputPriceData!G$15,CalculationsAndCharts!$A119+$A$11,IF($C$7,8,0),1,1) -> 72139000 | D119: =OFFSET(InputPriceData!C$15,CalculationsAndCharts!$A119+$A$11,IF($C$7,8,0),1,1) -> 245.589996 | E119: =OFFSET(InputPriceData!D$15,CalculationsAndCharts!$A119+$A$11,IF($C$7,8,0),1,1) -> 246.789993 | F119: =OFFSET(InputPriceData!E$15,CalculationsAndCharts!$A119+$A$11,IF($C$7,8,0),1,1) -> 245.550003 | G119: =OFFSET(InputPriceData!F$15,CalculationsAndCharts!$A119+$A$11,IF($C$7,8,0),1,1) -> 246.539993 | H119: 245.0503702 | I119: -0.4709805904 | J119: 0.4743484044 | K119: 2.506405153 | L119: -0.6817258486 | M119: -0.780014 | N119: -1.964770961 | O119: -0.4036948029 | P119: 0.06434610039 | Q119: 3.699902657 | R119: -0.9658119829 | S119: -0.9658119829 | T119: -2.025892728 | Y119: -2.025892728 | AO119: 72139000
A120: 88 | B120: =OFFSET(InputPriceData!B$15,CalculationsAndCharts!$A120+$A$11,0,1,1) -> 2017-08-11 | C120: =OFFSET(InputPriceData!G$15,CalculationsAndCharts!$A120+$A$11,IF($C$7,8,0),1,1) -> 74869900 | D120: =OFFSET(InputPriceData!C$15,CalculationsAndCharts!$A120+$A$11,IF($C$7,8,0),1,1) -> 244.020004 | E120: =OFFSET(InputPriceData!D$15,CalculationsAndCharts!$A120+$A$11,IF($C$7,8,0),1,1) -> 244.800003 | F120: =OFFSET(InputPriceData!E$15,CalculationsAndCharts!$A120+$A$11,IF($C$7,8,0),1,1) -> 243.75 | G120: =OFFSET(InputPriceData!F$15,CalculationsAndCharts!$A120+$A$11,IF($C$7,8,0),1,1) -> 244.119995 | H120: 245.5213508 | I120: -1.224248268 | J120: 0.4743484044 | K120: 2.199487013 | L120: -0.645192519 | M120: -2.650009 | N120: -1.561076158 | O120: -1.060185817 | P120: 0.06434610039 | Q120: 3.96751846 | R120: -0.9680812193 | S120: -0.9680812193 | T120: -2.060809887 | Y120: -2.060809887 | AO120: 74869900
A121: 89 | B121: =OFFSET(InputPriceData!B$15,CalculationsAndCharts!$A121+$A$11,0,1,1) -> 2017-08-10 | C121: =OFFSET(InputPriceData!G$15,CalculationsAndCharts!$A121+$A$11,IF($C$7,8,0),1,1) -> 120479500 | D121: =OFFSET(InputPriceData!C$15,CalculationsAndCharts!$A121+$A$11,IF($C$7,8,0),1,1) -> 246.289993 | E121: =OFFSET(InputPriceData!D$15,CalculationsAndCharts!$A121+$A$11,IF($C$7,8,0),1,1) -> 246.440002 | F121: =OFFSET(InputPriceData!E$15,CalculationsAndCharts!$A121+$A$11,IF($C$7,8,0),1,1) -> 243.699997 | G121: =OFFSET(InputPriceData!F$15,CalculationsAndCharts!$A121+$A$11,IF($C$7,8,0),1,1) -> 243.759995 | H121: 246.745599 | I121: -0.7014757769 | J121: 0.4743484044 | K121: 1.036458974 | L121: -0.3720597195 | M121: -3.150009 | N121: -0.5008903406 | O121: -0.640255548 | P121: 0.06434610039 | Q121: 3.766329301 | R121: -0.9664048275 | S121: -0.9664048275 | T121: -2.034789907 | Y121: -2.034789907 | AP121: 120479500
A122: 90 | B122: =OFFSET(InputPriceData!B$15,CalculationsAndCharts!$A122+$A$11,0,1,1) -> 2017-08-09 | C122: =OFFSET(InputPriceData!G$15,CalculationsAndCharts!$A122+$A$11,IF($C$7,8,0),1,1) -> 62632600 | D122: =OFFSET(InputPriceData!C$15,CalculationsAndCharts!$A122+$A$11,IF($C$7,8,0),1,1) -> 246.470001 | E122: =OFFSET(InputPriceData!D$15,CalculationsAndCharts!$A122+$A$11,IF($C$7,8,0),1,1) -> 247.309998 | F122: =OFFSET(InputPriceData!E$15,CalculationsAndCharts!$A122+$A$11,IF($C$7,8,0),1,1) -> 246.059998 | G122: =OFFSET(InputPriceData!F$15,CalculationsAndCharts!$A122+$A$11,IF($C$7,8,0),1,1) -> 247.25 | H122: 247.4470748 | I122: -0.04241473029 | J122: 0.5600862854 | K122: 0.3349831969 | L122: 0.2514923063 | M122: 0.050003 | N122: 0.1393652075 | O122: -0.1281526112 | P122: 0.06434610039 | Q122: 3.916480359 | R122: -0.9676719892 | S122: -0.9676719892 | T122: -2.054336165 | Y122: -2.054336165 | AO122: 62632600
A123: 91 | B123: =OFFSET(InputPriceData!B$15,CalculationsAndCharts!$A123+$A$11,0,1,1) -> 2017-08-08 | C123: =OFFSET(InputPriceData!G$15,CalculationsAndCharts!$A123+$A$11,IF($C$7,8,0),1,1) -> 61719400 | D123: =OFFSET(InputPriceData!C$15,CalculationsAndCharts!$A123+$A$11,IF($C$7,8,0),1,1) -> 247.509995 | E123: =OFFSET(InputPriceData!D$15,CalculationsAndCharts!$A123+$A$11,IF($C$7,8,0),1,1) -> 248.910004 | F123: =OFFSET(InputPriceData!E$15,CalculationsAndCharts!$A123+$A$11,IF($C$7,8,0),1,1) -> 246.830002 | G123: =OFFSET(InputPriceData!F$15,CalculationsAndCharts!$A123+$A$11,IF($C$7,8,0),1,1) -> 247.259995 | H123: 247.4894895 | I123: 0.1232528329 | J123: 0.7204106343 | K123: 0.2925684667 | L123: 0.4223603105 | M123: -0.169998 | N123: 0.2675178187 | O123: -0.03707151602 | P123: 0.06434610039 | Q123: 4.396919528 | R123: -0.9711534323 | S123: -0.9711534323 | T123: -2.112191568 | Y123: -2.112191568 | AP123: 61719400
A124: 92 | B124: =OFFSET(InputPriceData!B$15,CalculationsAndCharts!$A124+$A$11,0,1,1) -> 2017-08-07 | C124: =OFFSET(InputPriceData!G$15,CalculationsAndCharts!$A124+$A$11,IF($C$7,8,0),1,1) -> 31995000 | D124: =OFFSET(InputPriceData!C$15,CalculationsAndCharts!$A124+$A$11,IF($C$7,8,0),1,1) -> 247.490005 | E124: =OFFSET(InputPriceData!D$15,CalculationsAndCharts!$A124+$A$11,IF($C$7,8,0),1,1) -> 247.869995 | F124: =OFFSET(InputPriceData!E$15,CalculationsAndCharts!$A124+$A$11,IF($C$7,8,0),1,1) -> 247.369995 | G124: =OFFSET(InputPriceData!F$15,CalculationsAndCharts!$A124+$A$11,IF($C$7,8,0),1,1) -> 247.869995 | H124: 247.3662367 | I124: 0.1605800263 | J124: 0.6933917273 | K124: 0.2925684667 | L124: 0.4065308753 | M124: 0.449997 | N124: 0.3045893347 | O124: 0.06434610039 | P124: 0.06434610039 | Q124: 4.713521658 | R124: -0.9730649304 | S124: -0.9730649304 | T124: -2.146957137 | Y124: -2.146957137 | AO124: 31995000
A125: 93 | B125: =OFFSET(InputPriceData!B$15,CalculationsAndCharts!$A125+$A$11,0,1,1) -> 2017-08-04 | C125: =OFFSET(InputPriceData!G$15,CalculationsAndCharts!$A125+$A$11,IF($C$7,8,0),1,1) -> 60191800 | D125: =OFFSET(InputPriceData!C$15,CalculationsAndCharts!$A125+$A$11,IF($C$7,8,0),1,1) -> 247.520004 | E125: =OFFSET(InputPriceData!D$15,CalculationsAndCharts!$A125+$A$11,IF($C$7,8,0),1,1) -> 247.789993 | F125: =OFFSET(InputPriceData!E$15,CalculationsAndCharts!$A125+$A$11,IF($C$7,8,0),1,1) -> 246.970001 | G125: =OFFSET(InputPriceData!F$15,CalculationsAndCharts!$A125+$A$11,IF($C$7,8,0),1,1) -> 247.410004 | H125: 247.2056567 | I125: 0.02070709109 | J125: 0.6588332517 | K125: 0.2925684667 | L125: 0.3849738527 | M125: 0.589997 | N125: 0.2402432343 | O125: -0.1053144596 | P125: 0 | Q125: 4.783707168 | R125: -1 | S125: -0.999 | T125: -3.800201167 | Y125: -3.800201167 | AP125: 60191800
A126: 94 | B126: =OFFSET(InputPriceData!B$15,CalculationsAndCharts!$A126+$A$11,0,1,1) -> 2017-08-03 | C126: =OFFSET(InputPriceData!G$15,CalculationsAndCharts!$A126+$A$11,IF($C$7,8,0),1,1) -> 40856000 | D126: =OFFSET(InputPriceData!C$15,CalculationsAndCharts!$A126+$A$11,IF($C$7,8,0),1,1) -> 247.309998 | E126: =OFFSET(InputPriceData!D$15,CalculationsAndCharts!$A126+$A$11,IF($C$7,8,0),1,1) -> 247.339996 | F126: =OFFSET(InputPriceData!E$15,CalculationsAndCharts!$A126+$A$11,IF($C$7,8,0),1,1) -> 246.639999 | G126: =OFFSET(InputPriceData!F$15,CalculationsAndCharts!$A126+$A$11,IF($C$7,8,0),1,1) -> 246.960007 | H126: 247.1849496 | I126: 0.06280734826 | J126: 1.009324144 | K126: 0.2925684667 | L126: 0.5505490017 | M126: 0.080002 | N126: 0.3455576939 | O126: -0.3083906348 | P126: 0.2747993546 | Q126: 4.678392708 | R126: -0.8890415106 | S126: -0.8890415106 | T126: -1.41733434 | Y126: -1.41733434 | AP126: 40856000
A127: 95 | B127: =OFFSET(InputPriceData!B$15,CalculationsAndCharts!$A127+$A$11,0,1,1) -> 2017-08-02 | C127: =OFFSET(InputPriceData!G$15,CalculationsAndCharts!$A127+$A$11,IF($C$7,8,0),1,1) -> 47211200 | D127: =OFFSET(InputPriceData!C$15,CalculationsAndCharts!$A127+$A$11,IF($C$7,8,0),1,1) -> 247.470001 | E127: =OFFSET(InputPriceData!D$15,CalculationsAndCharts!$A127+$A$11,IF($C$7,8,0),1,1) -> 247.600006 | F127: =OFFSET(InputPriceData!E$15,CalculationsAndCharts!$A127+$A$11,IF($C$7,8,0),1,1) -> 246.369995 | G127: =OFFSET(InputPriceData!F$15,CalculationsAndCharts!$A127+$A$11,IF($C$7,8,0),1,1) -> 247.440002 | H127: 247.1221422 | I127: 0.1070011059 | J127: 1.512658218 | K127: 0.2925684667 | L127: 0.6758651209 | M127: 0.339996 | N127: 0.6539483287 | O127: -0.4591403171 | P127: 1.108179053 | Q127: 4.370002073 | R127: -0.5954208058 | S127: -0.5954208058 | T127: -0.6860226541 | Y127: -0.6860226541 | AP127: 47211200
A128: 96 | B128: =OFFSET(InputPriceData!B$15,CalculationsAndCharts!$A128+$A$11,0,1,1) -> 2017-08-01 | C128: =OFFSET(InputPriceData!G$15,CalculationsAndCharts!$A128+$A$11,IF($C$7,8,0),1,1) -> 55050400 | D128: =OFFSET(InputPriceData!C$15,CalculationsAndCharts!$A128+$A$11,IF($C$7,8,0),1,1) -> 247.460007 | E128: =OFFSET(InputPriceData!D$15,CalculationsAndCharts!$A128+$A$11,IF($C$7,8,0),1,1) -> 247.5 | F128: =OFFSET(InputPriceData!E$15,CalculationsAndCharts!$A128+$A$11,IF($C$7,8,0),1,1) -> 246.720001 | G128: =OFFSET(InputPriceData!F$15,CalculationsAndCharts!$A128+$A$11,IF($C$7,8,0),1,1) -> 247.320007 | H128: 247.0151411 | I128: -0.06728578753 | J128: 1.896068274 | K128: 0.2925684667 | L128: 0.7326477609 | M128: 0.330002 | N128: 1.113088646 | O128: -0.5576969495 | P128: 1.704584505 | Q128: 3.910861756 | R128: -0.3928943754 | S128: -0.3928943754 | T128: -0.4152181794 | Y128: -0.4152181794 | AP128: 55050400
A129: 97 | B129: =OFFSET(InputPriceData!B$15,CalculationsAndCharts!$A129+$A$11,0,1,1) -> 2017-07-31 | C129: =OFFSET(InputPriceData!G$15,CalculationsAndCharts!$A129+$A$11,IF($C$7,8,0),1,1) -> 65838700 | D129: =OFFSET(InputPriceData!C$15,CalculationsAndCharts!$A129+$A$11,IF($C$7,8,0),1,1) -> 247.369995 | E129: =OFFSET(InputPriceData!D$15,CalculationsAndCharts!$A129+$A$11,IF($C$7,8,0),1,1) -> 247.479996 | F129: =OFFSET(InputPriceData!E$15,CalculationsAndCharts!$A129+$A$11,IF($C$7,8,0),1,1) -> 246.529999 | G129: =OFFSET(InputPriceData!F$15,CalculationsAndCharts!$A129+$A$11,IF($C$7,8,0),1,1) -> 246.770004 | H129: 247.0824269 | I129: -0.1640624502 | J129: 2.403316431 | K129: 0.2252826791 | L129: 0.828591071 | M129: 1.11 | N129: 1.670785595 | O129: -0.6713106066 | P129: 2.06904132 | Q129: 3.353164807 | R129: -0.2368267559 | S129: -0.2368267559 | T129: -0.2414096243 | Y129: -0.2414096243 | AP129: 65838700
A130: 98 | B130: =OFFSET(InputPriceData!B$15,CalculationsAndCharts!$A130+$A$11,0,1,1) -> 2017-07-28 | C130: =OFFSET(InputPriceData!G$15,CalculationsAndCharts!$A130+$A$11,IF($C$7,8,0),1,1) -> 50088400 | D130: =OFFSET(InputPriceData!C$15,CalculationsAndCharts!$A130+$A$11,IF($C$7,8,0),1,1) -> 246.649994 | E130: =OFFSET(InputPriceData!D$15,CalculationsAndCharts!$A130+$A$11,IF($C$7,8,0),1,1) -> 247.059998 | F130: =OFFSET(InputPriceData!E$15,CalculationsAndCharts!$A130+$A$11,IF($C$7,8,0),1,1) -> 246.130005 | G130: =OFFSET(InputPriceData!F$15,CalculationsAndCharts!$A130+$A$11,IF($C$7,8,0),1,1) -> 246.910004 | H130: 247.2464894 | I130: -0.0612202289 | J130: 3.20109286 | K130: 0.0612202289 | L130: 0.9624682075 | M130: 1.380005 | N130: 2.342096202 | O130: -0.8589966584 | P130: 3.014235449 | Q130: 2.6818542 | R130: 0.05835253124 | S130: 0.05835253124 | T130: 0.05841889735 | Y130: 0.05841889735 | AO130: 50088400
A131: 99 | B131: =OFFSET(InputPriceData!B$15,CalculationsAndCharts!$A131+$A$11,0,1,1) -> 2017-07-27 | C131: =OFFSET(InputPriceData!G$15,CalculationsAndCharts!$A131+$A$11,IF($C$7,8,0),1,1) -> 70766600 | D131: =OFFSET(InputPriceData!C$15,CalculationsAndCharts!$A131+$A$11,IF($C$7,8,0),1,1) -> 247.960007 | E131: =OFFSET(InputPriceData!D$15,CalculationsAndCharts!$A131+$A$11,IF($C$7,8,0),1,1) -> 248 | F131: =OFFSET(InputPriceData!E$15,CalculationsAndCharts!$A131+$A$11,IF($C$7,8,0),1,1) -> 245.679993 | G131: =OFFSET(InputPriceData!F$15,CalculationsAndCharts!$A131+$A$11,IF($C$7,8,0),1,1) -> 247.199997 | H131: 247.3077096 | I131: 0.08573788094 | J131: 4.077237347 | K131: 0 | L131: 1 | M131: 1.639999 | N131: 3.20109286 | O131: -0.7904066055 | P131: 4.239177019 | Q131: 1.822857541 | R131: 0.3985987631 | S131: 0.3985987631 | T131: 0.4219819018 | Y131: 0.4219819018 | AP131: 70766600
A132: 100 | B132: =OFFSET(InputPriceData!B$15,CalculationsAndCharts!$A132+$A$11,0,1,1) -> 2017-07-26 | C132: =OFFSET(InputPriceData!G$15,CalculationsAndCharts!$A132+$A$11,IF($C$7,8,0),1,1) -> 47575400 | D132: =OFFSET(InputPriceData!C$15,CalculationsAndCharts!$A132+$A$11,IF($C$7,8,0),1,1) -> 247.75 | E132: =OFFSET(InputPriceData!D$15,CalculationsAndCharts!$A132+$A$11,IF($C$7,8,0),1,1) -> 247.789993 | F132: =OFFSET(InputPriceData!E$15,CalculationsAndCharts!$A132+$A$11,IF($C$7,8,0),1,1) -> 247.130005 | G132: =OFFSET(InputPriceData!F$15,CalculationsAndCharts!$A132+$A$11,IF($C$7,8,0),1,1) -> 247.429993 | H132: 247.2219717 | I132: 0.1603243489 | J132: 4.760415595 | K132: 0 | L132: 1 | M132: 3.009995 | N132: 3.991499466 | O132: -0.60859178 | P132: 5.131255348 | Q132: 1.032450936 | R132: 0.6649902223 | S132: 0.6649902223 | T132: 0.8017074056 | Y132: 0.8017074056 | AP132: 47575400
A133: 101 | B133: =OFFSET(InputPriceData!B$15,CalculationsAndCharts!$A133+$A$11,0,1,1) -> 2017-07-25 | C133: =OFFSET(InputPriceData!G$15,CalculationsAndCharts!$A133+$A$11,IF($C$7,8,0),1,1) -> 54915600 | D133: =OFFSET(InputPriceData!C$15,CalculationsAndCharts!$A133+$A$11,IF($C$7,8,0),1,1) -> 247.679993 | E133: =OFFSET(InputPriceData!D$15,CalculationsAndCharts!$A133+$A$11,IF($C$7,8,0),1,1) -> 247.800003 | F133: =OFFSET(InputPriceData!E$15,CalculationsAndCharts!$A133+$A$11,IF($C$7,8,0),1,1) -> 247.160004 | G133: =OFFSET(InputPriceData!F$15,CalculationsAndCharts!$A133+$A$11,IF($C$7,8,0),1,1) -> 247.419998 | H133: 247.0616474 | I133: 0.09623392591 | J133: 5.049998818 | K133: 0 | L133: 1 | M133: 3.410003 | N133: 4.600091246 | O133: -0.3536736461 | P133: 5.795101796 | Q133: 0.423859156 | R133: 0.8636881115 | S133: 0.8636881115 | T133: 1.307683551 | Y133: 1.307683551 | AP133: 54915600
A134: 102 | B134: =OFFSET(InputPriceData!B$15,CalculationsAndCharts!$A134+$A$11,0,1,1) -> 2017-07-24 | C134: =OFFSET(InputPriceData!G$15,CalculationsAndCharts!$A134+$A$11,IF($C$7,8,0),1,1) -> 46622300 | D134: =OFFSET(InputPriceData!C$15,CalculationsAndCharts!$A134+$A$11,IF($C$7,8,0),1,1) -> 246.789993 | E134: =OFFSET(InputPriceData!D$15,CalculationsAndCharts!$A134+$A$11,IF($C$7,8,0),1,1) -> 246.979996 | F134: =OFFSET(InputPriceData!E$15,CalculationsAndCharts!$A134+$A$11,IF($C$7,8,0),1,1) -> 246.279999 | G134: =OFFSET(InputPriceData!F$15,CalculationsAndCharts!$A134+$A$11,IF($C$7,8,0),1,1) -> 246.820007 | H134: 246.9654135 | I134: 0.1260215507 | J134: 5.149971953 | K134: 0 | L134: 1 | M134: 4.630005 | N134: 4.953764892 | O134: -0.07018550992 | P134: 6.240163513 | Q134: 0.07018550992 | R134: 0.9777554269 | S134: 0.9777554269 | T134: 2.243809893 | Y134: 2.243809893 | AO134: 46622300
A135: 103 | B135: =OFFSET(InputPriceData!B$15,CalculationsAndCharts!$A135+$A$11,0,1,1) -> 2017-07-21 | C135: =OFFSET(InputPriceData!G$15,CalculationsAndCharts!$A135+$A$11,IF($C$7,8,0),1,1) -> 82340800 | D135: =OFFSET(InputPriceData!C$15,CalculationsAndCharts!$A135+$A$11,IF($C$7,8,0),1,1) -> 246.440002 | E135: =OFFSET(InputPriceData!D$15,CalculationsAndCharts!$A135+$A$11,IF($C$7,8,0),1,1) -> 246.910004 | F135: =OFFSET(InputPriceData!E$15,CalculationsAndCharts!$A135+$A$11,IF($C$7,8,0),1,1) -> 246.179993 | G135: =OFFSET(InputPriceData!F$15,CalculationsAndCharts!$A135+$A$11,IF($C$7,8,0),1,1) -> 246.880005 | H135: 246.8393919 | I135: 0.3711979831 | J135: 5.12034903 | K135: 0 | L135: 1 | M135: 4.51001 | N135: 5.023950402 | O135: 0.2747993546 | P135: 6.316476758 | Q135: 0 | R135: 1 | S135: 0.999 | T135: 3.800201167 | Y135: 3.800201167 | AO135: 82340800
A136: 104 | B136: =OFFSET(InputPriceData!B$15,CalculationsAndCharts!$A136+$A$11,0,1,1) -> 2017-07-20 | C136: =OFFSET(InputPriceData!G$15,CalculationsAndCharts!$A136+$A$11,IF($C$7,8,0),1,1) -> 47135200 | D136: =OFFSET(InputPriceData!C$15,CalculationsAndCharts!$A136+$A$11,IF($C$7,8,0),1,1) -> 247.279999 | E136: =OFFSET(InputPriceData!D$15,CalculationsAndCharts!$A136+$A$11,IF($C$7,8,0),1,1) -> 247.419998 | F136: =OFFSET(InputPriceData!E$15,CalculationsAndCharts!$A136+$A$11,IF($C$7,8,0),1,1) -> 246.470001 | G136: =OFFSET(InputPriceData!F$15,CalculationsAndCharts!$A136+$A$11,IF($C$7,8,0),1,1) -> 247.100006 | H136: 246.4681939 | I136: 0.566141423 | J136: 4.749151047 | K136: 0.2672382751 | L136: 0.8934539335 | M136: 4.990005 | N136: 4.749151047 | O136: 0.8333796981 | P136: 6.041677404 | Q136: 0.1149514932 | R136: 0.9626576508 | S136: 0.9626576508 | T136: 1.980963364 | Y136: 1.980963364 | AP136: 47135200
A137: 105 | B137: =OFFSET(InputPriceData!B$15,CalculationsAndCharts!$A137+$A$11,0,1,1) -> 2017-07-19 | C137: =OFFSET(InputPriceData!G$15,CalculationsAndCharts!$A137+$A$11,IF($C$7,8,0),1,1) -> 51034300 | D137: =OFFSET(InputPriceData!C$15,CalculationsAndCharts!$A137+$A$11,IF($C$7,8,0),1,1) -> 246.020004 | E137: =OFFSET(InputPriceData!D$15,CalculationsAndCharts!$A137+$A$11,IF($C$7,8,0),1,1) -> 247 | F137: =OFFSET(InputPriceData!E$15,CalculationsAndCharts!$A137+$A$11,IF($C$7,8,0),1,1) -> 246.009995 | G137: =OFFSET(InputPriceData!F$15,CalculationsAndCharts!$A137+$A$11,IF($C$7,8,0),1,1) -> 246.990005 | H137: 245.9020525 | I137: 0.4904111619 | J137: 4.183009624 | K137: 0.3732325651 | L137: 0.8361664944 | M137: 6.440002 | N137: 3.915771349 | O137: 0.596405452 | P137: 5.37242244 | Q137: 0.1149514932 | R137: 0.9581032769 | S137: 0.9581032769 | T137: 1.922261975 | Y137: 1.922261975 | AO137: 51034300
A138: 106 | B138: =OFFSET(InputPriceData!B$15,CalculationsAndCharts!$A138+$A$11,0,1,1) -> 2017-07-18 | C138: =OFFSET(InputPriceData!G$15,CalculationsAndCharts!$A138+$A$11,IF($C$7,8,0),1,1) -> 42742500 | D138: =OFFSET(InputPriceData!C$15,CalculationsAndCharts!$A138+$A$11,IF($C$7,8,0),1,1) -> 245.059998 | E138: =OFFSET(InputPriceData!D$15,CalculationsAndCharts!$A138+$A$11,IF($C$7,8,0),1,1) -> 245.720001 | F138: =OFFSET(InputPriceData!E$15,CalculationsAndCharts!$A138+$A$11,IF($C$7,8,0),1,1) -> 244.669998 | G138: =OFFSET(InputPriceData!F$15,CalculationsAndCharts!$A138+$A$11,IF($C$7,8,0),1,1) -> 245.660004 | H138: 245.4116413 | I138: 0.5072481564 | J138: 3.835389803 | K138: 0.3732325651 | L138: 0.822634329 | M138: 2.89 | N138: 3.319365897 | O138: 0.3644568153 | P138: 5.159620041 | Q138: 0.1149514932 | R138: 0.9564129551 | S138: 0.9564129551 | T138: 1.90205399 | Y138: 1.90205399 | AO138: 42742500
A139: 107 | B139: =OFFSET(InputPriceData!B$15,CalculationsAndCharts!$A139+$A$11,0,1,1) -> 2017-07-17 | C139: =OFFSET(InputPriceData!G$15,CalculationsAndCharts!$A139+$A$11,IF($C$7,8,0),1,1) -> 33531900 | D139: =OFFSET(InputPriceData!C$15,CalculationsAndCharts!$A139+$A$11,IF($C$7,8,0),1,1) -> 245.470001 | E139: =OFFSET(InputPriceData!D$15,CalculationsAndCharts!$A139+$A$11,IF($C$7,8,0),1,1) -> 245.910004 | F139: =OFFSET(InputPriceData!E$15,CalculationsAndCharts!$A139+$A$11,IF($C$7,8,0),1,1) -> 245.330002 | G139: =OFFSET(InputPriceData!F$15,CalculationsAndCharts!$A139+$A$11,IF($C$7,8,0),1,1) -> 245.529999 | H139: 244.9043932 | I139: 0.7977764295 | J139: 3.328141647 | K139: 0.5206502647 | L139: 0.7294474336 | M139: 3.319992 | N139: 2.954909082 | O139: 0.9451941291 | P139: 4.795163226 | Q139: 0.2779980206 | R139: 0.8904044216 | S139: 0.8904044216 | T139: 1.423874517 | Y139: 1.423874517 | AO139: 33531900
A140: 108 | B140: =OFFSET(InputPriceData!B$15,CalculationsAndCharts!$A140+$A$11,0,1,1) -> 2017-07-14 | C140: =OFFSET(InputPriceData!G$15,CalculationsAndCharts!$A140+$A$11,IF($C$7,8,0),1,1) -> 60262700 | D140: =OFFSET(InputPriceData!C$15,CalculationsAndCharts!$A140+$A$11,IF($C$7,8,0),1,1) -> 244.419998 | E140: =OFFSET(InputPriceData!D$15,CalculationsAndCharts!$A140+$A$11,IF($C$7,8,0),1,1) -> 245.970001 | F140: =OFFSET(InputPriceData!E$15,CalculationsAndCharts!$A140+$A$11,IF($C$7,8,0),1,1) -> 244.309998 | G140: =OFFSET(InputPriceData!F$15,CalculationsAndCharts!$A140+$A$11,IF($C$7,8,0),1,1) -> 245.559998 | H140: 244.1066167 | I140: 0.8761444864 | J140: 2.530365217 | K140: 0.8694473482 | L140: 0.4885321873 | M140: 3.759995 | N140: 2.009714953 | O140: 1.22494157 | P140: 3.849969097 | Q140: 0.4852552146 | R140: 0.7761337455 | S140: 0.7761337455 | T140: 1.035572716 | Y140: 1.035572716 | AO140: 60262700
A141: 109 | B141: =OFFSET(InputPriceData!B$15,CalculationsAndCharts!$A141+$A$11,0,1,1) -> 2017-07-13 | C141: =OFFSET(InputPriceData!G$15,CalculationsAndCharts!$A141+$A$11,IF($C$7,8,0),1,1) -> 39471600 | D141: =OFFSET(InputPriceData!C$15,CalculationsAndCharts!$A141+$A$11,IF($C$7,8,0),1,1) -> 244.020004 | E141: =OFFSET(InputPriceData!D$15,CalculationsAndCharts!$A141+$A$11,IF($C$7,8,0),1,1) -> 244.550003 | F141: =OFFSET(InputPriceData!E$15,CalculationsAndCharts!$A141+$A$11,IF($C$7,8,0),1,1) -> 243.759995 | G141: =OFFSET(InputPriceData!F$15,CalculationsAndCharts!$A141+$A$11,IF($C$7,8,0),1,1) -> 244.419998 | H141: 243.2304723 | I141: 0.768916129 | J141: 1.654220731 | K141: 0.9926095478 | L141: 0.2499635842 | M141: 3.069992 | N141: 0.7847733828 | O141: 0.8920783286 | P141: 2.769621132 | Q141: 0.4852552146 | R141: 0.7018287867 | S141: 0.7018287867 | T141: 0.870895423 | Y141: 0.870895423 | AO141: 39471600
A142: 110 | B142: =OFFSET(InputPriceData!B$15,CalculationsAndCharts!$A142+$A$11,0,1,1) -> 2017-07-12 | C142: =OFFSET(InputPriceData!G$15,CalculationsAndCharts!$A142+$A$11,IF($C$7,8,0),1,1) -> 59610400 | D142: =OFFSET(InputPriceData!C$15,CalculationsAndCharts!$A142+$A$11,IF($C$7,8,0),1,1) -> 243.300003 | E142: =OFFSET(InputPriceData!D$15,CalculationsAndCharts!$A142+$A$11,IF($C$7,8,0),1,1) -> 244.199997 | F142: =OFFSET(InputPriceData!E$15,CalculationsAndCharts!$A142+$A$11,IF($C$7,8,0),1,1) -> 243.300003 | G142: =OFFSET(InputPriceData!F$15,CalculationsAndCharts!$A142+$A$11,IF($C$7,8,0),1,1) -> 244.009995 | H142: 242.4615561 | I142: 0.449907572 | J142: 0.8853046021 | K142: 1.206548424 | L142: -0.1535690215 | M142: 0.51999 | N142: -0.1073049458 | O142: 0.6638464486 | P142: 1.877542803 | Q142: 0.8142921898 | R142: 0.3949910065 | S142: 0.3949910065 | T142: 0.4176999621 | Y142: 0.4176999621 | AO142: 59610400
A143: 111 | B143: =OFFSET(InputPriceData!B$15,CalculationsAndCharts!$A143+$A$11,0,1,1) -> 2017-07-11 | C143: =OFFSET(InputPriceData!G$15,CalculationsAndCharts!$A143+$A$11,IF($C$7,8,0),1,1) -> 50354600 | D143: =OFFSET(InputPriceData!C$15,CalculationsAndCharts!$A143+$A$11,IF($C$7,8,0),1,1) -> 242.369995 | E143: =OFFSET(InputPriceData!D$15,CalculationsAndCharts!$A143+$A$11,IF($C$7,8,0),1,1) -> 242.550003 | F143: =OFFSET(InputPriceData!E$15,CalculationsAndCharts!$A143+$A$11,IF($C$7,8,0),1,1) -> 240.850006 | G143: =OFFSET(InputPriceData!F$15,CalculationsAndCharts!$A143+$A$11,IF($C$7,8,0),1,1) -> 242.190002 | H143: 242.0116486 | I143: 0.1962070606 | J143: 0.4353970301 | K143: 1.455403081 | L143: -0.5394573677 | M143: 0.86 | N143: -0.7711513944 | O143: 0.4450617169 | P143: 1.213696354 | Q143: 1.357077724 | R143: -0.05577361729 | S143: -0.05577361729 | T143: -0.05583155706 | Y143: -0.05583155706 | AP143: 50354600
A144: 112 | B144: =OFFSET(InputPriceData!B$15,CalculationsAndCharts!$A144+$A$11,0,1,1) -> 2017-07-10 | C144: =OFFSET(InputPriceData!G$15,CalculationsAndCharts!$A144+$A$11,IF($C$7,8,0),1,1) -> 36663300 | D144: =OFFSET(InputPriceData!C$15,CalculationsAndCharts!$A144+$A$11,IF($C$7,8,0),1,1) -> 242.110001 | E144: =OFFSET(InputPriceData!D$15,CalculationsAndCharts!$A144+$A$11,IF($C$7,8,0),1,1) -> 242.800003 | F144: =OFFSET(InputPriceData!E$15,CalculationsAndCharts!$A144+$A$11,IF($C$7,8,0),1,1) -> 241.759995 | G144: =OFFSET(InputPriceData!F$15,CalculationsAndCharts!$A144+$A$11,IF($C$7,8,0),1,1) -> 242.369995 | H144: 241.8154415 | I144: 0.09639862846 | J144: 0.2592753529 | K144: 1.455403081 | L144: -0.6975813682 | M144: -0.919998 | N144: -1.216213111 | O144: 0.07631324507 | P144: 0.7686346376 | Q144: 1.438796657 | R144: -0.3035936025 | S144: -0.3035936025 | T144: -0.3134733225 | Y144: -0.3134733225 | AO144: 36663300
A145: 113 | B145: =OFFSET(InputPriceData!B$15,CalculationsAndCharts!$A145+$A$11,0,1,1) -> 2017-07-07 | C145: =OFFSET(InputPriceData!G$15,CalculationsAndCharts!$A145+$A$11,IF($C$7,8,0),1,1) -> 57972300 | D145: =OFFSET(InputPriceData!C$15,CalculationsAndCharts!$A145+$A$11,IF($C$7,8,0),1,1) -> 241.210007 | E145: =OFFSET(InputPriceData!D$15,CalculationsAndCharts!$A145+$A$11,IF($C$7,8,0),1,1) -> 242.279999 | F145: =OFFSET(InputPriceData!E$15,CalculationsAndCharts!$A145+$A$11,IF($C$7,8,0),1,1) -> 240.559998 | G145: =OFFSET(InputPriceData!F$15,CalculationsAndCharts!$A145+$A$11,IF($C$7,8,0),1,1) -> 242.110001 | H145: 241.7190429 | I145: -0.2672382751 | J145: 0.1628767245 | K145: 1.607689863 | L145: -0.8160173973 | M145: -1.020004 | N145: -1.292526356 | O145: -0.1149514932 | P145: 0.6923213925 | Q145: 1.47307025 | R145: -0.3605578051 | S145: -0.3605578051 | T145: -0.3775269098 | Y145: -0.3775269098 | AO145: 57972300
A146: 114 | B146: =OFFSET(InputPriceData!B$15,CalculationsAndCharts!$A146+$A$11,0,1,1) -> 2017-07-06 | C146: =OFFSET(InputPriceData!G$15,CalculationsAndCharts!$A146+$A$11,IF($C$7,8,0),1,1) -> 65400800 | D146: =OFFSET(InputPriceData!C$15,CalculationsAndCharts!$A146+$A$11,IF($C$7,8,0),1,1) -> 241.889999 | E146: =OFFSET(InputPriceData!D$15,CalculationsAndCharts!$A146+$A$11,IF($C$7,8,0),1,1) -> 242.029999 | F146: =OFFSET(InputPriceData!E$15,CalculationsAndCharts!$A146+$A$11,IF($C$7,8,0),1,1) -> 240.339996 | G146: =OFFSET(InputPriceData!F$15,CalculationsAndCharts!$A146+$A$11,IF($C$7,8,0),1,1) -> 240.550003 | H146: 241.9862811 | I146: -0.10599429 | J146: 0.1628767245 | K146: 1.610570612 | L146: -0.8163162546 | M146: -2.289993 | N146: -1.177574863 | O146: 0.1641247342 | P146: 0.6923213925 | Q146: 1.582307688 | R146: -0.39126656 | S146: -0.39126656 | T146: -0.4132946674 | Y146: -0.4132946674 | AO146: =IF(G146>=D146,C146,NA()) ->  | AP146: =IF(G146<D146,C146,NA()) -> 65400800
A147: 115 | B147: =OFFSET(InputPriceData!B$15,CalculationsAndCharts!$A147+$A$11,0,1,1) -> 2017-07-05 | C147: =OFFSET(InputPriceData!G$15,CalculationsAndCharts!$A147+$A$11,IF($C$7,8,0),1,1) -> 54427600 | D147: =OFFSET(InputPriceData!C$15,CalculationsAndCharts!$A147+$A$11,IF($C$7,8,0),1,1) -> 242.630005 | E147: =OFFSET(InputPriceData!D$15,CalculationsAndCharts!$A147+$A$11,IF($C$7,8,0),1,1) -> 243.009995 | F147: =OFFSET(InputPriceData!E$15,CalculationsAndCharts!$A147+$A$11,IF($C$7,8,0),1,1) -> 241.699997 | G147: =OFFSET(InputPriceData!F$15,CalculationsAndCharts!$A147+$A$11,IF($C$7,8,0),1,1) -> 242.770004 | H147: 242.0922754 | I147: 0.1427913411 | J147: 0.1628767245 | K147: 1.745388034 | L147: -0.8292933685 | M147: -0.179993 | N147: -1.341699597 | O147: 0.3836030535 | P147: 0.5281966583 | Q147: 1.819699431 | R147: -0.5500681135 | S147: -0.5500681135 | T147: -0.6184789725 | Y147: -0.6184789725 | AO147: 54427600
A148: 116 | B148: =OFFSET(InputPriceData!B$15,CalculationsAndCharts!$A148+$A$11,0,1,1) -> 2017-07-03 | C148: =OFFSET(InputPriceData!G$15,CalculationsAndCharts!$A148+$A$11,IF($C$7,8,0),1,1) -> 39153800 | D148: =OFFSET(InputPriceData!C$15,CalculationsAndCharts!$A148+$A$11,IF($C$7,8,0),1,1) -> 242.880005 | E148: =OFFSET(InputPriceData!D$15,CalculationsAndCharts!$A148+$A$11,IF($C$7,8,0),1,1) -> 243.380005 | F148: =OFFSET(InputPriceData!E$15,CalculationsAndCharts!$A148+$A$11,IF($C$7,8,0),1,1) -> 242.210007 | G148: =OFFSET(InputPriceData!F$15,CalculationsAndCharts!$A148+$A$11,IF($C$7,8,0),1,1) -> 242.210007 | H148: 241.9494841 | I148: -0.1474176996 | J148: 0.03571421128 | K148: 1.745388034 | L148: -0.9598965064 | M148: -0.799988 | N148: -1.725302651 | O148: -0.1630465274 | P148: 0.1652509902 | Q148: 1.819699431 | R148: -0.833496103 | S148: -0.833496103 | T148: -1.199480574 | Y148: -1.199480574 | AP148: 39153800
A149: 117 | B149: =OFFSET(InputPriceData!B$15,CalculationsAndCharts!$A149+$A$11,0,1,1) -> 2017-06-30 | C149: =OFFSET(InputPriceData!G$15,CalculationsAndCharts!$A149+$A$11,IF($C$7,8,0),1,1) -> 86820700 | D149: =OFFSET(InputPriceData!C$15,CalculationsAndCharts!$A149+$A$11,IF($C$7,8,0),1,1) -> 242.279999 | E149: =OFFSET(InputPriceData!D$15,CalculationsAndCharts!$A149+$A$11,IF($C$7,8,0),1,1) -> 242.710007 | F149: =OFFSET(InputPriceData!E$15,CalculationsAndCharts!$A149+$A$11,IF($C$7,8,0),1,1) -> 241.580002 | G149: =OFFSET(InputPriceData!F$15,CalculationsAndCharts!$A149+$A$11,IF($C$7,8,0),1,1) -> 241.800003 | H149: 242.0969018 | I149: -0.3487970835 | J149: 0.03571421128 | K149: 1.739510224 | L149: -0.9597637228 | M149: -2.860001 | N149: -1.562256123 | O149: -0.2072571939 | P149: 0.1652509902 | Q149: 2.099990675 | R149: -0.8540985778 | S149: -0.8540985778 | T149: -1.271111356 | Y149: -1.271111356 | AP149: 86820700
A150: 118 | B150: =OFFSET(InputPriceData!B$15,CalculationsAndCharts!$A150+$A$11,0,1,1) -> 2017-06-29 | C150: =OFFSET(InputPriceData!G$15,CalculationsAndCharts!$A150+$A$11,IF($C$7,8,0),1,1) -> 106949700 | D150: =OFFSET(InputPriceData!C$15,CalculationsAndCharts!$A150+$A$11,IF($C$7,8,0),1,1) -> 243.660004 | E150: =OFFSET(InputPriceData!D$15,CalculationsAndCharts!$A150+$A$11,IF($C$7,8,0),1,1) -> 243.720001 | F150: =OFFSET(InputPriceData!E$15,CalculationsAndCharts!$A150+$A$11,IF($C$7,8,0),1,1) -> 239.960007 | G150: =OFFSET(InputPriceData!F$15,CalculationsAndCharts!$A150+$A$11,IF($C$7,8,0),1,1) -> 241.350006 | H150: 242.4456989 | I150: -0.1231621996 | J150: 0.03571421128 | K150: 1.658468945 | L150: -0.9578390198 | M150: -1.289993 | N150: -1.354998929 | O150: 0.1445936048 | P150: 0.1652509902 | Q150: 2.89212102 | R150: -0.8918999784 | S150: -0.8918999784 | T150: -1.431139979 | Y150: -1.431139979 | AP150: 106949700
A151: 119 | B151: =OFFSET(InputPriceData!B$15,CalculationsAndCharts!$A151+$A$11,0,1,1) -> 2017-06-28 | C151: =OFFSET(InputPriceData!G$15,CalculationsAndCharts!$A151+$A$11,IF($C$7,8,0),1,1) -> 70042600 | D151: =OFFSET(InputPriceData!C$15,CalculationsAndCharts!$A151+$A$11,IF($C$7,8,0),1,1) -> 242.5 | E151: =OFFSET(InputPriceData!D$15,CalculationsAndCharts!$A151+$A$11,IF($C$7,8,0),1,1) -> 243.720001 | F151: =OFFSET(InputPriceData!E$15,CalculationsAndCharts!$A151+$A$11,IF($C$7,8,0),1,1) -> 242.229996 | G151: =OFFSET(InputPriceData!F$15,CalculationsAndCharts!$A151+$A$11,IF($C$7,8,0),1,1) -> 243.490005 | H151: 242.5688611 | I151: -0.2139388766 | J151: 0.1508123099 | K151: 1.535306746 | L151: -0.8211130947 | M151: -0.279999 | N151: -1.499592534 | O151: -0.3290369752 | P151: 0.0206573854 | Q151: 3.511422284 | R151: -0.9883029901 | S151: -0.9883029901 | T151: -2.567851771 | Y151: -2.567851771 | AO151: 70042600
A152: 120 | B152: =OFFSET(InputPriceData!B$15,CalculationsAndCharts!$A152+$A$11,0,1,1) -> 2017-06-27 | C152: =OFFSET(InputPriceData!G$15,CalculationsAndCharts!$A152+$A$11,IF($C$7,8,0),1,1) -> 82247700 | D152: =OFFSET(InputPriceData!C$15,CalculationsAndCharts!$A152+$A$11,IF($C$7,8,0),1,1) -> 243.039993 | E152: =OFFSET(InputPriceData!D$15,CalculationsAndCharts!$A152+$A$11,IF($C$7,8,0),1,1) -> 243.380005 | F152: =OFFSET(InputPriceData!E$15,CalculationsAndCharts!$A152+$A$11,IF($C$7,8,0),1,1) -> 241.309998 | G152: =OFFSET(InputPriceData!F$15,CalculationsAndCharts!$A152+$A$11,IF($C$7,8,0),1,1) -> 241.330002 | H152: 242.7828 | I152: -0.2488546563 | J152: 0.4447431878 | K152: 1.321367869 | L152: -0.4963587526 | M152: -2.910003 | N152: -1.170555559 | O152: -0.5427855342 | P152: 0.02254267415 | Q152: 3.182385308 | R152: -0.9859324925 | S152: -0.9859324925 | T152: -2.474988075 | Y152: -2.474988075 | AP152: 82247700
A153: 121 | B153: =OFFSET(InputPriceData!B$15,CalculationsAndCharts!$A153+$A$11,0,1,1) -> 2017-06-26 | C153: =OFFSET(InputPriceData!G$15,CalculationsAndCharts!$A153+$A$11,IF($C$7,8,0),1,1) -> 56700500 | D153: =OFFSET(InputPriceData!C$15,CalculationsAndCharts!$A153+$A$11,IF($C$7,8,0),1,1) -> 243.899994 | E153: =OFFSET(InputPriceData!D$15,CalculationsAndCharts!$A153+$A$11,IF($C$7,8,0),1,1) -> 244.380005 | F153: =OFFSET(InputPriceData!E$15,CalculationsAndCharts!$A153+$A$11,IF($C$7,8,0),1,1) -> 243.050003 | G153: =OFFSET(InputPriceData!F$15,CalculationsAndCharts!$A153+$A$11,IF($C$7,8,0),1,1) -> 243.289993 | H153: 243.0316546 | I153: 0.02008538339 | J153: 0.5465475037 | K153: 1.072513213 | L153: -0.3248585452 | M153: -1.26001 | N153: -0.6277700248 | O153: -0.08171893249 | P153: 0.02254267415 | Q153: 2.64001875 | R153: -0.9830669265 | S153: -0.9830669265 | T153: -2.381565578 | Y153: -2.381565578 | AP153: 56700500
A154: 122 | B154: =OFFSET(InputPriceData!B$15,CalculationsAndCharts!$A154+$A$11,0,1,1) -> 2017-06-23 | C154: =OFFSET(InputPriceData!G$15,CalculationsAndCharts!$A154+$A$11,IF($C$7,8,0),1,1) -> 66986800 | D154: =OFFSET(InputPriceData!C$15,CalculationsAndCharts!$A154+$A$11,IF($C$7,8,0),1,1) -> 242.910004 | E154: =OFFSET(InputPriceData!D$15,CalculationsAndCharts!$A154+$A$11,IF($C$7,8,0),1,1) -> 243.509995 | F154: =OFFSET(InputPriceData!E$15,CalculationsAndCharts!$A154+$A$11,IF($C$7,8,0),1,1) -> 242.470001 | G154: =OFFSET(InputPriceData!F$15,CalculationsAndCharts!$A154+$A$11,IF($C$7,8,0),1,1) -> 243.130005 | H154: 243.0115692 | I154: -0.1522867819 | J154: 0.5264621203 | K154: 1.190526401 | L154: -0.3867610483 | M154: -0.229996 | N154: -0.5460510923 | O154: -0.03427359391 | P154: 0.02254267415 | Q154: 3.091900799 | R154: -0.9855237866 | S154: -0.9855237866 | T154: -2.460565592 | Y154: -2.460565592 | AO154: 66986800
A155: 123 | B155: =OFFSET(InputPriceData!B$15,CalculationsAndCharts!$A155+$A$11,0,1,1) -> 2017-06-22 | C155: =OFFSET(InputPriceData!G$15,CalculationsAndCharts!$A155+$A$11,IF($C$7,8,0),1,1) -> 44148100 | D155: =OFFSET(InputPriceData!C$15,CalculationsAndCharts!$A155+$A$11,IF($C$7,8,0),1,1) -> 242.960007 | E155: =OFFSET(InputPriceData!D$15,CalculationsAndCharts!$A155+$A$11,IF($C$7,8,0),1,1) -> 243.529999 | F155: =OFFSET(InputPriceData!E$15,CalculationsAndCharts!$A155+$A$11,IF($C$7,8,0),1,1) -> 242.639999 | G155: =OFFSET(InputPriceData!F$15,CalculationsAndCharts!$A155+$A$11,IF($C$7,8,0),1,1) -> 242.839996 | H155: 243.163856 | I155: -0.2701190242 | J155: 0.5264621203 | K155: 1.084169712 | L155: -0.3462663411 | M155: -0.570008 | N155: -0.5117774984 | O155: -0.2241889312 | P155: 0.02254267415 | Q155: 3.878771556 | R155: -0.9884435486 | S155: -0.9884435486 | T155: -2.573931816 | Y155: -2.573931816 | AP155: 44148100
A156: 124 | B156: =OFFSET(InputPriceData!B$15,CalculationsAndCharts!$A156+$A$11,0,1,1) -> 2017-06-21 | C156: =OFFSET(InputPriceData!G$15,CalculationsAndCharts!$A156+$A$11,IF($C$7,8,0),1,1) -> 55977600 | D156: =OFFSET(InputPriceData!C$15,CalculationsAndCharts!$A156+$A$11,IF($C$7,8,0),1,1) -> 243.460007 | E156: =OFFSET(InputPriceData!D$15,CalculationsAndCharts!$A156+$A$11,IF($C$7,8,0),1,1) -> 243.589996 | F156: =OFFSET(InputPriceData!E$15,CalculationsAndCharts!$A156+$A$11,IF($C$7,8,0),1,1) -> 242.410004 | G156: =OFFSET(InputPriceData!F$15,CalculationsAndCharts!$A156+$A$11,IF($C$7,8,0),1,1) -> 242.949997 | H156: 243.433975 | I156: -0.2408117125 | J156: 0.5264621203 | K156: 0.8174706578 | L156: -0.2165350397 | M156: -0.830002 | N156: -0.2875885672 | O156: -0.2373917422 | P156: 0.02254267415 | Q156: 4.552159121 | R156: -0.9901446367 | S156: -0.9901446367 | T156: -2.653973395 | Y156: -2.653973395 | AP156: 55977600
A157: 125 | B157: =OFFSET(InputPriceData!B$15,CalculationsAndCharts!$A157+$A$11,0,1,1) -> 2017-06-20 | C157: =OFFSET(InputPriceData!G$15,CalculationsAndCharts!$A157+$A$11,IF($C$7,8,0),1,1) -> 56906400 | D157: =OFFSET(InputPriceData!C$15,CalculationsAndCharts!$A157+$A$11,IF($C$7,8,0),1,1) -> 244.25 | E157: =OFFSET(InputPriceData!D$15,CalculationsAndCharts!$A157+$A$11,IF($C$7,8,0),1,1) -> 244.259995 | F157: =OFFSET(InputPriceData!E$15,CalculationsAndCharts!$A157+$A$11,IF($C$7,8,0),1,1) -> 242.990005 | G157: =OFFSET(InputPriceData!F$15,CalculationsAndCharts!$A157+$A$11,IF($C$7,8,0),1,1) -> 243.009995 | H157: 243.6747867 | I157: 0.01562882789 | J157: 0.5264621203 | K157: 0.5816875029 | L157: -0.04983567325 | M157: -0.650009 | N157: -0.05019682502 | O157: 0.0206573854 | P157: 0.02254267415 | Q157: 5.20517879 | R157: -0.9913757172 | S157: -0.9913757172 | T157: -2.720999594 | Y157: -2.720999594 | AP157: 56906400
A158: 126 | B158: =OFFSET(InputPriceData!B$15,CalculationsAndCharts!$A158+$A$11,0,1,1) -> 2017-06-19 | C158: =OFFSET(InputPriceData!G$15,CalculationsAndCharts!$A158+$A$11,IF($C$7,8,0),1,1) -> 65123800 | D158: =OFFSET(InputPriceData!C$15,CalculationsAndCharts!$A158+$A$11,IF($C$7,8,0),1,1) -> 243.589996 | E158: =OFFSET(InputPriceData!D$15,CalculationsAndCharts!$A158+$A$11,IF($C$7,8,0),1,1) -> 244.729996 | F158: =OFFSET(InputPriceData!E$15,CalculationsAndCharts!$A158+$A$11,IF($C$7,8,0),1,1) -> 243.479996 | G158: =OFFSET(InputPriceData!F$15,CalculationsAndCharts!$A158+$A$11,IF($C$7,8,0),1,1) -> 244.660004 | H158: 243.6591579 | I158: -0.1415398896 | J158: 0.8126311744 | K158: 0.5816875029 | L158: 0.1656319142 | M158: 1.449997 | N158: -0.07085421043 | O158: -0.4433377716 | P158: 0.001885288744 | Q158: 5.729467666 | R158: -0.9993421139 | S158: -0.999 | T158: -3.800201167 | Y158: -3.800201167 | AO158: 65123800
A159: 127 | B159: =OFFSET(InputPriceData!B$15,CalculationsAndCharts!$A159+$A$11,0,1,1) -> 2017-06-16 | C159: =OFFSET(InputPriceData!G$15,CalculationsAndCharts!$A159+$A$11,IF($C$7,8,0),1,1) -> 84553100 | D159: =OFFSET(InputPriceData!C$15,CalculationsAndCharts!$A159+$A$11,IF($C$7,8,0),1,1) -> 242.770004 | E159: =OFFSET(InputPriceData!D$15,CalculationsAndCharts!$A159+$A$11,IF($C$7,8,0),1,1) -> 242.830002 | F159: =OFFSET(InputPriceData!E$15,CalculationsAndCharts!$A159+$A$11,IF($C$7,8,0),1,1) -> 241.630005 | G159: =OFFSET(InputPriceData!F$15,CalculationsAndCharts!$A159+$A$11,IF($C$7,8,0),1,1) -> 242.639999 | H159: 243.8006978 | I159: -0.2677558044 | J159: 1.544262909 | K159: 0.4401476133 | L159: 0.5563945985 | M159: -1.350006 | N159: 0.3724835611 | O159: -0.9993875392 | P159: 0.389560913 | Q159: 5.286129895 | R159: -0.8627265205 | S159: -0.8627265205 | T159: -1.303910714 | Y159: -1.303910714 | AP159: 84553100
A160: 128 | B160: =OFFSET(InputPriceData!B$15,CalculationsAndCharts!$A160+$A$11,0,1,1) -> 2017-06-15 | C160: =OFFSET(InputPriceData!G$15,CalculationsAndCharts!$A160+$A$11,IF($C$7,8,0),1,1) -> 66464900 | D160: =OFFSET(InputPriceData!C$15,CalculationsAndCharts!$A160+$A$11,IF($C$7,8,0),1,1) -> 242.679993 | E160: =OFFSET(InputPriceData!D$15,CalculationsAndCharts!$A160+$A$11,IF($C$7,8,0),1,1) -> 243.910004 | F160: =OFFSET(InputPriceData!E$15,CalculationsAndCharts!$A160+$A$11,IF($C$7,8,0),1,1) -> 242.360001 | G160: =OFFSET(InputPriceData!F$15,CalculationsAndCharts!$A160+$A$11,IF($C$7,8,0),1,1) -> 243.770004 | H160: 244.0684536 | I160: 0.1150980986 | J160: 2.278662271 | K160: 0.1723918088 | L160: 0.8593325131 | M160: -0.399994 | N160: 1.3718711 | O160: -0.6193012637 | P160: 1.67838948 | Q160: 4.286742356 | R160: -0.4372665931 | S160: -0.4372665931 | T160: -0.4688461979 | Y160: -0.4688461979 | AO160: 66464900
A161: 129 | B161: =OFFSET(InputPriceData!B$15,CalculationsAndCharts!$A161+$A$11,0,1,1) -> 2017-06-14 | C161: =OFFSET(InputPriceData!G$15,CalculationsAndCharts!$A161+$A$11,IF($C$7,8,0),1,1) -> 78602300 | D161: =OFFSET(InputPriceData!C$15,CalculationsAndCharts!$A161+$A$11,IF($C$7,8,0),1,1) -> 244.860001 | E161: =OFFSET(InputPriceData!D$15,CalculationsAndCharts!$A161+$A$11,IF($C$7,8,0),1,1) -> 244.869995 | F161: =OFFSET(InputPriceData!E$15,CalculationsAndCharts!$A161+$A$11,IF($C$7,8,0),1,1) -> 243.289993 | G161: =OFFSET(InputPriceData!F$15,CalculationsAndCharts!$A161+$A$11,IF($C$7,8,0),1,1) -> 244.240005 | H161: 243.9533555 | I161: 0.2939308779 | J161: 2.455609762 | K161: 0.1723918088 | L161: 0.8688038769 | M161: 0.880004 | N161: 1.991172364 | O161: 0.001885288744 | P161: 3.178696893 | Q161: 3.667441092 | R161: -0.07138976752 | S161: -0.07138976752 | T161: -0.07151141903 | Y161: -0.07151141903 | AP161: 78602300
A162: 130 | B162: =OFFSET(InputPriceData!B$15,CalculationsAndCharts!$A162+$A$11,0,1,1) -> 2017-06-13 | C162: =OFFSET(InputPriceData!G$15,CalculationsAndCharts!$A162+$A$11,IF($C$7,8,0),1,1) -> 60067000 | D162: =OFFSET(InputPriceData!C$15,CalculationsAndCharts!$A162+$A$11,IF($C$7,8,0),1,1) -> 243.979996 | E162: =OFFSET(InputPriceData!D$15,CalculationsAndCharts!$A162+$A$11,IF($C$7,8,0),1,1) -> 244.610001 | F162: =OFFSET(InputPriceData!E$15,CalculationsAndCharts!$A162+$A$11,IF($C$7,8,0),1,1) -> 243.580002 | G162: =OFFSET(InputPriceData!F$15,CalculationsAndCharts!$A162+$A$11,IF($C$7,8,0),1,1) -> 244.550003 | H162: =$E$20*(G162+G163)/2+$E$21*H163+$E$22*H164 -> 243.6594246 | I162: =H162-H163 -> 0.1018043159 | J162: =SUMIF(OFFSET(I162,0,0,$A$17,1),">0") -> 2.263902176 | K162: =-SUMIF(OFFSET(I162,0,0,$A$17,1),"<0") -> 0.1723918088 | L162: =IF((J162+K162)<>0,(J162-K162)/(J162+K162),0) -> 0.8584802902 | M162: =G162-OFFSET(G162,$A$17-1,0,1,1) -> 3.110001 | N162: =$E$20*(M162+M163)/2+$E$21*N163+$E$22*N164 -> 1.989287075 | O162: =N162-N163 -> -0.0004189755473 | P162: =SUMIF(OFFSET(O162,0,0,$A$17,1),">0") -> 3.83566343 | Q162: =-SUMIF(OFFSET(O162,0,0,$A$17,1),"<0") -> 3.667441092 | R162: =IF((P162+Q162)<>0,(P162-Q162)/(P162+Q162),0) -> 0.02242036452 | S162: =IF(R162>0.999,0.999,IF(R162<-0.999,-0.999,R162)) -> 0.02242036452 | T162: =0.5*LN((1+S162)/(1-S162)) -> 0.02242412236 | Y162: =IF($R$10=1,L162,T162) -> 0.02242412236 | AO162: 60067000
A163: 131 | B163: =OFFSET(InputPriceData!B$15,CalculationsAndCharts!$A163+$A$11,0,1,1) -> 2017-06-12 | C163: =OFFSET(InputPriceData!G$15,CalculationsAndCharts!$A163+$A$11,IF($C$7,8,0),1,1) -> 86108100 | D163: =OFFSET(InputPriceData!C$15,CalculationsAndCharts!$A163+$A$11,IF($C$7,8,0),1,1) -> 243.130005 | E163: =OFFSET(InputPriceData!D$15,CalculationsAndCharts!$A163+$A$11,IF($C$7,8,0),1,1) -> 243.419998 | F163: =OFFSET(InputPriceData!E$15,CalculationsAndCharts!$A163+$A$11,IF($C$7,8,0),1,1) -> 242.380005 | G163: =OFFSET(InputPriceData!F$15,CalculationsAndCharts!$A163+$A$11,IF($C$7,8,0),1,1) -> 243.360001 | H163: 243.5576203 | I163: -0.118013188 | J163: 2.577685653 | K163: 0.1723918088 | L163: 0.8746276705 | M163: 1.860001 | N163: 1.989706051 | O163: -0.5336009815 | P163: 4.009996337 | Q163: 3.667022116 | R163: 0.04467544563 | S163: 0.04467544563 | T163: 0.04470520378 | Y163: 0.04470520378 | AO163: 86108100
A164: 132 | B164: =OFFSET(InputPriceData!B$15,CalculationsAndCharts!$A164+$A$11,0,1,1) -> 2017-06-09 | C164: =OFFSET(InputPriceData!G$15,CalculationsAndCharts!$A164+$A$11,IF($C$7,8,0),1,1) -> 132256400 | D164: =OFFSET(InputPriceData!C$15,CalculationsAndCharts!$A164+$A$11,IF($C$7,8,0),1,1) -> 244.089996 | E164: =OFFSET(InputPriceData!D$15,CalculationsAndCharts!$A164+$A$11,IF($C$7,8,0),1,1) -> 245.009995 | F164: =OFFSET(InputPriceData!E$15,CalculationsAndCharts!$A164+$A$11,IF($C$7,8,0),1,1) -> 241.949997 | G164: =OFFSET(InputPriceData!F$15,CalculationsAndCharts!$A164+$A$11,IF($C$7,8,0),1,1) -> 243.410004 | H164: 243.6756335 | I164: -0.04593009304 | J164: 3.352899911 | K164: 0.05437862082 | L164: 0.9680809066 | M164: 1.699997 | N164: 2.523307032 | O164: -0.821144351 | P164: 4.788334693 | Q164: 3.133421135 | R164: 0.2089074183 | S164: 0.2089074183 | T164: 0.2120286329 | Y164: 0.2120286329 | AP164: 132256400
A165: 133 | B165: =OFFSET(InputPriceData!B$15,CalculationsAndCharts!$A165+$A$11,0,1,1) -> 2017-06-08 | C165: =OFFSET(InputPriceData!G$15,CalculationsAndCharts!$A165+$A$11,IF($C$7,8,0),1,1) -> 63989800 | D165: =OFFSET(InputPriceData!C$15,CalculationsAndCharts!$A165+$A$11,IF($C$7,8,0),1,1) -> 243.770004 | E165: =OFFSET(InputPriceData!D$15,CalculationsAndCharts!$A165+$A$11,IF($C$7,8,0),1,1) -> 244.330002 | F165: =OFFSET(InputPriceData!E$15,CalculationsAndCharts!$A165+$A$11,IF($C$7,8,0),1,1) -> 243.169998 | G165: =OFFSET(InputPriceData!F$15,CalculationsAndCharts!$A165+$A$11,IF($C$7,8,0),1,1) -> 243.779999 | H165: 243.7215636 | I165: -0.003419970269 | J165: 4.247056437 | K165: 0.008448527783 | L165: 0.9960293653 | M165: 2.020004 | N165: 3.344451383 | O165: -0.8975764963 | P165: 5.83307292 | Q165: 2.312276784 | R165: 0.4322461606 | S165: 0.4322461606 | T165: 0.4626556446 | Y165: 0.4626556446 | AO165: 63989800
A166: 134 | B166: =OFFSET(InputPriceData!B$15,CalculationsAndCharts!$A166+$A$11,0,1,1) -> 2017-06-07 | C166: =OFFSET(InputPriceData!G$15,CalculationsAndCharts!$A166+$A$11,IF($C$7,8,0),1,1) -> 54144300 | D166: =OFFSET(InputPriceData!C$15,CalculationsAndCharts!$A166+$A$11,IF($C$7,8,0),1,1) -> 243.600006 | E166: =OFFSET(InputPriceData!D$15,CalculationsAndCharts!$A166+$A$11,IF($C$7,8,0),1,1) -> 243.919998 | F166: =OFFSET(InputPriceData!E$15,CalculationsAndCharts!$A166+$A$11,IF($C$7,8,0),1,1) -> 242.830002 | G166: =OFFSET(InputPriceData!F$15,CalculationsAndCharts!$A166+$A$11,IF($C$7,8,0),1,1) -> 243.660004 | H166: 243.7249836 | I166: -0.005028557513 | J166: 5.132439291 | K166: 0.005028557513 | L166: 0.9980423984 | M166: 3.050003 | N166: 4.24202788 | O166: -0.8904114113 | P166: 6.66048896 | Q166: 1.414700288 | R166: 0.6496180475 | S166: 0.6496180475 | T166: 0.7746376008 | Y166: 0.7746376008 | AO166: 54144300
A167: 135 | B167: =OFFSET(InputPriceData!B$15,CalculationsAndCharts!$A167+$A$11,0,1,1) -> 2017-06-06 | C167: =OFFSET(InputPriceData!G$15,CalculationsAndCharts!$A167+$A$11,IF($C$7,8,0),1,1) -> 50375400 | D167: =OFFSET(InputPriceData!C$15,CalculationsAndCharts!$A167+$A$11,IF($C$7,8,0),1,1) -> 243.339996 | E167: =OFFSET(InputPriceData!D$15,CalculationsAndCharts!$A167+$A$11,IF($C$7,8,0),1,1) -> 243.979996 | F167: =OFFSET(InputPriceData!E$15,CalculationsAndCharts!$A167+$A$11,IF($C$7,8,0),1,1) -> 243.119995 | G167: =OFFSET(InputPriceData!F$15,CalculationsAndCharts!$A167+$A$11,IF($C$7,8,0),1,1) -> 243.210007 | H167: 243.7300121 | I167: 0.301797882 | J167: 5.958526049 | K167: 0 | L167: 1 | M167: 3.160004 | N167: 5.132439291 | O167: -0.5242888762 | P167: 7.336022443 | Q167: 0.5242888762 | R167: 0.866598445 | S167: 0.866598445 | T167: 1.319254625 | Y167: 1.319254625 | AP167: 50375400
A168: 136 | B168: =OFFSET(InputPriceData!B$15,CalculationsAndCharts!$A168+$A$11,0,1,1) -> 2017-06-05 | C168: =OFFSET(InputPriceData!G$15,CalculationsAndCharts!$A168+$A$11,IF($C$7,8,0),1,1) -> 44698800 | D168: =OFFSET(InputPriceData!C$15,CalculationsAndCharts!$A168+$A$11,IF($C$7,8,0),1,1) -> 243.970001 | E168: =OFFSET(InputPriceData!D$15,CalculationsAndCharts!$A168+$A$11,IF($C$7,8,0),1,1) -> 244.300003 | F168: =OFFSET(InputPriceData!E$15,CalculationsAndCharts!$A168+$A$11,IF($C$7,8,0),1,1) -> 243.759995 | G168: =OFFSET(InputPriceData!F$15,CalculationsAndCharts!$A168+$A$11,IF($C$7,8,0),1,1) -> 243.990005 | H168: 243.4282142 | I168: 0.7316317347 | J168: 6.000684278 | K168: 0 | L168: 1 | M168: 4.470001 | N168: 5.656728167 | O168: 0.3876756243 | P168: 7.442381555 | Q168: 0 | R168: 1 | S168: 0.999 | T168: 3.800201167 | Y168: 3.800201167 | AO168: 44698800
A169: 137 | B169: =OFFSET(InputPriceData!B$15,CalculationsAndCharts!$A169+$A$11,0,1,1) -> 2017-06-02 | C169: =OFFSET(InputPriceData!G$15,CalculationsAndCharts!$A169+$A$11,IF($C$7,8,0),1,1) -> 88666100 | D169: =OFFSET(InputPriceData!C$15,CalculationsAndCharts!$A169+$A$11,IF($C$7,8,0),1,1) -> 243.419998 | E169: =OFFSET(InputPriceData!D$15,CalculationsAndCharts!$A169+$A$11,IF($C$7,8,0),1,1) -> 244.350006 | F169: =OFFSET(InputPriceData!E$15,CalculationsAndCharts!$A169+$A$11,IF($C$7,8,0),1,1) -> 243.080002 | G169: =OFFSET(InputPriceData!F$15,CalculationsAndCharts!$A169+$A$11,IF($C$7,8,0),1,1) -> 244.169998 | H169: 242.6965825 | I169: 0.7343993624 | J169: 5.269052543 | K169: 0.554429205 | L169: 0.8095884115 | M169: 5.86 | N169: 5.269052543 | O169: 1.288828567 | P169: 7.054705931 | Q169: 0.9137775799 | R169: 0.7706520749 | S169: 0.7706520749 | T169: 1.021931494 | Y169: 1.021931494 | AO169: 88666100
A170: 138 | B170: =OFFSET(InputPriceData!B$15,CalculationsAndCharts!$A170+$A$11,0,1,1) -> 2017-06-01 | C170: =OFFSET(InputPriceData!G$15,CalculationsAndCharts!$A170+$A$11,IF($C$7,8,0),1,1) -> 68962000 | D170: =OFFSET(InputPriceData!C$15,CalculationsAndCharts!$A170+$A$11,IF($C$7,8,0),1,1) -> 241.970001 | E170: =OFFSET(InputPriceData!D$15,CalculationsAndCharts!$A170+$A$11,IF($C$7,8,0),1,1) -> 243.380005 | F170: =OFFSET(InputPriceData!E$15,CalculationsAndCharts!$A170+$A$11,IF($C$7,8,0),1,1) -> 241.639999 | G170: =OFFSET(InputPriceData!F$15,CalculationsAndCharts!$A170+$A$11,IF($C$7,8,0),1,1) -> 243.360001 | H170: 241.9621831 | I170: 0.2920455892 | J170: 4.534653181 | K170: 1.762691028 | L170: 0.440179552 | M170: 6.589997 | N170: 3.980223976 | O170: 1.500307412 | P170: 5.765877363 | Q170: 2.325094037 | R170: 0.4252620799 | S170: 0.4252620799 | T170: 0.4540984228 | Y170: 0.4540984228 | AO170: 68962000
A171: 139 | B171: =OFFSET(InputPriceData!B$15,CalculationsAndCharts!$A171+$A$11,0,1,1) -> 2017-05-31 | C171: =OFFSET(InputPriceData!G$15,CalculationsAndCharts!$A171+$A$11,IF($C$7,8,0),1,1) -> 91796000 | D171: =OFFSET(InputPriceData!C$15,CalculationsAndCharts!$A171+$A$11,IF($C$7,8,0),1,1) -> 241.839996 | E171: =OFFSET(InputPriceData!D$15,CalculationsAndCharts!$A171+$A$11,IF($C$7,8,0),1,1) -> 241.880005 | F171: =OFFSET(InputPriceData!E$15,CalculationsAndCharts!$A171+$A$11,IF($C$7,8,0),1,1) -> 240.639999 | G171: =OFFSET(InputPriceData!F$15,CalculationsAndCharts!$A171+$A$11,IF($C$7,8,0),1,1) -> 241.440002 | H171: 241.6701376 | I171: 0.1022232914 | J171: 4.242607591 | K171: 2.319319563 | L171: 0.2930980462 | M171: 5.619995 | N171: 2.479916563 | O171: 0.6588518264 | P171: 4.265569951 | Q171: 2.875678801 | R171: 0.1946285864 | S171: 0.1946285864 | T171: 0.1971435276 | Y171: 0.1971435276 | AP171: 91796000
A172: 140 | B172: =OFFSET(InputPriceData!B$15,CalculationsAndCharts!$A172+$A$11,0,1,1) -> 2017-05-30 | C172: =OFFSET(InputPriceData!G$15,CalculationsAndCharts!$A172+$A$11,IF($C$7,8,0),1,1) -> 35201900 | D172: =OFFSET(InputPriceData!C$15,CalculationsAndCharts!$A172+$A$11,IF($C$7,8,0),1,1) -> 241.339996 | E172: =OFFSET(InputPriceData!D$15,CalculationsAndCharts!$A172+$A$11,IF($C$7,8,0),1,1) -> 241.789993 | F172: =OFFSET(InputPriceData!E$15,CalculationsAndCharts!$A172+$A$11,IF($C$7,8,0),1,1) -> 241.160004 | G172: =OFFSET(InputPriceData!F$15,CalculationsAndCharts!$A172+$A$11,IF($C$7,8,0),1,1) -> 241.5 | H172: 241.5679143 | I172: 0.4155877935 | J172: 4.381639187 | K172: 2.319319563 | L172: 0.3077648588 | M172: 1.419998 | N172: 1.821064737 | O172: 0.1743329065 | P172: 3.826739752 | Q172: 2.875678801 | R172: 0.1418981735 | S172: 0.1418981735 | T172: 0.1428622249 | Y172: 0.1428622249 | AO172: 35201900
A173: 141 | B173: =OFFSET(InputPriceData!B$15,CalculationsAndCharts!$A173+$A$11,0,1,1) -> 2017-05-26 | C173: =OFFSET(InputPriceData!G$15,CalculationsAndCharts!$A173+$A$11,IF($C$7,8,0),1,1) -> 46629900 | D173: =OFFSET(InputPriceData!C$15,CalculationsAndCharts!$A173+$A$11,IF($C$7,8,0),1,1) -> 241.539993 | E173: =OFFSET(InputPriceData!D$15,CalculationsAndCharts!$A173+$A$11,IF($C$7,8,0),1,1) -> 241.899994 | F173: =OFFSET(InputPriceData!E$15,CalculationsAndCharts!$A173+$A$11,IF($C$7,8,0),1,1) -> 241.449997 | G173: =OFFSET(InputPriceData!F$15,CalculationsAndCharts!$A173+$A$11,IF($C$7,8,0),1,1) -> 241.710007 | H173: 241.1523265 | I173: 0.775214258 | J173: 3.966051393 | K173: 2.322443661 | L173: 0.2613674206 | M173: 1.410004 | N173: 1.64673183 | O173: 0.7783383562 | P173: 3.652406845 | Q173: 2.954650553 | R173: 0.1056077237 | S173: 0.1056077237 | T173: 0.1060029861 | Y173: 0.1060029861 | AO173: 46629900
A174: 142 | B174: =OFFSET(InputPriceData!B$15,CalculationsAndCharts!$A174+$A$11,0,1,1) -> 2017-05-25 | C174: =OFFSET(InputPriceData!G$15,CalculationsAndCharts!$A174+$A$11,IF($C$7,8,0),1,1) -> 64071700 | D174: =OFFSET(InputPriceData!C$15,CalculationsAndCharts!$A174+$A$11,IF($C$7,8,0),1,1) -> 241.199997 | E174: =OFFSET(InputPriceData!D$15,CalculationsAndCharts!$A174+$A$11,IF($C$7,8,0),1,1) -> 242.080002 | F174: =OFFSET(InputPriceData!E$15,CalculationsAndCharts!$A174+$A$11,IF($C$7,8,0),1,1) -> 240.960007 | G174: =OFFSET(InputPriceData!F$15,CalculationsAndCharts!$A174+$A$11,IF($C$7,8,0),1,1) -> 241.759995 | H174: 240.3771122 | I174: 0.8941565261 | J174: 3.190837136 | K174: 2.473025362 | L174: 0.1267353813 | M174: 2.779999 | N174: 0.8683934741 | O174: 1.044738227 | P174: 2.874068489 | Q174: 3.157896609 | R174: -0.04705400568 | S174: -0.04705400568 | T174: -0.04708877899 | Y174: -0.04708877899 | AO174: 64071700
A175: 143 | B175: =OFFSET(InputPriceData!B$15,CalculationsAndCharts!$A175+$A$11,0,1,1) -> 2017-05-24 | C175: =OFFSET(InputPriceData!G$15,CalculationsAndCharts!$A175+$A$11,IF($C$7,8,0),1,1) -> 46927700 | D175: =OFFSET(InputPriceData!C$15,CalculationsAndCharts!$A175+$A$11,IF($C$7,8,0),1,1) -> 240.320007 | E175: =OFFSET(InputPriceData!D$15,CalculationsAndCharts!$A175+$A$11,IF($C$7,8,0),1,1) -> 240.729996 | F175: =OFFSET(InputPriceData!E$15,CalculationsAndCharts!$A175+$A$11,IF($C$7,8,0),1,1) -> 239.929993 | G175: =OFFSET(InputPriceData!F$15,CalculationsAndCharts!$A175+$A$11,IF($C$7,8,0),1,1) -> 240.610001 | H175: 239.4829557 | I175: 0.8853828538 | J175: 2.354647423 | K175: 2.473025362 | L175: -0.02452070479 | M175: 1.229996 | N175: -0.1763447527 | O175: 0.8274160403 | P175: 1.829330262 | Q175: 3.396403997 | R175: -0.2998762772 | S175: -0.2998762772 | T175: -0.3093836506 | Y175: -0.3093836506 | AO175: 46927700
A176: 144 | B176: =OFFSET(InputPriceData!B$15,CalculationsAndCharts!$A176+$A$11,0,1,1) -> 2017-05-23 | C176: =OFFSET(InputPriceData!G$15,CalculationsAndCharts!$A176+$A$11,IF($C$7,8,0),1,1) -> 48341700 | D176: =OFFSET(InputPriceData!C$15,CalculationsAndCharts!$A176+$A$11,IF($C$7,8,0),1,1) -> 239.949997 | E176: =OFFSET(InputPriceData!D$15,CalculationsAndCharts!$A176+$A$11,IF($C$7,8,0),1,1) -> 240.240005 | F176: =OFFSET(InputPriceData!E$15,CalculationsAndCharts!$A176+$A$11,IF($C$7,8,0),1,1) -> 239.509995 | G176: =OFFSET(InputPriceData!F$15,CalculationsAndCharts!$A176+$A$11,IF($C$7,8,0),1,1) -> 240.050003 | H176: 238.5975728 | I176: 0.8260867582 | J176: 1.619817845 | K176: 2.473025362 | L176: -0.2084632795 | M176: 0.180008 | N176: -1.003760793 | O176: 0.6755334827 | P176: 1.001914222 | Q176: 4.006881733 | R176: -0.5999380966 | S176: -0.5999380966 | T176: -0.6930504621 | Y176: -0.6930504621 | AO176: 48341700
A177: 145 | B177: =OFFSET(InputPriceData!B$15,CalculationsAndCharts!$A177+$A$11,0,1,1) -> 2017-05-22 | C177: =OFFSET(InputPriceData!G$15,CalculationsAndCharts!$A177+$A$11,IF($C$7,8,0),1,1) -> 61010600 | D177: =OFFSET(InputPriceData!C$15,CalculationsAndCharts!$A177+$A$11,IF($C$7,8,0),1,1) -> 238.899994 | E177: =OFFSET(InputPriceData!D$15,CalculationsAndCharts!$A177+$A$11,IF($C$7,8,0),1,1) -> 239.710007 | F177: =OFFSET(InputPriceData!E$15,CalculationsAndCharts!$A177+$A$11,IF($C$7,8,0),1,1) -> 238.820007 | G177: =OFFSET(InputPriceData!F$15,CalculationsAndCharts!$A177+$A$11,IF($C$7,8,0),1,1) -> 239.520004 | H177: 237.7714861 | I177: 0.3439561105 | J177: 1.031328085 | K177: 2.473025362 | L177: -0.4114017889 | M177: 0.080002 | N177: -1.679294276 | O177: 0.106359112 | P177: 0.326380739 | Q177: 4.950832326 | R177: -0.8763056428 | S177: -0.8763056428 | T177: -1.359623189 | Y177: -1.359623189 | AO177: 61010600
A178: 146 | B178: =OFFSET(InputPriceData!B$15,CalculationsAndCharts!$A178+$A$11,0,1,1) -> 2017-05-19 | C178: =OFFSET(InputPriceData!G$15,CalculationsAndCharts!$A178+$A$11,IF($C$7,8,0),1,1) -> 115011400 | D178: =OFFSET(InputPriceData!C$15,CalculationsAndCharts!$A178+$A$11,IF($C$7,8,0),1,1) -> 237.330002 | E178: =OFFSET(InputPriceData!D$15,CalculationsAndCharts!$A178+$A$11,IF($C$7,8,0),1,1) -> 239.080002 | F178: =OFFSET(InputPriceData!E$15,CalculationsAndCharts!$A178+$A$11,IF($C$7,8,0),1,1) -> 237.270004 | G178: =OFFSET(InputPriceData!F$15,CalculationsAndCharts!$A178+$A$11,IF($C$7,8,0),1,1) -> 238.309998 | H178: 237.42753 | I178: -0.554429205 | J178: 1.046720349 | K178: 2.473025362 | L178: -0.405229562 | M178: -1.350006 | N178: -1.785653388 | O178: -0.9137775799 | P178: 0.2200216271 | Q178: 5.806711261 | R178: -0.9269847756 | S178: -0.9269847756 | T178: -1.636521898 | Y178: -1.636521898 | AO178: 115011400
A179: 147 | B179: =OFFSET(InputPriceData!B$15,CalculationsAndCharts!$A179+$A$11,0,1,1) -> 2017-05-18 | C179: =OFFSET(InputPriceData!G$15,CalculationsAndCharts!$A179+$A$11,IF($C$7,8,0),1,1) -> 107047700 | D179: =OFFSET(InputPriceData!C$15,CalculationsAndCharts!$A179+$A$11,IF($C$7,8,0),1,1) -> 235.729996 | E179: =OFFSET(InputPriceData!D$15,CalculationsAndCharts!$A179+$A$11,IF($C$7,8,0),1,1) -> 237.75 | F179: =OFFSET(InputPriceData!E$15,CalculationsAndCharts!$A179+$A$11,IF($C$7,8,0),1,1) -> 235.429993 | G179: =OFFSET(InputPriceData!F$15,CalculationsAndCharts!$A179+$A$11,IF($C$7,8,0),1,1) -> 236.770004 | H179: 237.9819592 | I179: -1.208261823 | J179: 1.249774983 | K179: 1.918596157 | L179: -0.2110930645 | M179: -2.929993 | N179: -0.8718758078 | O179: -1.411316457 | P179: 0.2200216271 | Q179: 5.3622497 | R179: -0.9211712888 | S179: -0.9211712888 | T179: -1.59670652 | Y179: -1.59670652 | AO179: 107047700
A180: 148 | B180: =OFFSET(InputPriceData!B$15,CalculationsAndCharts!$A180+$A$11,0,1,1) -> 2017-05-17 | C180: =OFFSET(InputPriceData!G$15,CalculationsAndCharts!$A180+$A$11,IF($C$7,8,0),1,1) -> 172174100 | D180: =OFFSET(InputPriceData!C$15,CalculationsAndCharts!$A180+$A$11,IF($C$7,8,0),1,1) -> 240.080002 | E180: =OFFSET(InputPriceData!D$15,CalculationsAndCharts!$A180+$A$11,IF($C$7,8,0),1,1) -> 240.080002 | F180: =OFFSET(InputPriceData!E$15,CalculationsAndCharts!$A180+$A$11,IF($C$7,8,0),1,1) -> 235.75 | G180: =OFFSET(InputPriceData!F$15,CalculationsAndCharts!$A180+$A$11,IF($C$7,8,0),1,1) -> 235.820007 | H180: 239.190221 | I180: -0.5566285349 | J180: 1.249774983 | K180: 0.7163781048 | L180: 0.2712895968 | M180: -2.939988 | N180: 0.5394406496 | O180: -0.550584764 | P180: 0.2200216271 | Q180: 4.386623066 | R180: -0.9044764067 | S180: -0.9044764067 | T180: -1.496294565 | Y180: -1.496294565 | AP180: 172174100
A181: 149 | B181: =OFFSET(InputPriceData!B$15,CalculationsAndCharts!$A181+$A$11,0,1,1) -> 2017-05-16 | C181: =OFFSET(InputPriceData!G$15,CalculationsAndCharts!$A181+$A$11,IF($C$7,8,0),1,1) -> 51241800 | D181: =OFFSET(InputPriceData!C$15,CalculationsAndCharts!$A181+$A$11,IF($C$7,8,0),1,1) -> 240.639999 | E181: =OFFSET(InputPriceData!D$15,CalculationsAndCharts!$A181+$A$11,IF($C$7,8,0),1,1) -> 240.669998 | F181: =OFFSET(InputPriceData!E$15,CalculationsAndCharts!$A181+$A$11,IF($C$7,8,0),1,1) -> 239.630005 | G181: =OFFSET(InputPriceData!F$15,CalculationsAndCharts!$A181+$A$11,IF($C$7,8,0),1,1) -> 240.080002 | H181: 239.7468495 | I181: 0.241254887 | J181: 1.271008243 | K181: 0.1597495699 | L181: 0.7766923676 | M181: 1.600006 | N181: 1.090025414 | O181: 0.2200216271 | P181: 0.2200216271 | Q181: 4.029176677 | R181: -0.896440876 | S181: -0.896440876 | T181: -1.453795745 | Y181: -1.453795745 | AP181: 51241800
A182: 150 | B182: =OFFSET(InputPriceData!B$15,CalculationsAndCharts!$A182+$A$11,0,1,1) -> 2017-05-15 | C182: =OFFSET(InputPriceData!G$15,CalculationsAndCharts!$A182+$A$11,IF($C$7,8,0),1,1) -> 61918900 | D182: =OFFSET(InputPriceData!C$15,CalculationsAndCharts!$A182+$A$11,IF($C$7,8,0),1,1) -> 239.470001 | E182: =OFFSET(InputPriceData!D$15,CalculationsAndCharts!$A182+$A$11,IF($C$7,8,0),1,1) -> 240.440002 | F182: =OFFSET(InputPriceData!E$15,CalculationsAndCharts!$A182+$A$11,IF($C$7,8,0),1,1) -> 239.449997 | G182: =OFFSET(InputPriceData!F$15,CalculationsAndCharts!$A182+$A$11,IF($C$7,8,0),1,1) -> 240.300003 | H182: 239.5055946 | I182: -0.003124098211 | J182: 1.10560101 | K182: 0.1597495699 | L182: 0.747501487 | M182: 1.529999 | N182: 0.8700037865 | O182: -0.07897175196 | P182: 0.1274665646 | Q182: 4.029176677 | R182: -0.9386685086 | S182: -0.9386685086 | T182: -1.726731622 | Y182: -1.726731622 | AO182: 61918900
A183: 151 | B183: =OFFSET(InputPriceData!B$15,CalculationsAndCharts!$A183+$A$11,0,1,1) -> 2017-05-12 | C183: =OFFSET(InputPriceData!G$15,CalculationsAndCharts!$A183+$A$11,IF($C$7,8,0),1,1) -> 53912700 | D183: =OFFSET(InputPriceData!C$15,CalculationsAndCharts!$A183+$A$11,IF($C$7,8,0),1,1) -> 239.089996 | E183: =OFFSET(InputPriceData!D$15,CalculationsAndCharts!$A183+$A$11,IF($C$7,8,0),1,1) -> 239.429993 | F183: =OFFSET(InputPriceData!E$15,CalculationsAndCharts!$A183+$A$11,IF($C$7,8,0),1,1) -> 238.669998 | G183: =OFFSET(InputPriceData!F$15,CalculationsAndCharts!$A183+$A$11,IF($C$7,8,0),1,1) -> 238.979996 | H183: 239.5087187 | I183: -0.1505817008 | J183: 1.158265365 | K183: 0.1566254717 | L183: 0.7617665781 | M183: 0.300003 | N183: 0.9489755384 | O183: -0.2032460557 | P183: 0.1938699536 | Q183: 3.950204925 | R183: -0.9064351107 | S183: -0.9064351107 | T183: -1.507167572 | Y183: -1.507167572 | AP183: 53912700
A184: 152 | B184: =OFFSET(InputPriceData!B$15,CalculationsAndCharts!$A184+$A$11,0,1,1) -> 2017-05-11 | C184: =OFFSET(InputPriceData!G$15,CalculationsAndCharts!$A184+$A$11,IF($C$7,8,0),1,1) -> 62358300 | D184: =OFFSET(InputPriceData!C$15,CalculationsAndCharts!$A184+$A$11,IF($C$7,8,0),1,1) -> 239.350006 | E184: =OFFSET(InputPriceData!D$15,CalculationsAndCharts!$A184+$A$11,IF($C$7,8,0),1,1) -> 239.570007 | F184: =OFFSET(InputPriceData!E$15,CalculationsAndCharts!$A184+$A$11,IF($C$7,8,0),1,1) -> 238.130005 | G184: =OFFSET(InputPriceData!F$15,CalculationsAndCharts!$A184+$A$11,IF($C$7,8,0),1,1) -> 239.380005 | H184: 239.6593004 | I184: 0.05796681352 | J184: 1.454739567 | K184: 0.006043770946 | L184: 0.9917253014 | M184: 1.300003 | N184: 1.152221594 | O184: -0.2385073886 | P184: 0.9815609265 | Q184: 3.746958869 | R184: -0.5848337455 | S184: -0.5848337455 | T184: -0.6697778676 | Y184: -0.6697778676 | AO184: 62358300
A185: 153 | B185: =OFFSET(InputPriceData!B$15,CalculationsAndCharts!$A185+$A$11,0,1,1) -> 2017-05-10 | C185: =OFFSET(InputPriceData!G$15,CalculationsAndCharts!$A185+$A$11,IF($C$7,8,0),1,1) -> 54293800 | D185: =OFFSET(InputPriceData!C$15,CalculationsAndCharts!$A185+$A$11,IF($C$7,8,0),1,1) -> 239.389999 | E185: =OFFSET(InputPriceData!D$15,CalculationsAndCharts!$A185+$A$11,IF($C$7,8,0),1,1) -> 239.869995 | F185: =OFFSET(InputPriceData!E$15,CalculationsAndCharts!$A185+$A$11,IF($C$7,8,0),1,1) -> 239.149994 | G185: =OFFSET(InputPriceData!F$15,CalculationsAndCharts!$A185+$A$11,IF($C$7,8,0),1,1) -> 239.869995 | H185: 239.6013336 | I185: 0.1505532754 | J185: 2.157803765 | K185: 0.006043770946 | L185: 0.9944138662 | M185: 1.269989 | N185: 1.390728983 | O185: -0.610477736 | P185: 2.424656809 | Q185: 3.508451481 | R185: -0.1826689518 | S185: -0.1826689518 | T185: -0.1847423872 | Y185: -0.1847423872 | AO185: 54293800
A186: 154 | B186: =OFFSET(InputPriceData!B$15,CalculationsAndCharts!$A186+$A$11,0,1,1) -> 2017-05-09 | C186: =OFFSET(InputPriceData!G$15,CalculationsAndCharts!$A186+$A$11,IF($C$7,8,0),1,1) -> 51363200 | D186: =OFFSET(InputPriceData!C$15,CalculationsAndCharts!$A186+$A$11,IF($C$7,8,0),1,1) -> 239.960007 | E186: =OFFSET(InputPriceData!D$15,CalculationsAndCharts!$A186+$A$11,IF($C$7,8,0),1,1) -> 240.190002 | F186: =OFFSET(InputPriceData!E$15,CalculationsAndCharts!$A186+$A$11,IF($C$7,8,0),1,1) -> 239.039993 | G186: =OFFSET(InputPriceData!F$15,CalculationsAndCharts!$A186+$A$11,IF($C$7,8,0),1,1) -> 239.440002 | H186: 239.4507804 | I186: 0.2375969985 | J186: 3.188798081 | K186: 0.006043770946 | L186: 0.9962165445 | M186: 1.040008 | N186: 2.001206719 | O186: -0.9439505925 | P186: 3.844433987 | Q186: 2.897973745 | R186: 0.1403742223 | S186: 0.1403742223 | T186: 0.1413073002 | Y186: 0.1413073002 | AP186: 51363200
A187: 155 | B187: =OFFSET(InputPriceData!B$15,CalculationsAndCharts!$A187+$A$11,0,1,1) -> 2017-05-08 | C187: =OFFSET(InputPriceData!G$15,CalculationsAndCharts!$A187+$A$11,IF($C$7,8,0),1,1) -> 48385700 | D187: =OFFSET(InputPriceData!C$15,CalculationsAndCharts!$A187+$A$11,IF($C$7,8,0),1,1) -> 239.75 | E187: =OFFSET(InputPriceData!D$15,CalculationsAndCharts!$A187+$A$11,IF($C$7,8,0),1,1) -> 239.919998 | F187: =OFFSET(InputPriceData!E$15,CalculationsAndCharts!$A187+$A$11,IF($C$7,8,0),1,1) -> 239.169998 | G187: =OFFSET(InputPriceData!F$15,CalculationsAndCharts!$A187+$A$11,IF($C$7,8,0),1,1) -> 239.660004 | H187: 239.2131834 | I187: 0.3593483748 | J187: 4.166428392 | K187: 0.006043770946 | L187: 0.9971030264 | M187: 1.110001 | N187: 2.945157311 | O187: -0.8558789355 | P187: 5.064684898 | Q187: 1.954023152 | R187: 0.4431957738 | S187: 0.4431957738 | T187: 0.4762007609 | Y187: 0.4762007609 | AP187: 48385700
A188: 156 | B188: =OFFSET(InputPriceData!B$15,CalculationsAndCharts!$A188+$A$11,0,1,1) -> 2017-05-05 | C188: =OFFSET(InputPriceData!G$15,CalculationsAndCharts!$A188+$A$11,IF($C$7,8,0),1,1) -> 62001300 | D188: =OFFSET(InputPriceData!C$15,CalculationsAndCharts!$A188+$A$11,IF($C$7,8,0),1,1) -> 239.190002 | E188: =OFFSET(InputPriceData!D$15,CalculationsAndCharts!$A188+$A$11,IF($C$7,8,0),1,1) -> 239.720001 | F188: =OFFSET(InputPriceData!E$15,CalculationsAndCharts!$A188+$A$11,IF($C$7,8,0),1,1) -> 238.679993 | G188: =OFFSET(InputPriceData!F$15,CalculationsAndCharts!$A188+$A$11,IF($C$7,8,0),1,1) -> 239.699997 | H188: 238.853835 | I188: 0.2030546342 | J188: 4.47945067 | K188: 0.006043770946 | L188: 0.997305193 | M188: 2.529999 | N188: 3.801036247 | O188: -0.4693160184 | P188: 5.732632423 | Q188: 1.098144217 | R188: 0.6784716366 | S188: 0.6784716366 | T188: 0.8262765781 | Y188: 0.8262765781 | AO188: 62001300
A189: 157 | B189: =OFFSET(InputPriceData!B$15,CalculationsAndCharts!$A189+$A$11,0,1,1) -> 2017-05-04 | C189: =OFFSET(InputPriceData!G$15,CalculationsAndCharts!$A189+$A$11,IF($C$7,8,0),1,1) -> 61462700 | D189: =OFFSET(InputPriceData!C$15,CalculationsAndCharts!$A189+$A$11,IF($C$7,8,0),1,1) -> 238.830002 | E189: =OFFSET(InputPriceData!D$15,CalculationsAndCharts!$A189+$A$11,IF($C$7,8,0),1,1) -> 238.919998 | F189: =OFFSET(InputPriceData!E$15,CalculationsAndCharts!$A189+$A$11,IF($C$7,8,0),1,1) -> 237.779999 | G189: =OFFSET(InputPriceData!F$15,CalculationsAndCharts!$A189+$A$11,IF($C$7,8,0),1,1) -> 238.759995 | H189: 238.6507803 | I189: -0.006043770946 | J189: 4.706042089 | K189: 0.006043770946 | L189: 0.9974347789 | M189: 4.169999 | N189: 4.270352265 | O189: -0.4356898235 | P189: 6.209162085 | Q189: 0.6288281984 | R189: 0.8160780661 | S189: 0.8160780661 | T189: 1.144961575 | Y189: 1.144961575 | AP189: 61462700
A190: 158 | B190: =OFFSET(InputPriceData!B$15,CalculationsAndCharts!$A190+$A$11,0,1,1) -> 2017-05-03 | C190: =OFFSET(InputPriceData!G$15,CalculationsAndCharts!$A190+$A$11,IF($C$7,8,0),1,1) -> 73137700 | D190: =OFFSET(InputPriceData!C$15,CalculationsAndCharts!$A190+$A$11,IF($C$7,8,0),1,1) -> 238.770004 | E190: =OFFSET(InputPriceData!D$15,CalculationsAndCharts!$A190+$A$11,IF($C$7,8,0),1,1) -> 238.880005 | F190: =OFFSET(InputPriceData!E$15,CalculationsAndCharts!$A190+$A$11,IF($C$7,8,0),1,1) -> 237.699997 | G190: =OFFSET(InputPriceData!F$15,CalculationsAndCharts!$A190+$A$11,IF($C$7,8,0),1,1) -> 238.479996 | H190: 238.6568241 | I190: 0.02123325993 | J190: 4.920413724 | K190: 0 | L190: 1 | M190: 3.14 | N190: 4.706042089 | O190: -0.193138375 | P190: 6.629538964 | Q190: 0.193138375 | R190: 0.9433834064 | S190: 0.9433834064 | T190: 1.767941821 | Y190: 1.767941821 | AP190: 73137700
A191: 159 | B191: =OFFSET(InputPriceData!B$15,CalculationsAndCharts!$A191+$A$11,0,1,1) -> 2017-05-02 | C191: =OFFSET(InputPriceData!G$15,CalculationsAndCharts!$A191+$A$11,IF($C$7,8,0),1,1) -> 57375700 | D191: =OFFSET(InputPriceData!C$15,CalculationsAndCharts!$A191+$A$11,IF($C$7,8,0),1,1) -> 238.839996 | E191: =OFFSET(InputPriceData!D$15,CalculationsAndCharts!$A191+$A$11,IF($C$7,8,0),1,1) -> 238.979996 | F191: =OFFSET(InputPriceData!E$15,CalculationsAndCharts!$A191+$A$11,IF($C$7,8,0),1,1) -> 238.300003 | G191: =OFFSET(InputPriceData!F$15,CalculationsAndCharts!$A191+$A$11,IF($C$7,8,0),1,1) -> 238.770004 | H191: 238.6355909 | I191: 0.07584765375 | J191: 4.899180464 | K191: 0.05161891089 | L191: 0.9791472419 | M191: 5.330002 | N191: 4.899180464 | O191: 0.1274665646 | P191: 6.819914434 | Q191: 0 | R191: 1 | S191: 0.999 | T191: 3.800201167 | Y191: 3.800201167 | AP191: 57375700
A192: 160 | B192: =OFFSET(InputPriceData!B$15,CalculationsAndCharts!$A192+$A$11,0,1,1) -> 2017-05-01 | C192: =OFFSET(InputPriceData!G$15,CalculationsAndCharts!$A192+$A$11,IF($C$7,8,0),1,1) -> 66882500 | D192: =OFFSET(InputPriceData!C$15,CalculationsAndCharts!$A192+$A$11,IF($C$7,8,0),1,1) -> 238.679993 | E192: =OFFSET(InputPriceData!D$15,CalculationsAndCharts!$A192+$A$11,IF($C$7,8,0),1,1) -> 239.169998 | F192: =OFFSET(InputPriceData!E$15,CalculationsAndCharts!$A192+$A$11,IF($C$7,8,0),1,1) -> 238.199997 | G192: =OFFSET(InputPriceData!F$15,CalculationsAndCharts!$A192+$A$11,IF($C$7,8,0),1,1) -> 238.679993 | H192: 238.5597432 | I192: 0.0526643549 | J192: 4.82333281 | K192: 0.065357945 | L192: 0.9732615752 | M192: 4.809998 | N192: 4.771713899 | O192: 0.06640338901 | P192: 6.791370975 | Q192: 0 | R192: 1 | S192: 0.999 | T192: 3.800201167 | Y192: 3.800201167 | AO192: 66882500
A193: 161 | B193: =OFFSET(InputPriceData!B$15,CalculationsAndCharts!$A193+$A$11,0,1,1) -> 2017-04-28 | C193: =OFFSET(InputPriceData!G$15,CalculationsAndCharts!$A193+$A$11,IF($C$7,8,0),1,1) -> 53247400 | D193: =OFFSET(InputPriceData!C$15,CalculationsAndCharts!$A193+$A$11,IF($C$7,8,0),1,1) -> 238.899994 | E193: =OFFSET(InputPriceData!D$15,CalculationsAndCharts!$A193+$A$11,IF($C$7,8,0),1,1) -> 238.929993 | F193: =OFFSET(InputPriceData!E$15,CalculationsAndCharts!$A193+$A$11,IF($C$7,8,0),1,1) -> 237.929993 | G193: =OFFSET(InputPriceData!F$15,CalculationsAndCharts!$A193+$A$11,IF($C$7,8,0),1,1) -> 238.080002 | H193: 238.5070788 | I193: 0.2964742021 | J193: 4.770668455 | K193: 0.5565747158 | L193: 0.7910458757 | M193: 3.509995 | N193: 4.70531051 | O193: 0.7876909728 | P193: 6.724967586 | Q193: 0.5967339782 | R193: 0.8369958204 | S193: 0.8369958204 | T193: 1.211055484 | Y193: 1.211055484 | AP193: 53247400
A194: 162 | B194: =OFFSET(InputPriceData!B$15,CalculationsAndCharts!$A194+$A$11,0,1,1) -> 2017-04-27 | C194: =OFFSET(InputPriceData!G$15,CalculationsAndCharts!$A194+$A$11,IF($C$7,8,0),1,1) -> 57410300 | D194: =OFFSET(InputPriceData!C$15,CalculationsAndCharts!$A194+$A$11,IF($C$7,8,0),1,1) -> 238.770004 | E194: =OFFSET(InputPriceData!D$15,CalculationsAndCharts!$A194+$A$11,IF($C$7,8,0),1,1) -> 238.949997 | F194: =OFFSET(InputPriceData!E$15,CalculationsAndCharts!$A194+$A$11,IF($C$7,8,0),1,1) -> 237.979996 | G194: =OFFSET(InputPriceData!F$15,CalculationsAndCharts!$A194+$A$11,IF($C$7,8,0),1,1) -> 238.600006 | H194: 238.2106046 | I194: 0.7610310115 | J194: 4.474194253 | K194: 1.238639586 | L194: 0.5663659678 | M194: 6.090011 | N194: 3.917619537 | O194: 1.443095882 | P194: 5.937276613 | Q194: 1.793583928 | R194: 0.5359937181 | S194: 0.5359937181 | T194: 0.5985173665 | Y194: 0.5985173665 | AP194: 57410300
A195: 163 | B195: =OFFSET(InputPriceData!B$15,CalculationsAndCharts!$A195+$A$11,0,1,1) -> 2017-04-26 | C195: =OFFSET(InputPriceData!G$15,CalculationsAndCharts!$A195+$A$11,IF($C$7,8,0),1,1) -> 84702500 | D195: =OFFSET(InputPriceData!C$15,CalculationsAndCharts!$A195+$A$11,IF($C$7,8,0),1,1) -> 238.509995 | E195: =OFFSET(InputPriceData!D$15,CalculationsAndCharts!$A195+$A$11,IF($C$7,8,0),1,1) -> 239.529999 | F195: =OFFSET(InputPriceData!E$15,CalculationsAndCharts!$A195+$A$11,IF($C$7,8,0),1,1) -> 238.350006 | G195: =OFFSET(InputPriceData!F$15,CalculationsAndCharts!$A195+$A$11,IF($C$7,8,0),1,1) -> 238.399994 | H195: 237.4495736 | I195: 1.181547591 | J195: 3.713163241 | K195: 1.476869174 | L195: 0.4308824857 | M195: 4.369995 | N195: 2.474523655 | O195: 1.419777178 | P195: 4.494180731 | Q195: 2.719987836 | R195: 0.2459317215 | S195: 0.2459317215 | T195: 0.2510779904 | Y195: 0.2510779904 | AP195: 84702500
A196: 164 | B196: =OFFSET(InputPriceData!B$15,CalculationsAndCharts!$A196+$A$11,0,1,1) -> 2017-04-25 | C196: =OFFSET(InputPriceData!G$15,CalculationsAndCharts!$A196+$A$11,IF($C$7,8,0),1,1) -> 76698300 | D196: =OFFSET(InputPriceData!C$15,CalculationsAndCharts!$A196+$A$11,IF($C$7,8,0),1,1) -> 237.910004 | E196: =OFFSET(InputPriceData!D$15,CalculationsAndCharts!$A196+$A$11,IF($C$7,8,0),1,1) -> 238.949997 | F196: =OFFSET(InputPriceData!E$15,CalculationsAndCharts!$A196+$A$11,IF($C$7,8,0),1,1) -> 237.809998 | G196: =OFFSET(InputPriceData!F$15,CalculationsAndCharts!$A196+$A$11,IF($C$7,8,0),1,1) -> 238.550003 | H196: 236.268026 | I196: 1.21522731 | J196: 2.53161565 | K196: 1.481892775 | L196: 0.2615474454 | M196: 3.490005 | N196: 1.054746477 | O196: 1.220250911 | P196: 3.074403553 | Q196: 3.307454772 | R196: -0.03651776761 | S196: -0.03651776761 | T196: -0.03653401333 | Y196: -0.03653401333 | AO196: 76698300
A197: 165 | B197: =OFFSET(InputPriceData!B$15,CalculationsAndCharts!$A197+$A$11,0,1,1) -> 2017-04-24 | C197: =OFFSET(InputPriceData!G$15,CalculationsAndCharts!$A197+$A$11,IF($C$7,8,0),1,1) -> 119209900 | D197: =OFFSET(InputPriceData!C$15,CalculationsAndCharts!$A197+$A$11,IF($C$7,8,0),1,1) -> 237.179993 | E197: =OFFSET(InputPriceData!D$15,CalculationsAndCharts!$A197+$A$11,IF($C$7,8,0),1,1) -> 237.410004 | F197: =OFFSET(InputPriceData!E$15,CalculationsAndCharts!$A197+$A$11,IF($C$7,8,0),1,1) -> 234.559998 | G197: =OFFSET(InputPriceData!F$15,CalculationsAndCharts!$A197+$A$11,IF($C$7,8,0),1,1) -> 237.169998 | H197: 235.0527987 | I197: 0.6723706526 | J197: 1.320811468 | K197: 1.481892775 | L197: -0.05747353 | M197: 1.830002 | N197: -0.1655044345 | O197: 0.6679475245 | P197: 1.854152641 | Q197: 3.459735255 | R197: -0.3021483789 | S197: -0.3021483789 | T197: -0.3118821378 | Y197: -0.3118821378 | AP197: 119209900
A198: 166 | B198: =OFFSET(InputPriceData!B$15,CalculationsAndCharts!$A198+$A$11,0,1,1) -> 2017-04-21 | C198: =OFFSET(InputPriceData!G$15,CalculationsAndCharts!$A198+$A$11,IF($C$7,8,0),1,1) -> 110389800 | D198: =OFFSET(InputPriceData!C$15,CalculationsAndCharts!$A198+$A$11,IF($C$7,8,0),1,1) -> 235.25 | E198: =OFFSET(InputPriceData!D$15,CalculationsAndCharts!$A198+$A$11,IF($C$7,8,0),1,1) -> 235.309998 | F198: =OFFSET(InputPriceData!E$15,CalculationsAndCharts!$A198+$A$11,IF($C$7,8,0),1,1) -> 234.130005 | G198: =OFFSET(InputPriceData!F$15,CalculationsAndCharts!$A198+$A$11,IF($C$7,8,0),1,1) -> 234.589996 | H198: 234.3804281 | I198: 0.4296460525 | J198: 0.6484408156 | K198: 1.528776384 | L198: -0.4043398008 | M198: -0.610001 | N198: -0.833451959 | O198: 0.4765296624 | P198: 1.411819092 | Q198: 3.459735255 | R198: -0.4203824934 | S198: -0.4203824934 | T198: -0.4481565306 | Y198: -0.4481565306 | AP198: 110389800
A199: 167 | B199: =OFFSET(InputPriceData!B$15,CalculationsAndCharts!$A199+$A$11,0,1,1) -> 2017-04-20 | C199: =OFFSET(InputPriceData!G$15,CalculationsAndCharts!$A199+$A$11,IF($C$7,8,0),1,1) -> 92572200 | D199: =OFFSET(InputPriceData!C$15,CalculationsAndCharts!$A199+$A$11,IF($C$7,8,0),1,1) -> 234.149994 | E199: =OFFSET(InputPriceData!D$15,CalculationsAndCharts!$A199+$A$11,IF($C$7,8,0),1,1) -> 235.850006 | F199: =OFFSET(InputPriceData!E$15,CalculationsAndCharts!$A199+$A$11,IF($C$7,8,0),1,1) -> 233.779999 | G199: =OFFSET(InputPriceData!F$15,CalculationsAndCharts!$A199+$A$11,IF($C$7,8,0),1,1) -> 235.339996 | H199: 233.950782 | I199: 0.2143716349 | J199: 0.2187947631 | K199: 1.734781628 | L199: -0.7760059305 | M199: -0.100006 | N199: -1.309981621 | O199: 0.4203768789 | P199: 1.227392018 | Q199: 3.459735255 | R199: -0.4762710945 | S199: -0.4762710945 | T199: -0.518150231 | Y199: -0.518150231 | AO199: 92572200
A200: 168 | B200: =OFFSET(InputPriceData!B$15,CalculationsAndCharts!$A200+$A$11,0,1,1) -> 2017-04-19 | C200: =OFFSET(InputPriceData!G$15,CalculationsAndCharts!$A200+$A$11,IF($C$7,8,0),1,1) -> 68699900 | D200: =OFFSET(InputPriceData!C$15,CalculationsAndCharts!$A200+$A$11,IF($C$7,8,0),1,1) -> 234.520004 | E200: =OFFSET(InputPriceData!D$15,CalculationsAndCharts!$A200+$A$11,IF($C$7,8,0),1,1) -> 234.949997 | F200: =OFFSET(InputPriceData!E$15,CalculationsAndCharts!$A200+$A$11,IF($C$7,8,0),1,1) -> 233.179993 | G200: =OFFSET(InputPriceData!F$15,CalculationsAndCharts!$A200+$A$11,IF($C$7,8,0),1,1) -> 233.440002 | H200: 233.7364104 | I200: -0.05161891089 | J200: 0.004423128164 | K200: 1.97677601 | L200: -0.995534898 | M200: -1.339997 | N200: -1.7303585 | O200: 0.1903754702 | P200: 1.433067148 | Q200: 3.459735255 | R200: -0.4142141742 | S200: -0.4142141742 | T200: -0.440687532 | Y200: -0.440687532 | AP200: 68699900
A201: 169 | B201: =OFFSET(InputPriceData!B$15,CalculationsAndCharts!$A201+$A$11,0,1,1) -> 2017-04-18 | C201: =OFFSET(InputPriceData!G$15,CalculationsAndCharts!$A201+$A$11,IF($C$7,8,0),1,1) -> 83225800 | D201: =OFFSET(InputPriceData!C$15,CalculationsAndCharts!$A201+$A$11,IF($C$7,8,0),1,1) -> 233.720001 | E201: =OFFSET(InputPriceData!D$15,CalculationsAndCharts!$A201+$A$11,IF($C$7,8,0),1,1) -> 234.490005 | F201: =OFFSET(InputPriceData!E$15,CalculationsAndCharts!$A201+$A$11,IF($C$7,8,0),1,1) -> 233.080002 | G201: =OFFSET(InputPriceData!F$15,CalculationsAndCharts!$A201+$A$11,IF($C$7,8,0),1,1) -> 233.869995 | H201: 233.7880293 | I201: -0.01373903411 | J201: 0.004423128164 | K201: 2.037819238 | L201: -0.9956683612 | M201: -1.610001 | N201: -1.920733971 | O201: 0.09892310543 | P201: 2.413971309 | Q201: 3.459735255 | R201: -0.1780415712 | S201: -0.1780415712 | T201: -0.1799594164 | Y201: -0.1799594164 | AO201: 83225800
A202: 170 | B202: =OFFSET(InputPriceData!B$15,CalculationsAndCharts!$A202+$A$11,0,1,1) -> 2017-04-17 | C202: =OFFSET(InputPriceData!G$15,CalculationsAndCharts!$A202+$A$11,IF($C$7,8,0),1,1) -> 68405400 | D202: =OFFSET(InputPriceData!C$15,CalculationsAndCharts!$A202+$A$11,IF($C$7,8,0),1,1) -> 233.110001 | E202: =OFFSET(InputPriceData!D$15,CalculationsAndCharts!$A202+$A$11,IF($C$7,8,0),1,1) -> 234.570007 | F202: =OFFSET(InputPriceData!E$15,CalculationsAndCharts!$A202+$A$11,IF($C$7,8,0),1,1) -> 232.880005 | G202: =OFFSET(InputPriceData!F$15,CalculationsAndCharts!$A202+$A$11,IF($C$7,8,0),1,1) -> 234.570007 | H202: 233.8017683 | I202: -0.4912167708 | J202: 0.1099403356 | K202: 2.024080204 | L202: -0.8969641261 | M202: -0.759995 | N202: -2.019657076 | O202: -0.5967339782 | P202: 3.426018167 | Q202: 3.459735255 | R202: -0.004896644609 | S202: -0.004896644609 | T202: -0.004896683745 | Y202: -0.004896683745 | AO202: 68405400
A203: 171 | B203: =OFFSET(InputPriceData!B$15,CalculationsAndCharts!$A203+$A$11,0,1,1) -> 2017-04-13 | C203: =OFFSET(InputPriceData!G$15,CalculationsAndCharts!$A203+$A$11,IF($C$7,8,0),1,1) -> 92880400 | D203: =OFFSET(InputPriceData!C$15,CalculationsAndCharts!$A203+$A$11,IF($C$7,8,0),1,1) -> 233.639999 | E203: =OFFSET(InputPriceData!D$15,CalculationsAndCharts!$A203+$A$11,IF($C$7,8,0),1,1) -> 234.490005 | F203: =OFFSET(InputPriceData!E$15,CalculationsAndCharts!$A203+$A$11,IF($C$7,8,0),1,1) -> 232.509995 | G203: =OFFSET(InputPriceData!F$15,CalculationsAndCharts!$A203+$A$11,IF($C$7,8,0),1,1) -> 232.509995 | H203: 234.2929851 | I203: -0.6820648707 | J203: 0.6247254146 | K203: 1.532863433 | L203: -0.4209041123 | M203: -3.23001 | N203: -1.422923098 | O203: -1.19684995 | P203: 4.358215148 | Q203: 2.863001276 | R203: 0.2070584488 | S203: 0.2070584488 | T203: 0.2100960659 | Y203: 0.2100960659 | AP203: 92880400
A204: 172 | B204: =OFFSET(InputPriceData!B$15,CalculationsAndCharts!$A204+$A$11,0,1,1) -> 2017-04-12 | C204: =OFFSET(InputPriceData!G$15,CalculationsAndCharts!$A204+$A$11,IF($C$7,8,0),1,1) -> 81864400 | D204: =OFFSET(InputPriceData!C$15,CalculationsAndCharts!$A204+$A$11,IF($C$7,8,0),1,1) -> 234.740005 | E204: =OFFSET(InputPriceData!D$15,CalculationsAndCharts!$A204+$A$11,IF($C$7,8,0),1,1) -> 234.960007 | F204: =OFFSET(InputPriceData!E$15,CalculationsAndCharts!$A204+$A$11,IF($C$7,8,0),1,1) -> 233.770004 | G204: =OFFSET(InputPriceData!F$15,CalculationsAndCharts!$A204+$A$11,IF($C$7,8,0),1,1) -> 234.029999 | H204: 234.97505 | I204: -0.2382295872 | J204: 1.312899735 | K204: 0.8507985627 | L204: 0.2135700588 | M204: -2.259994 | N204: -0.226073148 | O204: -0.9264039079 | P204: 5.003241657 | Q204: 1.666151327 | R204: 0.500358929 | S204: 0.500358929 | T204: 0.5497848309 | Y204: 0.5497848309 | AP204: 81864400
... 828 more rows

Sheet Follow
A1: Stocks and Indexes I wish to follow
A3: To ease following a stock, enter a Yahoo Finance acceptable symbol in column "A" anywhere below cell "A9".
A4: Thereafter you may doubleclick the cell containing a symbol of interest to initiate data retrieval and charting for that symbol.
A7: Symbol
A8: To | B8: Description | C8: Last Trade as of most recent check
A9: Follow | C9: Date | D9: Time | E9: Open | F9: High | G9: Low | H9: Close | I9: Volume | J9: Change
A10: A | B10: Agilent Technolog (A) -NYSE (Daily) | C10: 2015-02-02 | D10: 16:03:00 | E10: 37.9 | F10: 38.76 | G10: 37.71 | H10: 38.69 | I10: 2508493 | J10: 0.92
A11: AAL | B11: American Airlines Group Inc. (AAL) -NasdaqGS (Daily) | C11: 2017-12-07 | D11: 16:00:00 | E11: 49.529999 | F11: 50.920502 | G11: 49.299999 | H11: 50.880001 | I11: 3046954 | J11: 1.27
A12: ADM | B12: Archer-Daniels-Midland Company (ADM) -NYQ (Daily) | C12: 2016-03-07 | D12: 13:18:00 | E12: 37.17 | F12: 37.29 | G12: 36.85 | H12: 37.09 | I12: 2069198 | J12: -0.56
A13: AMC | B13: AMC Entertainment Holdings, Inc. (AMC) -NYSE (Daily) | C13: 2017-12-07 | D13: 16:02:00 | E13: 14.15 | F13: 14.5 | G13: 14.05 | H13: 14.35 | I13: 1931228 | J13: 0.1
A14: BSX | B14: Boston Scientific Corporation C (BSX) -NYQ (Daily) | C14: 2015-03-13 | D14: 16:01:00 | E14: 16.84 | F14: 16.91 | G14: 16.44 | H14: 16.61 | I14: 7262460 | J14: -0.28
A15: CASY | B15: Casey's General Stores, Inc. (CASY) -NasdaqGS (Daily) | C15: 2017-12-07 | D15: 16:00:00 | E15: 124.379997 | F15: 125.349998 | G15: 123.099998 | H15: 123.669998 | I15: 437041 | J15: -0.900002
A16: CAT | B16: Caterpillar Inc. (CAT) -NYSE (Daily) | C16: 2018-03-12 | D16: 15:59:00 | E16: 156.300003 | F16: 157.830002 | G16: 153.199997 | H16: 153.649994 | I16: 4485330 | J16: -0.850006
A17: CSCO | B17: Cisco Systems, In (CSCO) -NasdaqNM (Daily) | C17: 2015-02-19 | D17: 16:00:00 | E17: 29.32 | F17: 29.39 | G17: 29.13 | H17: 29.31 | I17: 21469012 | J17: -0.18
A18: CVS | B18: CVS Health Corpor (CVS) -NYSE (Daily) | C18: 2015-02-02 | D18: 16:01:00 | E18: 98.34 | F18: 99.22 | G18: 97.06 | H18: 99.11 | I18: 4416094 | J18: 0.95
A19: DIS | B19: Walt Disney Compa (DIS) -NYSE (Daily) | C19: 2015-02-26 | D19: 16:00:00 | E19: 105.5 | F19: 105.71 | G19: 104.14 | H19: 104.56 | I19: 5044969 | J19: -1.01
A20: EMC | B20: EMC Corporation C (EMC) -NYSE (Daily) | C20: 2015-02-19 | D20: 16:00:00 | E20: 28.26 | F20: 28.83 | G20: 28.19 | H20: 28.72 | I20: 11049079 | J20: 0.52
A21: F | B21: Ford Motor Company (F) -NYSE (Daily) | C21: 2017-10-13 | D21: 16:01:00 | E21: 12.06 | F21: 12.17 | G21: 11.87 | H21: 12.05 | I21: 44563400 | J21: -0.07
A22: FAS | B22: Direxion Daily Financial Bull 3X ETF (FAS) -NYSEArca (Daily) | C22: 2017-10-13 | D22: 16:00:00 | E22: 58.099998 | F22: 58.939999 | G22: 57.43 | H22: 58.450001 | I22: 1709300 | J22: 0.07
A23: GSK | B23: GlaxoSmithKline P (GSK) -NYSE (Daily) | C23: 2015-02-02 | D23: 16:01:00 | E23: 44.11 | F23: 44.12 | G23: 43.71 | H23: 43.96 | I23: 3654466 | J23: -0.04
A24: GDX | B24: VanEck Vectors Gold Miners ETF (GDX) -PCX (Daily) | C24: 2017-02-10 | D24: 20:00:00 | E24: 24.67 | F24: 25.36 | G24: 24.6 | H24: 25.29 | I24: 65396107 | J24: 0.38
A25: HSY | B25: The Hershey Compa (HSY) -NYSE (Daily) | C25: 2015-02-19 | D25: 16:02:00 | E25: 106.97 | F25: 107.31 | G25: 105.42 | H25: 105.95 | I25: 1448321 | J25: -1
A26: HTLD | B26: Heartland Express (HTLD) -NasdaqNM (Daily) | C26: 2015-02-02 | D26: 16:00:00 | E26: 25.68 | F26: 25.81 | G26: 25.36 | H26: 25.62 | I26: 542510 | J26: -0.07
A27: IBM | B27: International Bus (IBM) -NYSE (Daily) | C27: 2015-02-02 | D27: 16:01:00 | E27: 154 | F27: 154.66 | G27: 151.51 | H27: 154.66 | I27: 4712247 | J27: 1.35
A28: INTC | B28: Intel Corporation (INTC) -NasdaqNM (Daily) | C28: 2015-02-19 | D28: 16:00:00 | E28: 34.25 | F28: 34.42 | G28: 34.05 | H28: 34.21 | I28: 11017541 | J28: -0.055
A29: JAH | B29: Jarden Corporation Common Stock (JAH) -NYQ (Daily) | C29: 2016-01-08 | D29: 16:02:00 | E29: 53.82 | F29: 53.88 | G29: 52.65 | H29: 52.73 | I29: 4519480 | J29: -0.81
A30: JNJ | B30: Johnson & Johnson Common Stock (JNJ) -NYQ (Daily) | C30: 2016-01-08 | D30: 11:37:00 | E30: 99.88 | F30: 99.94 | G30: 98.87 | H30: 98.88 | I30: 2448879 | J30: -0.34
A31: KO | B31: Coca-Cola Company (The) Common (KO) -NYQ (Daily) | C31: 2015-08-10 | D31: 16:00:00 | E31: 41.89 | F31: 41.99 | G31: 41.58 | H31: 41.68 | I31: 9501875 | J31: -0.09
A32: LHO | B32: LaSalle Hotel Pro (LHO) -NYSE (Daily) | C32: 2015-02-02 | D32: 16:06:00 | E32: 40.51 | F32: 40.74 | G32: 39.46 | H32: 40.26 | I32: 1034675 | J32: -0.2
A33: LINE | B33: Linn Energy, LLC (LINE) -NasdaqNM (Daily) | C33: 2015-02-02 | D33: 16:00:00 | E33: 10.4 | F33: 10.78 | G33: 10.25 | H33: 10.77 | I33: 3766537 | J33: 0.51
A34: LO | B34: Lorillard, Inc Co (LO) -NYSE (Daily) | C34: 2015-02-02 | D34: 16:03:00 | E34: 65.71 | F34: 66.29 | G34: 65.43 | H34: 66.29 | I34: 1563618 | J34: 0.68
A35: MCD | B35: McDonald's Corporation Common S (MCD) -NYQ (Daily) | C35: 2016-04-07 | D35: 16:10:00 | E35: 127.37 | F35: 128.52 | G35: 127.02 | H35: 128.14 | I35: 4720711 | J35: 0.62
A36: MDT | B36: Medtronic plc. Or (MDT) -NYSE (Daily) | C36: 2015-02-19 | D36: 16:01:00 | E36: 78.59 | F36: 78.59 | G36: 77.85 | H36: 78.13 | I36: 6900528 | J36: -0.37
A37: MGM | B37: MGM Resorts Inter (MGM) -NYSE (Daily) | C37: 2015-02-02 | D37: 16:00:00 | E37: 19.44 | F37: 19.75 | G37: 19.12 | H37: 19.74 | I37: 7570281 | J37: 0.26
A38: MO | B38: Altria Group, Inc (MO) -NYSE (Daily) | C38: 2015-02-02 | D38: 16:01:00 | E38: 53.25 | F38: 53.84 | G38: 52.98 | H38: 53.8 | I38: 9183582 | J38: 0.7
A39: MSFT | B39: Microsoft Corpora (MSFT) -NasdaqNM (Daily) | C39: 2015-02-20 | D39: 16:00:00 | E39: 43.51 | F39: 43.88 | G39: 43.29 | H39: 43.855 | I39: 29721132 | J39: 0.355
A40: NUGT | B40: Direxion Daily Gold Miners Inde (NUGT) -PCX (Daily) | C40: 2016-04-13 | D40: 14:18:00 | E40: 81.48 | F40: 84.97 | G40: 79.59 | H40: 80.5352 | I40: 4380827 | J40: -5.6148
A41: NVS | B41: Novartis AG Common Stock (NVS) -NYQ (Daily) | C41: 2016-01-08 | D41: 11:38:00 | E41: 83.38 | F41: 83.5 | G41: 82.37 | H41: 82.42 | I41: 979446 | J41: -1.52
A42: NVDA | B42: NVIDIA Corporation (NVDA) -NasdaqGS (Daily) | C42: 2018-03-13 | D42: 16:00:00 | E42: 251.490005 | F42: 254.5 | G42: 246.039993 | H42: 247.710007 | I42: 15408000 | J42: -2.049988
A43: PRU | B43: Prudential Financ (PRU) -NYSE (Daily) | C43: 2015-02-23 | D43: 12:22:00 | E43: 80.25 | F43: 80.4499 | G43: 79.8 | H43: 80.12 | I43: 1604052 | J43: -0.69
A44: PSEC | B44: Prospect Capital Corporation (PSEC) -NMS (Daily) | C44: 2016-04-07 | D44: 16:00:00 | E44: 7.18 | F44: 7.25 | G44: 7.15 | H44: 7.21 | I44: 1116195 | J44: 0.02
A45: RAI | B45: Reynolds American (RAI) -NYSE (Daily) | C45: 2015-02-02 | D45: 16:03:00 | E45: 68.12 | F45: 69.06 | G45: 67.4346 | H45: 69.05 | I45: 1822013 | J45: 1.1
A46: RPM | B46: RPM International Inc. Common S (RPM) -NYQ (Daily) | C46: 2016-04-13 | D46: 12:43:00 | E46: 49.9 | F46: 50.21 | G46: 49.71 | H46: 49.97 | I46: 408337 | J46: 0.19 | K46: Owns the Rust-Oleum brand
A47: RSP | B47: Guggenheim S&P 500 Equal Weight (RSP) -PCX (Daily) | C47: 2016-01-08 | D47: 11:33:00 | E47: 73.24 | F47: 73.47 | G47: 72.41 | H47: 72.41 | I47: 754279 | J47: -0.48
A48: SONC | B48: Sonic Corp. (SONC) -NMS (Daily) | C48: 2017-02-08 | D48: 16:00:00 | E48: 25.15 | F48: 25.44 | G48: 24.91 | H48: 25.35 | I48: 397007 | J48: 0.18
A49: SPR | B49: Spirit Aerosystems Holdings, In (SPR) -NYQ (Daily) | C49: 2017-02-08 | D49: 16:02:00 | E49: 56.31 | F49: 56.53 | G49: 55.13 | H49: 56.41 | I49: 849196 | J49: 0.06
A50: SWKS | B50: Skyworks Solution (SWKS) -NasdaqNM (Daily) | C50: 2015-02-02 | D50: 16:00:00 | E50: 83.07 | F50: 83.73 | G50: 80.15 | H50: 82.02 | I50: 4119001 | J50: -1.03
A51: TOL | B51: Toll Brothers Inc (TOL) -NYSE (Daily) | C51: 2015-02-23 | D51: 12:23:00 | E51: 37.56 | F51: 37.77 | G51: 37.1 | H51: 37.36 | I51: 1521944 | J51: -0.29
A52: UNP | B52: Union Pacific Cor (UNP) -NYSE (Daily) | C52: 2015-02-02 | D52: 16:10:00 | E52: 118.13 | F52: 119.06 | G52: 116.7 | H52: 119.01 | I52: 3259594 | J52: 1.8
A53: VZ | B53: Verizon Communica (VZ) -NYSE (Daily) | C53: 2015-02-23 | D53: 12:22:00 | E53: 48.94 | F53: 49 | G53: 48.54 | H53: 48.825 | I53: 4204644 | J53: -0.145
A54: WBA | B54: (WBA) -NasdaqNM (Daily) | C54: 2015-02-02 | D54: 16:00:00 | E54: 73.06 | F54: 74.98 | G54: 73 | H54: 74.89 | I54: 4247395 | J54: 1.14
A55: WMT | B55: Wal-Mart Stores, Inc. (WMT) -NYSE (Daily) | C55: 2017-12-07 | D55: 16:00:00 | E55: 97.059998 | F55: 97.580002 | G55: 96.650002 | H55: 96.779999 | I55: 7502463 | J55: -0.5
A57: ^NDX | B57: NASDAQ-100 (^NDX) -NIM (Daily) | C57: 2015-08-10 | D57: 17:15:00 | E57: 4558.68 | F57: 4583.63 | G57: 4554.63 | H57: 4573.11 | I57: 0 | J57: 53.03
A58: ^FTSE | B58: FTSE 100 (^FTSE) -FTSE (Daily) | C58: 2018-02-14 | D58: 15:51:00 | E58: 7168.009766 | F58: 7243.149902 | G58: 7145.72998 | H58: 7222.319824 | I58: 0 | J58: 54.319824
A59: ^DJI | B59: Dow Jones Industrial Average (^DJI) -DJI (Daily) | C59: 2018-02-14 | D59: 13:58:00 | E59: 24535.82031 | F59: 24835.44922 | G59: 24490.35938 | H59: 24816.16016 | I59: 254641020 | J59: 175.710937
A60: SPY | B60: SPDR S&P 500 ETF (SPY) -NYSEArca (Daily) | C60: 2018-03-13 | D60: 16:00:00 | E60: 279.839996 | F60: 280.410004 | G60: 276.029999 | H60: 276.720001 | I60: 80906008 | J60: -1.799988
A61: ^GSPC | B61: S&P 500 (^GSPC) -SNP (Daily) | C61: 2018-03-13 | D61: 15:20:00 | E61: 2792.310059 | F61: 2801.899902 | G61: 2764.639893 | H61: 2765.600098 | I61: 1702774839 | J61: -17.419922
A62: ^RUT | B62: Russell 2000 (^RUT) -Chicago Options (Daily) | C62: 2018-02-12 | D62: 16:30:00 | E62: 1479.109985 | F62: 1498.109985 | G62: 1466.880005 | H62: 1490.97998 | I62: 40557900 | J62: -0.001465
A63: ^VIX | B63: VOLATILITY S&P 500 (^VIX) -WCB (Daily) | C63: 2015-12-04 | D63: 16:14:00 | E63: 17.43 | F63: 17.65 | G63: 14.69 | H63: 14.81 | I63: 0 | J63: -3.3
A64: ^NYA | B64: NYSE COMPOSITE (DJ) (^NYA) -NYSE (Daily) | C64: 2017-10-13 | D64: 17:38:00 | E64: 12360.87012 | F64: 12377.88965 | G64: 12350.03027 | H64: 12352.01953 | I64: 3149440000 | J64: 13.279297
A66: ACAD | B66: ACADIA Pharmaceut (ACAD) -NasdaqNM (Daily) | C66: 2014-07-21 | D66: 16:00:00 | E66: 20.13 | F66: 20.55 | G66: 19.8101 | H66: 20.31 | I66: 691016
A67: CLDX | B67: Celldex Therapeut (CLDX) -NasdaqNM (Daily) | C67: 2015-02-02 | D67: 16:00:00 | E67: 21.47 | F67: 21.69 | G67: 20.11 | H67: 21.02 | I67: 1570418 | J67: -0.4
A68: ICPT | B68: Intercept Pharmac (ICPT) -NasdaqNM (Daily) | C68: 2014-07-21 | D68: 16:00:00 | E68: 215.97 | F68: 218.43 | G68: 213.05 | H68: 218.14 | I68: 191276
A69: INO | B69: Inovio Pharmaceut (INO) -AMEX (Daily) | C69: 2014-07-21 | D69: 16:00:00 | E69: 10.3 | F69: 11.08 | G69: 10.1 | H69: 11.01 | I69: 1800796
A70: JCP | B70: J. C. Penney Company, Inc. (JCP) -NYSE (Daily) | C70: 2017-12-07 | D70: 16:01:00 | E70: 3.34 | F70: 3.4 | G70: 3.25 | H70: 3.27 | I70: 14485464 | J70: -0.07
A71: LCI | B71: Lannett Co Inc Co (LCI) -NYSE (Daily) | C71: 2014-07-21 | D71: 16:02:00 | E71: 38.09 | F71: 38.803 | G71: 36.5101 | H71: 37.76 | I71: 611367
A72: NPSP | B72: NPS Pharmaceutica (NPSP) -NasdaqNM (Daily) | C72: 2014-07-21 | D72: 15:59:00 | E72: 28.75 | F72: 29.43 | G72: 28.31 | H72: 29.29 | I72: 1126758
A73: PBYI | B73: Puma Biotechnolog (PBYI) -NYSE (Daily) | C73: 2014-07-21 | D73: 16:02:00 | E73: 58.27 | F73: 59.46 | G73: 57.39 | H73: 58.98 | I73: 348030
